Workbook

Sheet Prices (hidden)
A1: Vendor PN | B1: Vendor Description | C1: List Price | D1: Vendor PN | E1: Vendor PN
A2: 245099 | B2: HYDR IMPL.LOCK.SET | C2: 615 | D2: =C2*1.05*1.05 -> 678.0375 | E2: 245099
A3: 246616 | B3: HYDR IMPL.LOCK.SET EURO | C3: 615 | D3: =C3*1.05*1.05 -> 678.0375 | E3: 246616
A4: 246800 | B4: HYDR.IMPLEM.LOCK. EURO/E-FAUCH | C4: 615 | D4: 678.0375 | E4: 246800
A5: 301605 | B5: SELECTO FIX MK3(3) REDSKAPSDEL | C5: 331 | D5: 364.9275 | E5: 301605
A6: 301607 | B6: SELECTO FIX MK3(3) LASTARDEL | C6: 331 | D6: 364.9275 | E6: 301607
A7: 301852 | B7: HOSE SET WITH SEC.VALVE | C7: 530 | D7: 584.325 | E7: 301852
A8: 301921 | B8: AAC Q710-770, Q920-Q10·80 | C8: 331 | D8: 364.9275 | E8: 301921
A9: 313325 | B9: SELECTO 4 MK3 | C9: 362 | D9: 399.105 | E9: 313325
A10: 313411 | B10: LEVER KIT SELECTO | C10: 169 | D10: 186.3225 | E10: 313411
A11: 313413 | B11: SELECTO-QUICK III 450-600 | C11: 813 | D11: 896.3325 | E11: 313413
A12: 313414 | B12: SELECTO-QUICK IV 450-600 | C12: 700 | D12: 771.75 | E12: 313414
A13: 314010 | B13: SOFTDRIVE Q310-Q660 | C13: 897 | D13: 988.9425 | E13: 314010
A14: 314050 | B14: SOFTDRIVE Q 790 | C14: 897 | D14: 988.9425 | E14: 314050
A15: 314070 | B15: SOFTDRIVE Q465,675,695 | C15: 897 | D15: 988.9425 | E15: 314070
A16: 317015 | B16: ERGODRIVE DEUTZ DX | C16: 1494 | D16: 1647.135 | E16: 317015
A17: 317043 | B17: HYDR SET (B) FORD 8210 | C17: 1494 | D17: 1647.135 | E17: 317043
A18: 317044 | B18: HYDR.SET (B) FORD 5110-7610 | C18: 1494 | D18: 1647.135 | E18: 317044
A19: 317046 | B19: HYDR SET (B) FORD 5110-7810 LS | C19: 1494 | D19: 1647.135 | E19: 317046
A20: 317047 | B20: HYDR.SET (B) FORD 2910-4110 | C20: 1494 | D20: 1647.135 | E20: 317047
A21: 317048 | B21: HYDR SET (B) FORD 6710-7710 | C21: 1494 | D21: 1647.135 | E21: 317048
A22: 317049 | B22: HYDR.SET (B) FORD 7810 | C22: 1494 | D22: 1647.135 | E22: 317049
A23: 317051 | B23: HYDR SET (B) FORD 3430-5030 | C23: 1494 | D23: 1647.135 | E23: 317051
A24: 317059 | B24: HYDR SET (B) JD 17-2850 MC1/CC | C24: 1494 | D24: 1647.135 | E24: 317059
A25: 317061 | B25: HYDR SET (B) JD 3040-3350 | C25: 1494 | D25: 1647.135 | E25: 317061
A26: 317081 | B26: HYDR SET (B) MF 194F-394H | C26: 1494 | D26: 1647.135 | E26: 317081
A27: 317084 | B27: HYDR SET (B) MF 265 | C27: 1494 | D27: 1647.135 | E27: 317084
A28: 317121 | B28: HYDR SET (B) SAME ANTARES 110 | C28: 1494 | D28: 1647.135 | E28: 317121
A29: 317132 | B29: HYDR SET (B) KUBOTA M50-6030 | C29: 1494 | D29: 1647.135 | E29: 317132
A30: 317133 | B30: HYDR SET (B) KUBOTA M70-8030 | C30: 1494 | D30: 1647.135 | E30: 317133
A31: 317134 | B31: HYDR SET (B) KUBOTA M69-8950 | C31: 1494 | D31: 1647.135 | E31: 317134
A32: 317135 | B32: HYDR SET (B) KUBOTA M75-9580 | C32: 1494 | D32: 1647.135 | E32: 317135
A33: 317136 | B33: HYDR SET (B) KUBOTA L48-5450 | C33: 1494 | D33: 1647.135 | E33: 317136
A34: 317146 | B34: HYDR SET (B) JD 4050-4455 | C34: 1494 | D34: 1647.135 | E34: 317146
A35: 317147 | B35: HYDR SET (B) SAME LASER 13-150 | C35: 1494 | D35: 1647.135 | E35: 317147
A36: 317148 | B36: HYDR SET (B) AGCO-ALLIS 4650- | C36: 1494 | D36: 1647.135 | E36: 317148
A37: 317149 | B37: HYDR SET (B) AGCO-ALLIS | C37: 1494 | D37: 1647.135 | E37: 317149
A38: 317150 | B38: HYDR SET (B) AGCO-ALLIS | C38: 1494 | D38: 1647.135 | E38: 317150
A39: 317151 | B39: HYDR SET (B) AGCO-ALLIS | C39: 1494 | D39: 1647.135 | E39: 317151
A40: 317155 | B40: HYDR SET (B) AGCO-ALLIS 7600 | C40: 1494 | D40: 1647.135 | E40: 317155
A41: 317162 | B41: HYDR.SET (B) D.I.Y. | C41: 1494 | D41: 1647.135 | E41: 317162
A42: 317165 | B42: HYDR SET (B) ZETOR 3320-6340 | C42: 1494 | D42: 1647.135 | E42: 317165
A43: 317185 | B43: HYDR SET (B) landini adv | C43: 1494 | D43: 1647.135 | E43: 317185
A44: 317202 | B44: HYDR SET (B) MF 342-399 | C44: 1494 | D44: 1647.135 | E44: 317202
A45: 317204 | B45: HYDR SET (B) CASE 585-4240 (L) | C45: 1494 | D45: 1647.135 | E45: 317204
A46: 317211 | B46: HYDR SET (B) SAME ARGON | C46: 1494 | D46: 1647.135 | E46: 317211
A47: 317215 | B47: HYDR.SET (B) LANDINI BLIZZARD | C47: 1494 | D47: 1647.135 | E47: 317215
A48: 317216 | B48: HYD.SET (B) FORD | C48: 1494 | D48: 1647.135 | E48: 317216
A49: 317217 | B49: HYDR SET (B) JD 8100-8400 | C49: 1494 | D49: 1647.135 | E49: 317217
A50: 317222 | B50: HYDR.SET KUBOTA M4700F-5400F | C50: 1494 | D50: 1647.135 | E50: 317222
A51: 317225 | B51: HYDR.SET (B) MF | C51: 1494 | D51: 1647.135 | E51: 317225
A52: 317226 | B52: HYDR SET (B) MF 8110-30 | C52: 1494 | D52: 1647.135 | E52: 317226
A53: 317234 | B53: HYDR SET (B) MF 365-398 ROPS | C53: 1494 | D53: 1647.135 | E53: 317234
A54: 317240 | B54: HYDR SET NH M100-160,8160-8560 | C54: 1494 | D54: 1647.135 | E54: 317240
A55: 317241 | B55: HYDR SET NH M100-160,8160-8560 | C55: 1494 | D55: 1647.135 | E55: 317241
A56: 317242 | B56: HYDR SET NH L60-95,4635-7535 L | C56: 1494 | D56: 1647.135 | E56: 317242
A57: 317249 | B57: HYDR SET SAME/LAMB 60/70 | C57: 1494 | D57: 1647.135 | E57: 317249
A58: 317251 | B58: HYDR SET MF 240,253 4WD | C58: 1494 | D58: 1647.135 | E58: 317251
A59: 317257 | B59: HYD.SET AGCO ALLIS | C59: 1494 | D59: 1647.135 | E59: 317257
A60: 317260 | B60: HYD.SET FORD 3910-4630 | C60: 1494 | D60: 1647.135 | E60: 317260
A61: 317275 | B61: HYDR SET JD 5300-5500 | C61: 1494 | D61: 1647.135 | E61: 317275
A62: 317281 | B62: HYDR SET NH 3010 | C62: 1494 | D62: 1647.135 | E62: 317281
A63: 317282 | B63: HYD.SET MF 231,240,253,261 | C63: 1494 | D63: 1647.135 | E63: 317282
A64: 317284 | B64: HYDR.SET MF 283 | C64: 1494 | D64: 1647.135 | E64: 317284
A65: 317296 | B65: HYDR SET ZETOR 4341-7341 | C65: 1494 | D65: 1647.135 | E65: 317296
A66: 317297 | B66: HYDR SET KUBOTA M8200,M9000 | C66: 1494 | D66: 1647.135 | E66: 317297
A67: 317298 | B67: HYDR SET JD 4020-4430 | C67: 1494 | D67: =C67*1.05*1.05 -> 1647.135 | E67: 317298
A68: 317302 | B68: HYDR SET LANDINI 60,70 | C68: 1494 | D68: 1647.135 | E68: 317302
A69: 317303 | B69: HYD.SET AGCO ALLIS/WHITE | C69: 1494 | D69: 1647.135 | E69: 317303
A70: 317304 | B70: HYDR SET ZETOR 7540-10540 | C70: 1494 | D70: 1647.135 | E70: 317304
A71: 317305 | B71: HYDR SET AGROPLUS 75-100 | C71: 1494 | D71: 1647.135 | E71: 317305
A72: 317306 | B72: HYD.SET AGCO ALLIS/WHITE | C72: 1494 | D72: 1647.135 | E72: 317306
A73: 317318 | B73: HYDR SET MF 6110-6150 LS | C73: 1494 | D73: 1647.135 | E73: 317318
A74: 317319 | B74: HYDR SET MF 6160-6190 LS | C74: 1494 | D74: 1647.135 | E74: 317319
A75: 317322 | B75: HYDR SET DEUTZ AGROPLUS 70 | C75: 1494 | D75: 1647.135 | E75: 317322
A76: 317323 | B76: HYDR SET SAME/LAMBORGHINI | C76: 1494 | D76: 1647.135 | E76: 317323
A77: 317324 | B77: HYDR SET MF 6235-6265 | C77: 1494 | D77: 1647.135 | E77: 317324
A78: 317326 | B78: HYDR SET MF 4260,4270 ROPS | C78: 1494 | D78: 1647.135 | E78: 317326
A79: 317331 | B79: HYDR SET MF 6260-6290 | C79: 1494 | D79: 1647.135 | E79: 317331
A80: 317335 | B80: HYDR SET KUBOTA M8200,M9000 | C80: 1494 | D80: 1647.135 | E80: 317335
A81: 317337 | B81: HYDR SET MF 8210-8260 | C81: 1494 | D81: 1647.135 | E81: 317337
A82: 317338 | B82: HYDR SET NH M100-160,8160-8560 | C82: 1494 | D82: 1647.135 | E82: 317338
A83: 317342 | B83: HYDR SET NEW H TNS | C83: 1494 | D83: 1647.135 | E83: 317342
A84: 317348 | B84: HYDR SET SAME 110,130 /LAMBORG | C84: 1494 | D84: 1647.135 | E84: 317348
A85: 317503 | B85: HYDR SET KUBOTA M4900-M6800 | C85: 1494 | D85: 1647.135 | E85: 317503
A86: 317506 | B86: HYDR SET NEW HOLLAND TN55-75 | C86: 1494 | D86: 1647.135 | E86: 317506
A87: 317507 | B87: HYD.SET LANDINI ATLAS 70-90 | C87: 1494 | D87: 1647.135 | E87: 317507
A88: 317509 | B88: HYDR SET JD 5310N-5510N | C88: 1494 | D88: 1647.135 | E88: 317509
A89: 317521 | B89: HYDR SET DEUTZ AGROLUX | C89: 1494 | D89: 1647.135 | E89: 317521
A90: 317523 | B90: HYDR.SET DEUTZ AGROLUX 80 | C90: 1494 | D90: 1647.135 | E90: 317523
A91: 320155 | B91: SUBFR UM JD 4050-4450 | C91: 3049 | D91: 3361.5225 | E91: 320155
A92: 320255 | B92: SUBFR SAME ANTARES | C92: 3049 | D92: 3361.5225 | E92: 320255
A93: 320285 | B93: SUBFR SET UM FORD 8210 | C93: 2596 | D93: 2862.09 | E93: 320285
A94: 320325 | B94: SUBFR SAME-LASER 130 | C94: 2596 | D94: 2862.09 | E94: 320325
A95: 320335 | B95: SUBFR SAME 150-AGCO 7650 | C95: 2596 | D95: 2862.09 | E95: 320335
A96: 320435 | B96: SUBFR SET UM IH 886 | C96: 2596 | D96: 2862.09 | E96: 320435
A97: 320445 | B97: SUBFR SET UM LANDINI LEGEND | C97: 3049 | D97: 3361.5225 | E97: 320445
A98: 320605 | B98: SUBFR SET UM NEWH M100-160 etc | C98: 3049 | D98: 3361.5225 | E98: 320605
A99: 320625 | B99: SUBFRAME AGCO-A 9735,9745 | C99: 3049 | D99: 3361.5225 | E99: 320625
A100: 320635 | B100: SUBFRAME AGCO-W 8310,8410 | C100: 3049 | D100: 3361.5225 | E100: 320635
A101: 320734 | B101: SUBFR SET UM MF 8240-8250 | C101: 3049 | D101: 3361.5225 | E101: 320734
A102: 320744 | B102: SUBFR SET UM MF 8250-8260 | C102: 3049 | D102: 3361.5225 | E102: 320744
A103: 320915 | B103: SUBFR SET UM NEWH TM115-165etc | C103: 3049 | D103: 3361.5225 | E103: 320915
A104: 320945 | B104: SUBFR SET UM MF 8240,8250 | C104: 3049 | D104: 3361.5225 | E104: 320945
A105: 320964 | B105: SUBFR UM C-IH MAXXUM 100-170 | C105: 3049 | D105: 3361.5225 | E105: 320964
A106: 320975 | B106: SUBFR SET SAME 110,130/LAMBORG | C106: 3049 | D106: 3361.5225 | E106: 320975
A107: 324014 | B107: SUBFR SET UL CASE MAGNUM | C107: 3643 | D107: 4016.4075 | E107: 324014
A108: 324035 | B108: SUBFR SET UL JD 4755-5955 | C108: 3643 | D108: 4016.4075 | E108: 324035
A109: 325505 | B109: SUBFR FORD 29-4110 | C109: 2219 | D109: 2446.4475 | E109: 325505
A110: 340215 | B110: SUBFR MF 399 | C110: 2219 | D110: 2446.4475 | E110: 340215
A111: 341035 | B111: SUBFR FORD 7810 | C111: 2596 | D111: 2862.09 | E111: 341035
A112: 341124 | B112: SUBFR FORD 34-4630 | C112: 2219 | D112: 2446.4475 | E112: 341124
A113: 341384 | B113: SUBFR JD 1750-1950 CC2 | C113: 2219 | D113: 2446.4475 | E113: 341384
A114: 341505 | B114: SUBFR MF 365-398 | C114: 2219 | D114: 2446.4475 | E114: 341505
A115: 341555 | B115: SUBFRAME AGCO-A 4650, 4660 | C115: 2219 | D115: 2446.4475 | E115: 341555
A116: 341575 | B116: SUBFRAME AGCO-ALLIS | C116: 2219 | D116: 2446.4475 | E116: 341575
A117: 341585 | B117: SUBFRAME AGCO-ALLIS | C117: 2219 | D117: 2446.4475 | E117: 341585
A118: 341645 | B118: SUBFRAME AGCO-ALLIS | C118: 2219 | D118: 2446.4475 | E118: 341645
A119: 341715 | B119: SUBFRAME AGCO-WHITE 6065 | C119: 2219 | D119: 2446.4475 | E119: 341715
A120: 341725 | B120: SUBFRAME AGCO-WHITE 6085 | C120: 2219 | D120: 2446.4475 | E120: 341725
A121: 341925 | B121: SUBFR ZETOR 5011-7745 | C121: 2219 | D121: 2446.4475 | E121: 341925
A122: 341954 | B122: SUBFRAME DEUTZ | C122: 2219 | D122: 2446.4475 | E122: 341954
A123: 341965 | B123: SUBFR SET ZETOR 5011-7745 | C123: 2219 | D123: 2446.4475 | E123: 341965
A124: 342005 | B124: SUBFR KUBOTA M521 | C124: 2219 | D124: 2446.4475 | E124: 342005
A125: 342015 | B125: SUBFR KUBOTA M541 | C125: 2219 | D125: 2446.4475 | E125: 342015
A126: 342024 | B126: *SUBFR KUBOTA M542 | C126: 2219 | D126: 2446.4475 | E126: 342024
A127: 342035 | B127: SUBF.FORD 56-7610 N.AM | C127: 2219 | D127: 2446.4475 | E127: 342035
A128: 342045 | B128: SUBF.FORD 67-7710 N.AM | C128: 2219 | D128: 2446.4475 | E128: 342045
A129: 342065 | B129: SUBFR KUBOTA M511 | C129: 2219 | D129: 2446.4475 | E129: 342065
A130: 342084 | B130: *SUBFR KUBOTA 75-9580 | C130: 2219 | D130: 2446.4475 | E130: 342084
A131: 342105 | B131: SUBF SET KUBOTA M4700F-5400F | C131: 2219 | D131: =C131*1.05*1.05 -> 2446.4475 | E131: 342105
A132: 342125 | B132: SUBFRAME KUBOTA 7030 SU | C132: 2219 | D132: 2446.4475 | E132: 342125
A133: 342154 | B133: SUBFR SET KUBOTA M8200,M9000 | C133: 2219 | D133: 2446.4475 | E133: 342154
A134: 343235 | B134: SUBFR FORD 4830-5030 | C134: 2219 | D134: 2446.4475 | E134: 343235
A135: 343375 | B135: SUBFR SET MF 365-398 | C135: 2219 | D135: 2446.4475 | E135: 343375
A136: 343415 | B136: SUBFR SET MF 396-399 | C136: 2219 | D136: 2446.4475 | E136: 343415
A137: 343485 | B137: SUBFR ZETOR 4340-7745 | C137: 2219 | D137: 2446.4475 | E137: 343485
A138: 343605 | B138: SUBFR SET MF377-1007/LANDINI | C138: 2219 | D138: 2446.4475 | E138: 343605
A139: 343614 | B139: SUBFR SET LAND 50/ MF233-253 | C139: 2219 | D139: 2446.4475 | E139: 343614
A140: 343634 | B140: SUBFR LANDINI 65-85/MF273-393 | C140: 2219 | D140: 2446.4475 | E140: 343634
A141: 343635 | B141: SUBFR LANDINI BLIZZARD | C141: 2219 | D141: 2446.4475 | E141: 343635
A142: 343845 | B142: SUBFR SET MF 3075-6150 | C142: 2219 | D142: 2446.4475 | E142: 343845
A143: 344224 | B143: SUBFR SET CASE MAXXUM 5120 | C143: 2219 | D143: 2446.4475 | E143: 344224
A144: 344444 | B144: SUBFRAME MF 261 2WD | C144: 2219 | D144: 2446.4475 | E144: 344444
A145: 344455 | B145: SUBFR MF 362 ROPS | C145: 2219 | D145: 2446.4475 | E145: 344455
A146: 344534 | B146: SUBFR SET FORD 5640-7740 | C146: 2219 | D146: 2446.4475 | E146: 344534
A147: 344545 | B147: SUBFR FORD 78-8340 | C147: 2596 | D147: 2862.09 | E147: 344545
A148: 344554 | B148: SUBFR MF 8110-8130 | C148: 3049 | D148: 3361.5225 | E148: 344554
A149: 344605 | B149: SUBFR SAME 100.6/LAMB 1060 | C149: 3049 | D149: 3361.5225 | E149: 344605
A150: 344614 | B150: SUBFR SET MF 362-372-382 | C150: 2219 | D150: 2446.4475 | E150: 344614
A151: 344675 | B151: SUBFR DEUTZ AGROPLUS 60 | C151: 2219 | D151: 2446.4475 | E151: 344675
A152: 344854 | B152: SUBFR. NEWH 3010 S 2WD | C152: 2219 | D152: 2446.4475 | E152: 344854
A153: 344935 | B153: SUBFR JD 22-2850 SG2 | C153: 2219 | D153: 2446.4475 | E153: 344935
A154: 344955 | B154: SUBFR JD 3040-3350 | C154: 2596 | D154: 2862.09 | E154: 344955
A155: 345004 | B155: SUBFRAME CASE 3210-3220 ROPS | C155: 2219 | D155: 2446.4475 | E155: 345004
A156: 345014 | B156: SUBFRAME CASE 3230-4240 ROPS | C156: 2219 | D156: 2446.4475 | E156: 345014
A157: 345205 | B157: SUBFR SET CASE 585-995, 3230-4 | C157: 2219 | D157: 2446.4475 | E157: 345205
A158: 345275 | B158: SUBF SET JD 4020 | C158: 2219 | D158: 2446.4475 | E158: 345275
A159: 345285 | B159: SUBF SET JD 4430 | C159: 2596 | D159: 2862.09 | E159: 345285
A160: 345345 | B160: SUBFR SET LANDINI GLOBUS 60,70 | C160: 2219 | D160: 2446.4475 | E160: 345345
A161: 345355 | B161: SUBFRAME SET AGCO 8775,8785 | C161: 2596 | D161: 2862.09 | E161: 345355
A162: 345365 | B162: SUBFRAME SET AGCO W 67-6810 | C162: 2596 | D162: 2862.09 | E162: 345365
A163: 345375 | B163: SUBFR SET ZETOR 7540 | C163: 2219 | D163: 2446.4475 | E163: 345375
A164: 345385 | B164: SUBFR ZETOR 8540-9540 | C164: 2219 | D164: 2446.4475 | E164: 345385
A165: 345395 | B165: SUBFR ZETOR 10540 | C165: 2596 | D165: 2862.09 | E165: 345395
A166: 345434 | B166: SUBFR SET CASE CX50-60 | C166: 2219 | D166: 2446.4475 | E166: 345434
A167: 345445 | B167: SUBFR SET SAME SILVER/LAMB | C167: 2596 | D167: 2862.09 | E167: 345445
A168: 345475 | B168: SUBFRAME AGCO-WHITE 6065 | C168: 2219 | D168: 2446.4475 | E168: 345475
A169: 345495 | B169: SUBFRAME AGCO-ALLIS 8745,8765 | C169: 2219 | D169: 2446.4475 | E169: 345495
A170: 345505 | B170: SUBFRAME AGCO-ALLIS 8745,8765 | C170: 2219 | D170: 2446.4475 | E170: 345505
A171: 345515 | B171: SUBFRAME AGCO-WHITE 6410,6510 | C171: 2219 | D171: 2446.4475 | E171: 345515
A172: 345615 | B172: SUBFR SAME 60/LAMB 664-60 | C172: 2219 | D172: 2446.4475 | E172: 345615
A173: 345695 | B173: SUBFR DEUTZ AGROPLUS 70 | C173: 2219 | D173: 2446.4475 | E173: 345695
A174: 345725 | B174: SUBFR SET ZETOR 3321,3341 | C174: 2219 | D174: 2446.4475 | E174: 345725
A175: 345755 | B175: SUBFR SET MF 6255,6265 | C175: 2219 | D175: 2446.4475 | E175: 345755
A176: 345825 | B176: SUBFRAME NH 6635, 7635 | C176: 2219 | D176: 2446.4475 | E176: 345825
A177: 345865 | B177: SUBFR SET AGROPLUS 75,85,95 | C177: 2219 | D177: 2446.4475 | E177: 345865
A178: 345875 | B178: SUBFR SET AGROPLUS 100 | C178: 2219 | D178: 2446.4475 | E178: 345875
A179: 345924 | B179: SUBFR SET JD 6010-6410 | C179: 2219 | D179: 2446.4475 | E179: 345924
A180: 345955 | B180: SUBFR SAME 70/LAMB 674-70 | C180: 2219 | D180: 2446.4475 | E180: 345955
A181: 345965 | B181: SUBFR SAME 80-90/LAMB 7-874 | C181: 2219 | D181: 2446.4475 | E181: 345965
A182: 345984 | B182: SUBF.SET NEW H TN55S-TN75S | C182: 2219 | D182: 2446.4475 | E182: 345984
A183: 346015 | B183: SUBFRAME MF 4225-4255 ROPS | C183: 2219 | D183: 2446.4475 | E183: 346015
A184: 346025 | B184: SUBFR MF 4260,4270 ROPS | C184: 2219 | D184: 2446.4475 | E184: 346025
A185: 346054 | B185: SUBFR SET US CASE MX 80-100 | C185: 2596 | D185: 2862.09 | E185: 346054
A186: 346064 | B186: SUBFR SET US MC CORMICK MC 115 | C186: 2596 | D186: 2862.09 | E186: 346064
A187: 346094 | B187: SUBF.SET NEW H TN55D-TN75D | C187: 2219 | D187: 2446.4475 | E187: 346094
A188: 346194 | B188: SUBFR SET LANDINI REX/MF 3225S | C188: 2219 | D188: 2446.4475 | E188: 346194
A189: 346274 | B189: SUBF SET MF 240, 253 4WD | C189: 2219 | D189: 2446.4475 | E189: 346274
A190: 346285 | B190: SUBFR SAME 70/LAMB 674-70 | C190: 2219 | D190: 2446.4475 | E190: 346285
A191: 346425 | B191: SUBFR ZETOR 4321-7341 | C191: 2219 | D191: 2446.4475 | E191: 346425
A192: 346515 | B192: SUBF SET LANDINI ATLAS 70-85 | C192: 2219 | D192: 2446.4475 | E192: 346515
A193: 346525 | B193: SUBFR SET LANDINI GHIBLI 80-10 | C193: 2219 | D193: 2446.4475 | E193: 346525
A194: 346544 | B194: SUBFR SET KUBOTA M8200,M9000 | C194: 2219 | D194: 2446.4475 | E194: 346544
A195: 346555 | B195: SUBF SET LANDINI ATLAS 90 | C195: 2219 | D195: =C195*1.05*1.05 -> 2446.4475 | E195: 346555
A196: 346575 | B196: SUBFR SET LANDINI GLOBUS 55/ M | C196: 2219 | D196: 2446.4475 | E196: 346575
A197: 346665 | B197: SUBFR SET MF 6235-6255 | C197: 2219 | D197: 2446.4475 | E197: 346665
A198: 346675 | B198: SUBFR SET MF 6235-6245 | C198: 2219 | D198: 2446.4475 | E198: 346675
A199: 346685 | B199: SUBFR SET LANDINI MYTHOS 90,10 | C199: 2219 | D199: 2446.4475 | E199: 346685
A200: 346715 | B200: SUBFR MF 6160-6180 | C200: 2596 | D200: 2862.09 | E200: 346715
... 1661 more rows

Sheet Notes (hidden)
A1: Note # | B1: Description
A3: =A2+1 -> 1 | B3: Hydraulic Set 15097BFA for Load Sense tractors
A4: =A3+1 -> 2 | B4: Deluxe Hose Set for use with factory blue joystick
A5: 3 | B5: Subframe adapted for tractors with/without 2.5 tonne front hitch
A6: 4 | B6: DS Subframe 900mm - order a DS Base Loader
A7: 5 | B7: For Tractors with Underslung Exhaust
A8: 6 | B8: For Tractors with Vertical Cab Corner Post Exhaust
A9: 7 | B9: Deluxe hose kit is only compatible prior to SN T262090
A10: 8 | B10: Front weight bracket must be removed
A11: 9 | B11: Not compatible with 60" tread spacing and R30 tires
A12: 10 | B12: Order conversion kit #5034021 (new loader to older valves)
A13: 11 | B13: US Width
A14: 12 | B14: UM Width
A15: 13 | B15: For Cab Tractors order hydraulic set 317204
A16: 14 | B16: For tractors without Bosch Valve or Power Beyond Plate use Hyd Set 15063BAC
A17: 15 | B17: For ROPS Tractors order Hyd Set 15076BAA
A18: 16 | B18: Subframe designed for Horizontal Exhaust only
A19: 17 | B19: Tractor must be equipped with Power Beyond Plate
A20: 18 | B20: Subframe includes Front Brackets only. If tractor does not have rear brackets, order 14321996 at $0 as well.
A21: 19 | B21: Order Ergodrive 15325BAA load sensing for serial numbers up to 1008085 (2008)
A22: 20 | B22: Loader Q31/Q36 must be ordered with long bearing boxes for tractors with front wheels larger then 420/70 R24.
A23: 21 | B23: If tractor has 75 litre hyd pump & no front-axle suspension, a special plug is needed for L-S signal. Order from SDF: Ref No: 04454514.4.
A24: 22 | B24: Hose kit 10377307C does not fit tractors with air pressure equipment.
A25: 23 | B25: Tractors manufactured after 2006-09-01 and without front-axle suspension a special plug is needed for L-S signal. Order from SDF: Ref No. 04454514.4.
A26: 24 | B26: Hose kit 10378307C doesn't fit tractors equipped with adaptor plate at rear hydraulics for front hitch.
A27: 25 | B27: For Tractors w/o Power beyond. Order shuttle valve 2.3729.686.0 from SDF
A28: 26 | B28: Adapted for tractors with or without front axle suspension
A29: 27 | B29: If tractor is equipped with Sauter front hitch, contact Sauter for more information.
A30: 28 | B30: Q41 and Q46 will fit if tires are less than 14.9X24
A31: 29 | B31: For Tractors built prior to 2004, use Hydraulic Set 15006BAA , also fits tractors built after 2004 with 3 remotes
A32: 30 | B32: To use hydraulic set, Non Premium Tractors must be equipped with John Deere Power Beyond Plate
A33: 31 | B33: For "N" Narrow only use Q21 or Q26
A34: 32 | B34: Q21, Q26 not compatible with the front weight bracket
A35: 33 | B35: Tractor must be equiped with JD power beyond plate # R259621 and adaptor set # RE251179.
A36: 34 | B36: Q61/Q65 is compatible with 2WD
A37: 35 | B37: Order subframe 14324824 for tractors produced before SN 340001
A38: 36 | B38: If the tractor has a front hitch,order subframe 14326154
A39: 37 | B39: If the tractor has a front hitch, order subframe 14326364
A40: 38 | B40: If the tractor has a front hitch, order subframe 14326314
A41: 39 | B41: If the tractor has Zuidberg front hitch, order subframe 14340034
A42: 40 | B42: Q51/Q56/Q58 is not compatible with front hitch.
A43: 41 | B43: Required to order part # RE58763 & R196840 from JD for hydraulic connection.
A44: 42 | B44: If tractor has original front linkage, use 14327334
A45: 43 | B45: Subframe does not include Grill Guard. Order GG No.14220113 for tractors without front hitch. $0
A46: 44 | B46: Subframe does not include Grill Guard. Order GG No.14220114 for tractors with JD front hitch. $0
A47: 45 | B47: Power beyond plate for Hydraulic Set must be ordered from John Deere
A48: 46 | B48: Order conversion kit #5034021 (new loader to older valves)
A49: 47 | B49: Hose kit serviced from rear remotes
A50: 48 | B50: Steering must be limited to accommodate for the subframe side rail
A51: 49 | B51: Joystick Bracket will need to be fabricated for Cab Tractors
A52: 50 | B52: For M5040 ROPS < SN 83013/M60/85/9540 ROPS < SN 21001 M7040 ROPS < SN 13001 / M6040 CAB < SN 83098 / M7040 CAB < SN 83151 / M8540 CAB < SN 83060 / M9540 CAB < SN 83314 - Order Hydraulic Kit No. 15124BEA
A53: 51 | B53: Low Profile models will require modifications to the underslung exhaust.
A54: 52 | B54: Requires Retaining Fork Set 10348131 ($0)
A55: 53 | B55: Kubota front weight frame (M9265) has to be removed or modified
A56: 54 | B56: Will only fit FIXED front axle
A57: 55 | B57: Adapted for Models with Serial Number S
A58: 56 | B58: Will not fit Tractors with Tier 2 Green engines
A59: 57 | B59: If equipped with Bondioli and Pavesi rear remote valve and SN between BV11001 - BV33001, a metric PB sleeve (AGCO part # 6286183M1), adaptor #10 JIC female to #12 JIC male (Quicke part # 5028039 - $0) are required.
A60: 58 | B60: For Steepnose Tractors order Grill Guard 14323661
A61: 59 | B61: Q31, Q36 only compatible with Front Tires 13.6XR24 or smaller
A62: 60 | B62: On Open Center Twin Flow Tractors combining valve cannot be used
A63: 61 | B63: For Load Sensing Tractors order Hydraulic Set 15097BFA.
A64: 62 | B64: Subframe adapted for tractors with or without front hitch
A65: 63 | B65: Order Hydraulic Set 15022BAA for Tractors with Open Center Hydraulic Systems.
A66: 64 | B66: On open center Twin Flow tractors combining valve cannot be used
A67: 65 | B67: Order hydraulic set 15020BAA for load sense tractors up to SN T008085.
A68: =A67+1 -> 66 | B68: Order rear axle extension set 14100573. $311
A69: 67 | B69: Order 15100BFA for tractors after serial no T008085 with open centre hyd system.
A70: 68 | B70: Hose set Deluxe will only fit tractors with joystick in the armrest.
A71: 69 | B71: Provide Tractor serial number at time of order
A72: 70 | B72: Please call Alo with tractor details to ensure correct subframe
A73: 71 | B73: Will not fit tractors with hydraulic connections in front of Cab or ROPS.
A74: 72 | B74: Use 15174BAA for Open Center Hydraulic Systems.
A75: 73 | B75: Use 15106BAA for Open Center Hydraulic Systems on 6100 series or 317070 for Open Center on 3050 to 3065.
A76: 74 | B76: For Cab Tractors order hydraulic set 15102BAA.
A77: 75 | B77: Hydraulic Set is only compatible with the HUSCO rear remote valve
A78: 76 | B78: For tractors up to Serial Number 57260B 18014
A79: 77 | B79: For tractors greater than Serial Number 57260B 18014
A80: 78 | B80: For tractors greater than Serial Number C45009
A81: 79 | B81: For tractors up to Serial Number C45008
A82: 80 | B82: Q31, Q36 loaders are not recommended with tires larger than 13.6 X 24
A83: 81 | B83: 15199BAA will fit ROPS and tractors with factory cab joystick. Cab Tractors without factory joystick order 15197BAC.
A84: 82 | B84: For tractors without Bosch valve without a power beyond order Hydraulic Set 15063BAA.
A85: 83 | B85: For tractors without Bosch valve but with a Power Beyond plate between the 2nd and 3rd section, order Hydraulic Set 15044BAA.
A86: 84 | B86: On XTX215 Tractors with Serial Number less than JE3500994 use subframe 14320044.
A87: 85 | B87: Max Tire Size Q31-Q38 is 440 60R 24
A88: 86 | B88: Subframe will fit platform and footstep versions.
A89: 87 | B89: Base loader requires Extended Bearing Boxes
A90: 88 | B90: The hydraulic sets don't fit the tractors with the hydraulic trailer brake valve.
A91: 89 | B91: Tractors must be equipped with Power Beyond plate for the valve
A92: 90 | B92: Order Subframe set 14320725 for Serial Numbers prior to 116199B
A93: 91 | B93: Order Hyd Set 15087BAA for Serial Numbers prior to 116199B
A94: 92 | B94: For open-center systems, use valve kit no. 15089BAA
A95: 93 | B95: Q61/66 must be ordered with extended bearing boxes for supersteer models only.
A96: 94 | B96: If tractor does not have pre-installed connections to hydraulic auxillary valve, use 15024BAA.
A97: 95 | B97: Order P/B Plate from New Holland for Open Center Systems
A98: 96 | B98: Order 15231BAA Load Sense Valve for double pump tractors.
A99: 97 | B99: Order 15242BAA Load Sense Valve for double pump tractors.
A100: 98 | B100: Valve is serviced from the tractor remote valves
A101: 99 | B101: Subframe is manufactured in France. Longer leadtimes should be expected. Call for availability.
A102: B1 | B102: Subframe designed for tractors with New Axle when Serial Number is >K36108 for 6000 series and >K41108 for 8000 series order adapter kit 10347271 ($155)
A103: B2 | B103: Hydraulic Set is designed for Hi Tech models or all chassis > Serial Number L17307
A104: B3 | B104: Subframe will fit all options except Zuidburg front hitch
A105: B4 | B105: Hydraulic Set joystick mounts on the left hand side.
A106: B5 | B106: Subframe for tractor with or without Zuidberg front hitch
A107: B6 | B107: Order additional kit 14321621 for tractors before SN K36108 ($155)
A108: B7 | B108: Subframe includes Front Brackets only. If tractor does not have rear brackets, order 14322836 at $0 as well.
A109: B8 | B109: Designed for tractors with under slung exhaust pipe.
A110: B9 | B110: Will only fit 4wd tractors.
A111: 100 | B111: Subframe includes Front Brackets only. If tractor does not have rear brackets, order 14322836 at $0 as well.
A112: 101 | B112: The fuel line has to be modified on tractors fitted with dual fuel tanks. Rear axle extensions are not required on some models.
A113: 102 | B113: Only fits tractors manufactured after Jan 1, 2008
A114: 103 | B114: Does not fit tractors with mid electric valves
A115: 104 | B115: Loader size Q66 and larger, NOT AVAILABLE IN MASSEY FERGUSON RED.
A116: A1 | B116: Designed for Rops tractors or tractors with a factory cab
A117: A2 | B117: Subframe will not fit with mid mount mower
A118: A3 | B118: Designed for Rops Tractors only.
A119: A4 | B119: Tractor must be equipped with factory joystick and valve
A120: A5 | B120: Order JD part no S1290468 to complete
A121: A6
A122: A7 | B122: Designed for tractors with Max front Wheel size 24x8.-12
A123: A8 | B123: Not Designed for Supersteer models
A124: A9 | B124: Order CNH part no. SBA340171000 to complete.
A125: A10 | B125: Add Mechanical Self Levelling 160c - 5221797 180c - 5221798
A126: 105 | B126: Does Not Fit TierIV Tractors
A127: 106 | B127: Subframe Does not include Subframe. Order Grille Guard 14220130 for tractors without front Linkage
A128: C5 | B128: If Tractor is not equipped with Loader ready mounts order 60011324

Sheet Implements (hidden)
A1: EURO
A2: Q21 | B2: 11254051F | C2: 11251728F | D2: 11252718F | E2: 11252738F | F2: 11252748F | G2: 11250768F | H2: 11250178F | I2: 11252008F | J2: 11252018F
A3: Q26 | B3: 11254051F | C3: 11251728F | D3: 11252718F | E3: 11252738F | F3: 11252748F | G3: 11250768F | H3: 11250178F | I3: 11252008F | J3: 11252018F
A4: Q31 | B4: 11254051F | C4: 11251728F | D4: 11252718F | E4: 11252738F | F4: 11252748F | G4: 11250768F | H4: 11250178F | I4: 11252008F | J4: 11252018F
A5: Q36 | B5: 11254051F | C5: 11251728F | D5: 11252718F | E5: 11252738F | F5: 11252748F | G5: 11250768F | H5: 11250178F | I5: 11252008F | J5: 11252018F
A6: Q41 | B6: 11254051F | C6: 11251728F | D6: 11252738F | E6: 11252748F | F6: 11250533F | G6: 11250536F | H6: 11250534F | I6: 11250537F | J6: 11250768F | K6: 11250358F | L6: 11252008F | M6: 11252018F | S6: 11251698F | T6: There is a special offer if you order 5 or more of this item!
A7: Q46 | B7: 11254051F | C7: 11251728F | D7: 11252738F | E7: 11252748F | F7: 11250533F | G7: 11250536F | H7: 11250534F | I7: 11250537F | J7: 11250768F | K7: 11250358F | L7: 11252008F | M7: 11252018F | S7: 11251728F | T7: There is a special offer if you order 5 or more of this item!
A8: Q51 | B8: 11254051F | C8: 11251728F | D8: 11252738F | E8: 11252748F | F8: 11250533F | G8: 11250536F | H8: 11250534F | I8: 11250537F | J8: 11250768F | K8: 11250358F | L8: 11252008F | M8: 11252018F | S8: 11252738F | T8: ="" -> 
A9: Q56 | B9: 11254051F | C9: 11251728F | D9: 11252738F | E9: 11252748F | F9: 11250533F | G9: 11250536F | H9: 11250534F | I9: 11250537F | J9: 11250768F | K9: 11250358F | L9: 11252008F | M9: 11252018F | S9: 11252748F | T9: ="" -> 
A10: Q61 | B10: 11254051F | C10: 11251728F | D10: 11252738F | E10: 11252748F | F10: 11250533F | G10: 11250536F | H10: 11250534F | I10: 11250537F | J10: 11250768F | K10: 11250358F | L10: 11252008F | M10: 11252018F | S10: 11250533F | T10: ="" -> 
A11: Q66 | B11: 11254051F | C11: 11251728F | D11: 11252738F | E11: 11252748F | F11: 11250533F | G11: 11250536F | H11: 11250534F | I11: 11250537F | J11: 11250768F | K11: 11250358F | L11: 11252008F | M11: 11252018F | S11: 11250536F | T11: ="" -> 
A12: Q76 | B12: 11254051F | C12: 11251728F | D12: 11252738F | E12: 11252748F | F12: 11250534F | G12: 11250537F | H12: 11250535F | I12: 11250538F | J12: 11250768F | K12: 11250358F | L12: 11252008F | M12: 11252018F | S12: 11250534F | T12: ="" -> 
A13: Q88 | B13: 11254051F | C13: 11251728F | D13: 11252738F | E13: 11252748F | F13: 11250534F | G13: 11250537F | H13: 11250535F | I13: 11250538F | J13: 11250768F | K13: 11250358F | L13: 11252008F | M13: 11252018F | S13: 11250537F | T13: ="" -> 
A14: Q98 | B14: 11254051F | C14: 11251728F | D14: 11252738F | E14: 11252748F | F14: 11262087F | G14: 11250768F | H14: 11250358F | I14: 11252008F | J14: 11252018F | S14: 11250768F | T14: ="" -> 
A15: 160C | B15: 11254051F | C15: 11251728F | D15: 11252718F | S15: 11250358F | T15: ="" -> 
A16: 180C | B16: 11254051F | C16: 11251728F | D16: 11252718F | S16: 11252008F | T16: ="" -> 
A17: X21 | B17: 11254051F | C17: 11251728F | D17: 11252718F | E17: 11252738F | F17: 11252748F | S17: 11252018F | T17: ="" -> 
A18: X26 | B18: 11254051F | C18: 11251728F | D18: 11252718F | E18: 11252738F | F18: 11252748F | S18: 11254051F | T18: There is a special offer if you order 5 or more of this item!
A19: X31 | B19: 11254051F | C19: 11251728F | D19: 11252718F | E19: 11252738F | F19: 11252748F | S19: 11254065F | T19: There is a special offer if you order 5 or more of this item!
A20: X36 | B20: 11254051F | C20: 11251728F | D20: 11252718F | E20: 11252738F | F20: 11252748F | S20: 11252311F | T20: ="" -> 
A21: X41 | B21: 11254051F | C21: 11251728F | D21: 11252718F | E21: 11252738F | F21: 11252748F | S21: 11252331F | T21: ="" -> 
A22: X46 | B22: 11254051F | C22: 11251728F | D22: 11252718F | E22: 11252738F | F22: 11252748F | S22: 11252341F | T22: ="" -> 
A23: X51 | B23: 11254051F | C23: 11251728F | D23: 11252718F | E23: 11252738F | F23: 11252748F | S23: 11251718F | T23: ="" -> 
A24: X56 | B24: 11254051F | C24: 11251728F | D24: 11252718F | E24: 11252738F | F24: 11252748F | S24: 11250535F | T24: ="" -> 
S25: 11250538F | T25: ="" -> 
A26: Skid Steer
A27: Q21 | B27: 11254065F | C27: 11251720F | D27: 11252311F | E27: 11252331F | F27: 11252341F
A28: Q26 | B28: 11254065F | C28: 11251720F | D28: 11252311F | E28: 11252331F | F28: 11252341F
A29: Q31 | B29: 11254065F | C29: 11251720F | D29: 11252311F | E29: 11252331F | F29: 11252341F
A30: Q36 | B30: 11254065F | C30: 11251720F | D30: 11252311F | E30: 11252331F | F30: 11252341F
A31: Q41 | B31: 11254065F | C31: 11251720F | D31: 11252311F | E31: 11252331F | F31: 11252341F
A32: Q46 | B32: 11254065F | C32: 11251720F | D32: 11252311F | E32: 11252331F | F32: 11252341F
A33: Q51
A34: Q56
A35: Q61
A36: Q66
A37: Q76
A38: Q88
A39: Q98
A40: 160C | B40: 11254065F | C40: 11251720F | D40: 11252311F
A41: 180C | B41: 11254065F | C41: 11251720F | D41: 11252311F
A42: X21 | B42: 11254065F | C42: 11251720F | D42: 11252311F | E42: 11252331F | F42: 11252341F
A43: X26 | B43: 11254065F | C43: 11251720F | D43: 11252311F | E43: 11252331F | F43: 11252341F
A44: X31 | B44: 11254065F | C44: 11251720F | D44: 11252311F | E44: 11252331F | F44: 11252341F
A45: X36 | B45: 11254065F | C45: 11251720F | D45: 11252311F | E45: 11252331F | F45: 11252341F
A46: X41 | B46: 11254065F | C46: 11251720F | D46: 11252311F | E46: 11252331F | F46: 11252341F
A47: X46 | B47: 11254065F | C47: 11251720F | D47: 11252311F | E47: 11252331F | F47: 11252341F
A48: X51 | B48: 11254065F | C48: 11251720F | D48: 11252311F | E48: 11252331F | F48: 11252341F
A49: X56 | B49: 11254065F | C49: 11251720F | D49: 11252311F | E49: 11252331F | F49: 11252341F

Sheet Buckets (hidden)
A1: EURO Buckets
A2: Q21 | B2: 11251588F | C2: 11251598F | D2: 11251038F | E2: 11251048F | F2: 11251128F | G2: 11251138F | H2: 11252158F | I2: ="" -> 
A3: Q26 | B3: 11251588F | C3: 11251598F | D3: 11251038F | E3: 11251048F | F3: 11251128F | G3: 11251138F | H3: 11252158F | I3: ="" -> 
A4: Q31 | B4: 11251588F | C4: 11251598F | D4: 11251038F | E4: 11251048F | F4: 11251128F | G4: 11251138F | H4: 11251078F | I4: 11251158F | J4: 11252158F
A5: Q36 | B5: 11251588F | C5: 11251598F | D5: 11251038F | E5: 11251048F | F5: 11251128F | G5: 11251138F | H5: 11251078F | I5: 11251158F | J5: 11252158F
A6: Q41 | B6: 11251038F | C6: 11251048F | D6: 11251058F | E6: 11251078F | F6: 11251148F | G6: 11251158F | H6: 11252158F | I6: ="" -> 
A7: Q46 | B7: 11251038F | C7: 11251048F | D7: 11251058F | E7: 11251078F | F7: 11251148F | G7: 11251158F | H7: 11252158F | I7: ="" -> 
A8: Q51 | B8: 11251038F | C8: 11251048F | D8: 11251058F | E8: 11251078F | F8: 11251088F | G8: 11251158F | H8: 11251808F | I8: 11252158F
A9: Q56 | B9: 11251038F | C9: 11251048F | D9: 11251058F | E9: 11251078F | F9: 11251088F | G9: 11251158F | H9: 11251808F | I9: 11252158F
A10: Q61 | B10: 11251048F | C10: 11251058F | D10: 11251078F | E10: 11251088F | F10: 11251808F | G10: 11251818F | H10: ="" ->  | I10: ="" -> 
A11: Q66 | B11: 11251048F | C11: 11251058F | D11: 11251078F | E11: 11251088F | F11: 11251808F | G11: 11251818F | H11: ="" ->  | I11: ="" -> 
A12: Q76 | B12: 11251048F | C12: 11251058F | D12: 11251078F | E12: 11251088F | F12: 11251098F | G12: 11251808F | H12: 11251818F | I12: 11251828F
A13: Q88 | B13: 11251058F | C13: 11251088F | D13: 11251098F | E13: 11251818F | F13: 11251828F | H13: ="" ->  | I13: ="" -> 
A14: Q98 | B14: 11251087F | C14: 11251097F | H14: ="" ->  | I14: ="" -> 
A15: 160C | B15: 11251938F
A16: 180C | B16: 11251938F
A17: X21 | B17: 11251948F | C17: 11251958F | D17: 11251588F | E17: 11251598F | F17: 11251038F | G17: 11251048F | H17: ="" ->  | I17: ="" -> 
A18: X26 | B18: 11251948F | C18: 11251958F | D18: 11251588F | E18: 11251598F | F18: 11251038F | G18: 11251048F | H18: ="" ->  | I18: ="" -> 
A19: X31 | B19: 11251948F | C19: 11251958F | D19: 11251588F | E19: 11251598F | F19: 11251038F | G19: 11251048F | H19: ="" ->  | I19: ="" -> 
A20: X36 | B20: 11251948F | C20: 11251958F | D20: 11251588F | E20: 11251598F | F20: 11251038F | G20: 11251048F | H20: ="" ->  | I20: ="" -> 
A21: X41 | B21: 11251948F | C21: 11251958F | D21: 11251588F | E21: 11251598F | F21: 11251038F | G21: 11251048F | H21: 11251058F | I21: ="" -> 
A22: X46 | B22: 11251948F | C22: 11251958F | D22: 11251588F | E22: 11251598F | F22: 11251038F | G22: 11251048F | H22: 11251058F | I22: ="" -> 
A23: X51 | B23: 11251948F | C23: 11251958F | D23: 11251588F | E23: 11251598F | F23: 11251038F | G23: 11251048F | H23: 11251058F | I23: ="" -> 
A24: X56 | B24: 11251948F | C24: 11251958F | D24: 11251588F | E24: 11251598F | F24: 11251038F | G24: 11251048F | H24: 11251058F | I24: ="" -> 
A26: Skid Steer Buckets
A27: Q21 | B27: 11251721F | C27: 11251821F
A28: Q26 | B28: 11251721F | C28: 11251821F
A29: Q31 | B29: 11251721F | C29: 11251821F
A30: Q36 | B30: 11251721F | C30: 11251821F
A31: Q41 | B31: 11251721F | C31: 11251821F
A32: Q46 | B32: 11251721F | C32: 11251821F
A33: Q51
A34: Q56
A35: Q61
A36: Q66
A37: Q76
A38: Q88
A39: Q98
A40: 160C | B40: 11251970F | C40: 11251921F | D40: 11251931F
A41: 180C | B41: 11251970F | C41: 11251921F | D41: 11251931F
A42: X21 | B42: 11251941F | C42: 11251951F | D42: 11251721F | E42: 11251821F
A43: X26 | B43: 11251941F | C43: 11251951F | D43: 11251721F | E43: 11251821F
A44: X31 | B44: 11251941F | C44: 11251951F | D44: 11251721F | E44: 11251821F
A45: X36 | B45: 11251941F | C45: 11251951F | D45: 11251721F | E45: 11251821F
A46: X41 | B46: 11251941F | C46: 11251951F | D46: 11251721F | E46: 11251821F
A47: X46 | B47: 11251941F | C47: 11251951F | D47: 11251721F | E47: 11251821F
A48: X51 | B48: 11251941F | C48: 11251951F | D48: 11251721F | E48: 11251821F
A49: X56 | B49: 11251941F | C49: 11251951F | D49: 11251721F | E49: 11251821F
A51: PIN ON BUCKETS
A52: 100C | B52: 11251730F | C52: 11251740F
A53: 140C | B53: 11251760F

Sheet LOADERpro
I1: LOADERpro17.1
B3: Dealer Name: | I3: Date: | U3: Note 1 | V3: =VLOOKUP(T$11,loaders,5,0) ->  | W3: =VLOOKUP(V3,notes,2,0) -> 
U4: Note 2 | V4: =VLOOKUP(T$11,loaders,6,0) ->  | W4: =VLOOKUP(V4,notes,2,0) -> 
B5: Contact: | I5: P.O. No. | R5: =IF(VLOOKUP(P19,Options!A1:E25,4,0)>15,"EURO","") ->  | U5: Note 3 | V5: =VLOOKUP(T$11,loaders,7,0) ->  | W5: =VLOOKUP(V5,notes,2,0) ->  | X5: =IF(ISERROR(R5),"",R5) -> 
R6: =IF(VLOOKUP(P19,Options!A1:E25,4,0)<=15,"",IF(VLOOKUP(P19,Options!A1:E25,4,0)>=47,"","SKID STEER")) ->  | U6: Note 4 | V6: =VLOOKUP(T$11,loaders,8,0) ->  | W6: =VLOOKUP(V6,notes,2,0) ->  | X6: =IF(ISERROR(R6),"",R6) -> 
B7: Address: | I7: Dealer No. | R7: =IF(VLOOKUP(P19,Options!A1:E25,4,0)<15,"PIN ON","") ->  | X7: =IF(ISERROR(R7),"",R7) -> 
F9: State: | K9: Valid thru April 30, 2017
S10: AGCO
S11: AGCO Allis
B12: Tractor Make: | S12: AGCO White | T12: =IF(S$26="AGCO",AGCO!A1,IF(S$26="AGCO White",'AGCO White'!A1,IF(S$26="AGCO Allis",'AGCO Allis'!A1,IF(S$26="Buhler",Buhler!A1,IF(S$26="Case IH",Case!A1,IF(S$26="Challenger",Challenger!A1,IF(S$26="Deutz",Deutz!A1,IF(S$26="John Deere",'John Deere'!A1,IF(S$26="Kubota",Kubota!A1,IF(S$26="Landini",Landini!A1,IF(S$26="Massey Ferguson",MF!A1,IF(S$26="McCormick",McCormick!A1,IF(S$26="New Holland",NH!A1,IF(S$26="Kioti",KIOTI!A1,IF(S$26="Mahindra",MAHINDRA!A1,IF(S$26="Valtra",Valtra!A1,IF(S$26="","",0))))))))))))))))) -> 
S13: Buhler | T13: =IF(S$26="AGCO",AGCO!A2,IF(S$26="AGCO White",'AGCO White'!A2,IF(S$26="AGCO Allis",'AGCO Allis'!A2,IF(S$26="Buhler",Buhler!A2,IF(S$26="Case IH",Case!A2,IF(S$26="Challenger",Challenger!A2,IF(S$26="Deutz",Deutz!A2,IF(S$26="John Deere",'John Deere'!A2,IF(S$26="Kubota",Kubota!A2,IF(S$26="Landini",Landini!A2,IF(S$26="Massey Ferguson",MF!A2,IF(S$26="McCormick",McCormick!A2,IF(S$26="New Holland",NH!A2,IF(S$26="Kioti",KIOTI!A2,IF(S$26="Mahindra",MAHINDRA!A2,IF(S$26="Valtra",Valtra!A2,IF(S$26="","",0))))))))))))))))) -> 
B14: Tractor Model: | Q14: =VLOOKUP(T11,OEM,2,0) ->  | S14: Case IH | T14: =IF(S$26="AGCO",AGCO!A3,IF(S$26="AGCO White",'AGCO White'!A3,IF(S$26="AGCO Allis",'AGCO Allis'!A3,IF(S$26="Buhler",Buhler!A3,IF(S$26="Case IH",Case!A3,IF(S$26="Challenger",Challenger!A3,IF(S$26="Deutz",Deutz!A3,IF(S$26="John Deere",'John Deere'!A3,IF(S$26="Kubota",Kubota!A3,IF(S$26="Landini",Landini!A3,IF(S$26="Massey Ferguson",MF!A3,IF(S$26="McCormick",McCormick!A3,IF(S$26="New Holland",NH!A3,IF(S$26="Kioti",KIOTI!A3,IF(S$26="Mahindra",MAHINDRA!A3,IF(S$26="Valtra",Valtra!A3,IF(S$26="","",0))))))))))))))))) -> 
S15: Challenger | T15: =IF(S$26="AGCO",AGCO!A4,IF(S$26="AGCO White",'AGCO White'!A4,IF(S$26="AGCO Allis",'AGCO Allis'!A4,IF(S$26="Buhler",Buhler!A4,IF(S$26="Case IH",Case!A4,IF(S$26="Challenger",Challenger!A4,IF(S$26="Deutz",Deutz!A4,IF(S$26="John Deere",'John Deere'!A4,IF(S$26="Kubota",Kubota!A4,IF(S$26="Landini",Landini!A4,IF(S$26="Massey Ferguson",MF!A4,IF(S$26="McCormick",McCormick!A4,IF(S$26="New Holland",NH!A4,IF(S$26="Kioti",KIOTI!A4,IF(S$26="Mahindra",MAHINDRA!A4,IF(S$26="Valtra",Valtra!A4,IF(S$26="","",0))))))))))))))))) -> 
S16: Deutz | T16: =IF(S$26="AGCO",AGCO!A5,IF(S$26="AGCO White",'AGCO White'!A5,IF(S$26="AGCO Allis",'AGCO Allis'!A5,IF(S$26="Buhler",Buhler!A5,IF(S$26="Case IH",Case!A5,IF(S$26="Challenger",Challenger!A5,IF(S$26="Deutz",Deutz!A5,IF(S$26="John Deere",'John Deere'!A5,IF(S$26="Kubota",Kubota!A5,IF(S$26="Landini",Landini!A5,IF(S$26="Massey Ferguson",MF!A5,IF(S$26="McCormick",McCormick!A5,IF(S$26="New Holland",NH!A5,IF(S$26="Kioti",KIOTI!A5,IF(S$26="Mahindra",MAHINDRA!A5,IF(S$26="Valtra",Valtra!A5,IF(S$26="","",0))))))))))))))))) -> 
B17: Tractor Specifics: | E17: Version: | G17: =IF(ISERROR(VLOOKUP(T11,loaders,3,0)),"",VLOOKUP(T11,loaders,3,0)) ->  | J17: =IF(ISERROR(VLOOKUP(T11,loaders,2,0)),"",VLOOKUP(T11,loaders,2,0)) ->  | K17: WD | M17: Width: | N17: =IF(ISERROR(P17),"",P17) ->  | P17: =VLOOKUP(T11,loaders,4,0) ->  | S17: John Deere | T17: =IF(S$26="AGCO",AGCO!A6,IF(S$26="AGCO White",'AGCO White'!A6,IF(S$26="AGCO Allis",'AGCO Allis'!A6,IF(S$26="Buhler",Buhler!A6,IF(S$26="Case IH",Case!A6,IF(S$26="Challenger",Challenger!A6,IF(S$26="Deutz",Deutz!A6,IF(S$26="John Deere",'John Deere'!A6,IF(S$26="Kubota",Kubota!A6,IF(S$26="Landini",Landini!A6,IF(S$26="Massey Ferguson",MF!A6,IF(S$26="McCormick",McCormick!A6,IF(S$26="New Holland",NH!A6,IF(S$26="Kioti",KIOTI!A6,IF(S$26="Mahindra",MAHINDRA!A6,IF(S$26="Valtra",Valtra!A6,IF(S$26="","",0))))))))))))))))) -> 
B18: Notes: | C18: =IF(ISERROR(Q14),"",Q14) ->  | S18: Kioti | T18: =IF(S$26="AGCO",AGCO!A7,IF(S$26="AGCO White",'AGCO White'!A7,IF(S$26="AGCO Allis",'AGCO Allis'!A7,IF(S$26="Buhler",Buhler!A7,IF(S$26="Case IH",Case!A7,IF(S$26="Challenger",Challenger!A7,IF(S$26="Deutz",Deutz!A7,IF(S$26="John Deere",'John Deere'!A7,IF(S$26="Kubota",Kubota!A7,IF(S$26="Landini",Landini!A7,IF(S$26="Massey Ferguson",MF!A7,IF(S$26="McCormick",McCormick!A7,IF(S$26="New Holland",NH!A7,IF(S$26="Kioti",KIOTI!A7,IF(S$26="Mahindra",MAHINDRA!A7,IF(S$26="Valtra",Valtra!A7,IF(S$26="","",0))))))))))))))))) ->  | V18: Quicke Grey | W18: =VLOOKUP(P19,Options!A1:C25,3,0) ->  | X18: Quicke Grey
B19: 1 | C19: =IF(ISERROR(W3),"",W3) ->  | S19: Kubota | T19: =IF(S$26="AGCO",AGCO!A8,IF(S$26="AGCO White",'AGCO White'!A8,IF(S$26="AGCO Allis",'AGCO Allis'!A8,IF(S$26="Buhler",Buhler!A8,IF(S$26="Case IH",Case!A8,IF(S$26="Challenger",Challenger!A8,IF(S$26="Deutz",Deutz!A8,IF(S$26="John Deere",'John Deere'!A8,IF(S$26="Kubota",Kubota!A8,IF(S$26="Landini",Landini!A8,IF(S$26="Massey Ferguson",MF!A8,IF(S$26="McCormick",McCormick!A8,IF(S$26="New Holland",NH!A8,IF(S$26="Kioti",KIOTI!A8,IF(S$26="Mahindra",MAHINDRA!A8,IF(S$26="Valtra",Valtra!A8,IF(S$26="","",0))))))))))))))))) ->  | V19: =IF(OR(Options!E$42="U",Options!D$42="1"),"","John Deere Green") ->  | X19: =IF(ISERROR(V19),"",V19) -> 
B20: 2 | C20: =IF(ISERROR(W4),"",W4) ->  | P20: =IF(ISERROR(VLOOKUP(T$11,loaders,9,0)),"",VLOOKUP(T$11,loaders,9,0)) ->  | S20: Landini | T20: =IF(S$26="AGCO",AGCO!A9,IF(S$26="AGCO White",'AGCO White'!A9,IF(S$26="AGCO Allis",'AGCO Allis'!A9,IF(S$26="Buhler",Buhler!A9,IF(S$26="Case IH",Case!A9,IF(S$26="Challenger",Challenger!A9,IF(S$26="Deutz",Deutz!A9,IF(S$26="John Deere",'John Deere'!A9,IF(S$26="Kubota",Kubota!A9,IF(S$26="Landini",Landini!A9,IF(S$26="Massey Ferguson",MF!A9,IF(S$26="McCormick",McCormick!A9,IF(S$26="New Holland",NH!A9,IF(S$26="Kioti",KIOTI!A9,IF(S$26="Mahindra",MAHINDRA!A9,IF(S$26="Valtra",Valtra!A9,IF(S$26="","",0))))))))))))))))) ->  | V20: =IF(OR(Options!E$42="U",Options!D$42="1"),"","Kubota Orange") ->  | X20: =IF(ISERROR(V20),"",V20) -> 
B21: 3 | C21: =IF(ISERROR(W5),"",W5) ->  | P21: =IF(ISERROR(VLOOKUP(T$11,loaders,10,0)),"",VLOOKUP(T$11,loaders,10,0)) ->  | S21: Mahindra | T21: =IF(S$26="AGCO",AGCO!A10,IF(S$26="AGCO White",'AGCO White'!A10,IF(S$26="AGCO Allis",'AGCO Allis'!A10,IF(S$26="Buhler",Buhler!A10,IF(S$26="Case IH",Case!A10,IF(S$26="Challenger",Challenger!A10,IF(S$26="Deutz",Deutz!A10,IF(S$26="John Deere",'John Deere'!A10,IF(S$26="Kubota",Kubota!A10,IF(S$26="Landini",Landini!A10,IF(S$26="Massey Ferguson",MF!A10,IF(S$26="McCormick",McCormick!A10,IF(S$26="New Holland",NH!A10,IF(S$26="Kioti",KIOTI!A10,IF(S$26="Mahindra",MAHINDRA!A10,IF(S$26="Valtra",Valtra!A10,IF(S$26="","",0))))))))))))))))) ->  | V21: =IF(OR(Options!E$42="U",Options!D$42="1"),"","Massey Ferguson Red") -> 
B22: 4 | C22: =IF(ISERROR(W6),"",W6) ->  | P22: =IF(ISERROR(VLOOKUP(T$11,loaders,11,0)),"",VLOOKUP(T$11,loaders,11,0)) ->  | S22: Massey Ferguson | T22: =IF(S$26="AGCO",AGCO!A11,IF(S$26="AGCO White",'AGCO White'!A11,IF(S$26="AGCO Allis",'AGCO Allis'!A11,IF(S$26="Buhler",Buhler!A11,IF(S$26="Case IH",Case!A11,IF(S$26="Challenger",Challenger!A11,IF(S$26="Deutz",Deutz!A11,IF(S$26="John Deere",'John Deere'!A11,IF(S$26="Kubota",Kubota!A11,IF(S$26="Landini",Landini!A11,IF(S$26="Massey Ferguson",MF!A11,IF(S$26="McCormick",McCormick!A11,IF(S$26="New Holland",NH!A11,IF(S$26="Kioti",KIOTI!A11,IF(S$26="Mahindra",MAHINDRA!A11,IF(S$26="Valtra",Valtra!A11,IF(S$26="","",0))))))))))))))))) ->  | V22: =IF(OR(Options!E$42="U",Options!D$42="1"),"","New Holland Blue") ->  | AE22: =VLOOKUP(AD22,Prices!B:E,4,0) -> 
P23: =IF(ISERROR(VLOOKUP(T$11,loaders,12,0)),"",VLOOKUP(T$11,loaders,12,0)) ->  | S23: McCormick | T23: =IF(S$26="AGCO",AGCO!A12,IF(S$26="AGCO White",'AGCO White'!A12,IF(S$26="AGCO Allis",'AGCO Allis'!A12,IF(S$26="Buhler",Buhler!A12,IF(S$26="Case IH",Case!A12,IF(S$26="Challenger",Challenger!A12,IF(S$26="Deutz",Deutz!A12,IF(S$26="John Deere",'John Deere'!A12,IF(S$26="Kubota",Kubota!A12,IF(S$26="Landini",Landini!A12,IF(S$26="Massey Ferguson",MF!A12,IF(S$26="McCormick",McCormick!A12,IF(S$26="New Holland",NH!A12,IF(S$26="Kioti",KIOTI!A12,IF(S$26="Mahindra",MAHINDRA!A12,IF(S$26="Valtra",Valtra!A12,IF(S$26="","",0))))))))))))))))) ->  | V23: =IF(OR(Options!E$42="U",Options!D$42="1"),"","Case IH Red") -> 
I24: Loader Code: | K24: =Options!L33 ->  | P24: =IF(ISERROR(VLOOKUP(T$11,loaders,13,0)),"",VLOOKUP(T$11,loaders,13,0)) ->  | S24: New Holland | T24: =IF(S$26="AGCO",AGCO!A13,IF(S$26="AGCO White",'AGCO White'!A13,IF(S$26="AGCO Allis",'AGCO Allis'!A13,IF(S$26="Buhler",Buhler!A13,IF(S$26="Case IH",Case!A13,IF(S$26="Challenger",Challenger!A13,IF(S$26="Deutz",Deutz!A13,IF(S$26="John Deere",'John Deere'!A13,IF(S$26="Kubota",Kubota!A13,IF(S$26="Landini",Landini!A13,IF(S$26="Massey Ferguson",MF!A13,IF(S$26="McCormick",McCormick!A13,IF(S$26="New Holland",NH!A13,IF(S$26="Kioti",KIOTI!A13,IF(S$26="Mahindra",MAHINDRA!A13,IF(S$26="Valtra",Valtra!A13,IF(S$26="","",0))))))))))))))))) ->  | V24: =IF(OR(Options!E$42="U",Options!D$42="1"),"","Deutz Green") -> 
B25: Select Loader: | L25: List Price | P25: =IF(ISERROR(VLOOKUP(T$11,loaders,14,0)),"",VLOOKUP(T$11,loaders,14,0)) ->  | S25: Valtra | T25: =IF(S$26="AGCO",AGCO!A14,IF(S$26="AGCO White",'AGCO White'!A14,IF(S$26="AGCO Allis",'AGCO Allis'!A14,IF(S$26="Buhler",Buhler!A14,IF(S$26="Case IH",Case!A14,IF(S$26="Challenger",Challenger!A14,IF(S$26="Deutz",Deutz!A14,IF(S$26="John Deere",'John Deere'!A14,IF(S$26="Kubota",Kubota!A14,IF(S$26="Landini",Landini!A14,IF(S$26="Massey Ferguson",MF!A14,IF(S$26="McCormick",McCormick!A14,IF(S$26="New Holland",NH!A14,IF(S$26="Kioti",KIOTI!A14,IF(S$26="Mahindra",MAHINDRA!A14,IF(S$26="Valtra",Valtra!A14,IF(S$26="","",0))))))))))))))))) ->  | Z25: =IF(ISERROR(Options!B36),"",Options!B36) ->  | AD25: =IF(Q$12="Skid Steer",VLOOKUP(P$19,Buckets!A$27:F$51,2,0),IF(Q12="Euro",VLOOKUP(P$19,Buckets!A$2:K$24,2,0),IF(Q12="PIN ON",VLOOKUP(P$19,Buckets!A$52:K$53,2,0),""))) ->  | AE25: =IF(ISERROR(VLOOKUP(AD25,vmaster,2,0)),"",VLOOKUP(AD25,vmaster,2,0)) ->  | AI25: USD | AJ25: CAD
B26: Loader Color: | L26: =IF($M$48="USD",AI26,AJ26) ->  | P26: =IF(ISERROR(VLOOKUP(T$11,loaders,15,0)),"",VLOOKUP(T$11,loaders,15,0)) ->  | T26: =IF(S$26="AGCO",AGCO!A15,IF(S$26="AGCO White",'AGCO White'!A15,IF(S$26="AGCO Allis",'AGCO Allis'!A15,IF(S$26="Buhler",Buhler!A15,IF(S$26="Case IH",Case!A15,IF(S$26="Challenger",Challenger!A15,IF(S$26="Deutz",Deutz!A15,IF(S$26="John Deere",'John Deere'!A15,IF(S$26="Kubota",Kubota!A15,IF(S$26="Landini",Landini!A15,IF(S$26="Massey Ferguson",MF!A15,IF(S$26="McCormick",McCormick!A15,IF(S$26="New Holland",NH!A15,IF(S$26="Kioti",KIOTI!A15,IF(S$26="Mahindra",MAHINDRA!A15,IF(S$26="Valtra",Valtra!A15,IF(S$26="","",0))))))))))))))))) ->  | X26: =IF(Q48="3 Function Hose Kit","3 Function Diverter Valve",IF(Q48="2 Function Hose Kit","3 Function Diverter Valve","3 Function Diverter Valve")) -> 3 Function Diverter Valve | Y26: =VLOOKUP(P19,Options!A1:I25,9,0) ->  | AA26: =VLOOKUP(T11,loaders,26,0) ->  | AB26: =IF(AA26=1,"5034021","") ->  | AD26: =IF(Q12="Skid Steer",VLOOKUP(P$19,Buckets!A$27:F$51,3,0),IF(Q12="Euro",VLOOKUP(P$19,Buckets!A$2:K$24,3,0),IF(Q12="PIN ON",VLOOKUP(P$19,Buckets!A$52:K$53,3,0),""))) ->  | AI26: =IF($K$24="","",VLOOKUP(Options!$A$39,vmaster,3,0)) ->  | AJ26: =IF($K$24="","",VLOOKUP(Options!$A$39,vmaster,4,0)) -> 
B27: Quick Attach: | P27: =IF(ISERROR(VLOOKUP(T$11,loaders,16,0)),"",VLOOKUP(T$11,loaders,16,0)) ->  | T27: =IF(S$26="AGCO",AGCO!A16,IF(S$26="AGCO White",'AGCO White'!A16,IF(S$26="AGCO Allis",'AGCO Allis'!A16,IF(S$26="Buhler",Buhler!A16,IF(S$26="Case IH",Case!A16,IF(S$26="Challenger",Challenger!A16,IF(S$26="Deutz",Deutz!A16,IF(S$26="John Deere",'John Deere'!A16,IF(S$26="Kubota",Kubota!A16,IF(S$26="Landini",Landini!A16,IF(S$26="Massey Ferguson",MF!A16,IF(S$26="McCormick",McCormick!A16,IF(S$26="New Holland",NH!A16,IF(S$26="Kioti",KIOTI!A16,IF(S$26="Mahindra",MAHINDRA!A16,IF(S$26="Valtra",Valtra!A16,IF(S$26="","",0))))))))))))))))) ->  | X27: =IF(Z25="XA","",IF(Q48="2 Function Hose Kit","",IF(Q48="3 Function Hose Kit","",IF(AA26=1,"","Live 3rd Function")))) ->  | AD27: =IF(Q12="Skid Steer",VLOOKUP(P$19,Buckets!A$27:F$51,4,0),IF(Q12="Euro",VLOOKUP(P$19,Buckets!A$2:K$24,4,0),IF(Q12="PIN ON",VLOOKUP(P$19,Buckets!A$52:K$53,4,0),""))) -> 
B28: Subframe: | J28: =IF(R32="","",R28) ->  | L28: =IF($M$48="USD",AI28,AJ28) ->  | P28: =IF(M48="USD",AI28,AJ28) ->  | R28: =VLOOKUP(T11,loaders,17,0) ->  | T28: =IF(S$26="AGCO",AGCO!A17,IF(S$26="AGCO White",'AGCO White'!A17,IF(S$26="AGCO Allis",'AGCO Allis'!A17,IF(S$26="Buhler",Buhler!A17,IF(S$26="Case IH",Case!A17,IF(S$26="Challenger",Challenger!A17,IF(S$26="Deutz",Deutz!A17,IF(S$26="John Deere",'John Deere'!A17,IF(S$26="Kubota",Kubota!A17,IF(S$26="Landini",Landini!A17,IF(S$26="Massey Ferguson",MF!A17,IF(S$26="McCormick",McCormick!A17,IF(S$26="New Holland",NH!A17,IF(S$26="Kioti",KIOTI!A17,IF(S$26="Mahindra",MAHINDRA!A17,IF(S$26="Valtra",Valtra!A17,IF(S$26="","",0))))))))))))))))) ->  | U28: Yes | AD28: =IF(Q12="Skid Steer",VLOOKUP(P$19,Buckets!A$27:F$49,5,0),IF(Q12="Euro",VLOOKUP(P$19,Buckets!A$2:K$24,5,0),IF(Q12="PIN ON",VLOOKUP(P$19,Buckets!A$52:K$53,5,0),""))) ->  | AI28: =IF($J$28="","",VLOOKUP($J$28,vmaster,3,0)) ->  | AJ28: =IF($J$28="","",VLOOKUP($J$28,vmaster,4,0)) -> 
B29: Hydraulics: | J29: =IF(ISERROR(Q49),"",Q49) ->  | T29: =IF(S$26="AGCO",AGCO!A18,IF(S$26="AGCO White",'AGCO White'!A18,IF(S$26="AGCO Allis",'AGCO Allis'!A18,IF(S$26="Buhler",Buhler!A18,IF(S$26="Case IH",Case!A18,IF(S$26="Challenger",Challenger!A18,IF(S$26="Deutz",Deutz!A18,IF(S$26="John Deere",'John Deere'!A18,IF(S$26="Kubota",Kubota!A18,IF(S$26="Landini",Landini!A18,IF(S$26="Massey Ferguson",MF!A18,IF(S$26="McCormick",McCormick!A18,IF(S$26="New Holland",NH!A18,IF(S$26="Kioti",KIOTI!A18,IF(S$26="Mahindra",MAHINDRA!A18,IF(S$26="Valtra",Valtra!A18,IF(S$26="","",0))))))))))))))))) ->  | U29: No | X29: 2 Function Mechanical | Y29: 5034284 | AD29: =IF(Q12="Skid Steer",VLOOKUP(P$19,Buckets!A$27:F$49,6,0),IF(Q12="Euro",VLOOKUP(P$19,Buckets!A$2:K$24,6,0),IF(Q12="PIN ON",VLOOKUP(P$19,Buckets!A$52:K$53,6,0),""))) ->  | AI29: =IF(J29="","",VLOOKUP(J29,vmaster,3,0)) ->  | AJ29: =IF(J29="","",VLOOKUP(J29,vmaster,4,0)) -> 
B30: Loader Options: | E30: =IF(P19="","",VLOOKUP(P19,Options!A1:N25,14,0)) ->  | R30: =VLOOKUP(R$28,vmaster,2,0) ->  | T30: =IF(S$26="AGCO",AGCO!A19,IF(S$26="AGCO White",'AGCO White'!A19,IF(S$26="AGCO Allis",'AGCO Allis'!A19,IF(S$26="Buhler",Buhler!A19,IF(S$26="Case IH",Case!A19,IF(S$26="Challenger",Challenger!A19,IF(S$26="Deutz",Deutz!A19,IF(S$26="John Deere",'John Deere'!A19,IF(S$26="Kubota",Kubota!A19,IF(S$26="Landini",Landini!A19,IF(S$26="Massey Ferguson",MF!A19,IF(S$26="McCormick",McCormick!A19,IF(S$26="New Holland",NH!A19,IF(S$26="Kioti",KIOTI!A19,IF(S$26="Mahindra",MAHINDRA!A19,IF(S$26="Valtra",Valtra!A19,IF(S$26="","",0))))))))))))))))) ->  | X30: 2 Function Electric | Y30: 5034283 | AD30: =IF(Q12="Skid Steer",VLOOKUP(P$19,Buckets!A$27:F$49,7,0),IF(Q12="Euro",VLOOKUP(P$19,Buckets!A$2:K$24,7,0),IF(Q12="PIN ON",VLOOKUP(P$19,Buckets!A$52:K$53,7,0),""))) -> 
B31: Soft Drive: | J31: =IF(U26="YES",VLOOKUP(Options!A39,Options!A1:G25,7,0),"") ->  | L31: =IF($M$48="USD",AI31,AJ31) ->  | T31: =IF(S$26="AGCO",AGCO!A20,IF(S$26="AGCO White",'AGCO White'!A20,IF(S$26="AGCO Allis",'AGCO Allis'!A20,IF(S$26="Buhler",Buhler!A20,IF(S$26="Case IH",Case!A20,IF(S$26="Challenger",Challenger!A20,IF(S$26="Deutz",Deutz!A20,IF(S$26="John Deere",'John Deere'!A20,IF(S$26="Kubota",Kubota!A20,IF(S$26="Landini",Landini!A20,IF(S$26="Massey Ferguson",MF!A20,IF(S$26="McCormick",McCormick!A20,IF(S$26="New Holland",NH!A20,IF(S$26="Kioti",KIOTI!A20,IF(S$26="Mahindra",MAHINDRA!A20,IF(S$26="Valtra",Valtra!A20,IF(S$26="","",0))))))))))))))))) ->  | AD31: =IF(Q12="Skid Steer",VLOOKUP(P$19,Buckets!A$27:F$49,8,0),IF(Q12="Euro",VLOOKUP(P$19,Buckets!A$2:K$24,8,0),IF(Q12="PIN ON",VLOOKUP(P$19,Buckets!A$52:K$53,8,0),""))) -> 
B32: 3rd Function: | J32: =Y32 ->  | L32: =IF($M$48="USD",AI32,AJ32) ->  | T32: =IF(S$26="AGCO",AGCO!A21,IF(S$26="AGCO White",'AGCO White'!A21,IF(S$26="AGCO Allis",'AGCO Allis'!A21,IF(S$26="Buhler",Buhler!A21,IF(S$26="Case IH",Case!A21,IF(S$26="Challenger",Challenger!A21,IF(S$26="Deutz",Deutz!A21,IF(S$26="John Deere",'John Deere'!A21,IF(S$26="Kubota",Kubota!A21,IF(S$26="Landini",Landini!A21,IF(S$26="Massey Ferguson",MF!A21,IF(S$26="McCormick",McCormick!A21,IF(S$26="New Holland",NH!A21,IF(S$26="Kioti",KIOTI!A21,IF(S$26="Mahindra",MAHINDRA!A21,IF(S$26="Valtra",Valtra!A21,IF(S$26="","",0))))))))))))))))) ->  | U32: =IF(U26="Yes",VLOOKUP(P19,Options!A1:G25,7),"") ->  | X32: =IF(X28="3 Function Diverter Valve",Y26,IF(X28="Live 3rd Function",VLOOKUP(Q48,X29:Y30,2,0),"")) ->  | Y32: =IF(ISERROR(X32),"",X32) ->  | AD32: =IF(Q12="Skid Steer",VLOOKUP(P$19,Buckets!A$27:F$49,9,0),IF(Q12="Euro",VLOOKUP(P$19,Buckets!A$2:K$24,9,0),IF(Q12="PIN ON",VLOOKUP(P$19,Buckets!A$52:K$53,9,0),""))) -> 
F33: =IF(X28="Live 3rd Function","Live 3rd Hose Kit",IF(Q46="3 Function Hose Kit","Live 3rd Hose Kit",IF(Q48=1,"Electric Handle Kit",""))) ->  | J33: =IF(F33="Live 3rd Hose Kit",VLOOKUP(P19,Options!A1:J25,10,0),IF(F33="Electric Handle Kit","5102162F","")) ->  | T33: =IF(S$26="AGCO",AGCO!A22,IF(S$26="AGCO White",'AGCO White'!A22,IF(S$26="AGCO Allis",'AGCO Allis'!A22,IF(S$26="Buhler",Buhler!A22,IF(S$26="Case IH",Case!A22,IF(S$26="Challenger",Challenger!A22,IF(S$26="Deutz",Deutz!A22,IF(S$26="John Deere",'John Deere'!A22,IF(S$26="Kubota",Kubota!A22,IF(S$26="Landini",Landini!A22,IF(S$26="Massey Ferguson",MF!A22,IF(S$26="McCormick",McCormick!A22,IF(S$26="New Holland",NH!A22,IF(S$26="Kioti",KIOTI!A22,IF(S$26="Mahindra",MAHINDRA!A22,IF(S$26="Valtra",Valtra!A22,IF(S$26="","",0))))))))))))))))) ->  | U33: =IF(U26="Yes",VLOOKUP(P19,Options!A1:H25,8),"") ->  | AD33: =IF(Q20="Skid Steer",VLOOKUP(P$19,Buckets!A$27:F$49,2,0),IF(Q20="Euro",VLOOKUP(P$19,Buckets!A$2:K$24,2,0),IF(Q20="PIN ON",VLOOKUP(P$19,Buckets!A$52:K$53,2,0),""))) -> 
C34: =VLOOKUP(J34,Prices!A:B,2,0) -> - | J34: =VLOOKUP(J28,'Loader Details'!Q:R,2,0) -> 0 | L34: 0 | Q34: 2 Function Mechanical | R34: =VLOOKUP(T11,'Loader Details'!A:AB,20,0) ->  | T34: =IF(S$26="AGCO",AGCO!A23,IF(S$26="AGCO White",'AGCO White'!A23,IF(S$26="AGCO Allis",'AGCO Allis'!A23,IF(S$26="Buhler",Buhler!A23,IF(S$26="Case IH",Case!A23,IF(S$26="Challenger",Challenger!A23,IF(S$26="Deutz",Deutz!A23,IF(S$26="John Deere",'John Deere'!A23,IF(S$26="Kubota",Kubota!A23,IF(S$26="Landini",Landini!A23,IF(S$26="Massey Ferguson",MF!A23,IF(S$26="McCormick",McCormick!A23,IF(S$26="New Holland",NH!A23,IF(S$26="Kioti",KIOTI!A23,IF(S$26="Mahindra",MAHINDRA!A23,IF(S$26="Valtra",Valtra!A23,IF(S$26="","",0))))))))))))))))) ->  | U34: =IF(N17="US",U33,U32) ->  | AD34: =IF(Q21="Skid Steer",VLOOKUP(P$19,Buckets!A$27:F$49,2,0),IF(Q21="Euro",VLOOKUP(P$19,Buckets!A$2:K$24,2,0),IF(Q21="PIN ON",VLOOKUP(P$19,Buckets!A$52:K$53,2,0),""))) ->  | AI34: 0 | AJ34: 0
Q35: 2 Function Hose Kit | R35: =VLOOKUP(T11,'Loader Details'!A:AB,22,0) ->  | T35: =IF(S$26="AGCO",AGCO!A24,IF(S$26="AGCO White",'AGCO White'!A24,IF(S$26="AGCO Allis",'AGCO Allis'!A24,IF(S$26="Buhler",Buhler!A24,IF(S$26="Case IH",Case!A24,IF(S$26="Challenger",Challenger!A24,IF(S$26="Deutz",Deutz!A24,IF(S$26="John Deere",'John Deere'!A24,IF(S$26="Kubota",Kubota!A24,IF(S$26="Landini",Landini!A24,IF(S$26="Massey Ferguson",MF!A24,IF(S$26="McCormick",McCormick!A24,IF(S$26="New Holland",NH!A24,IF(S$26="Kioti",KIOTI!A24,IF(S$26="Mahindra",MAHINDRA!A24,IF(S$26="Valtra",Valtra!A24,IF(S$26="","",0))))))))))))))))) ->  | U35: =IF(N17="US",U33,U32) -> 
B36: Other: | F36: =IF(ISERROR(VLOOKUP(C36,vmaster,2,0)),"",VLOOKUP(C36,vmaster,2,0)) -> - | L36: =IF($M$48="USD",AI36,AJ36) ->  | Q36: 2 Function Electric | R36: =VLOOKUP(T11,'Loader Details'!A:AB,21,0) ->  | T36: =IF(S$26="AGCO",AGCO!A25,IF(S$26="AGCO White",'AGCO White'!A25,IF(S$26="AGCO Allis",'AGCO Allis'!A25,IF(S$26="Buhler",Buhler!A25,IF(S$26="Case IH",Case!A25,IF(S$26="Challenger",Challenger!A25,IF(S$26="Deutz",Deutz!A25,IF(S$26="John Deere",'John Deere'!A25,IF(S$26="Kubota",Kubota!A25,IF(S$26="Landini",Landini!A25,IF(S$26="Massey Ferguson",MF!A25,IF(S$26="McCormick",McCormick!A25,IF(S$26="New Holland",NH!A25,IF(S$26="Kioti",KIOTI!A25,IF(S$26="Mahindra",MAHINDRA!A25,IF(S$26="Valtra",Valtra!A25,IF(S$26="","",0))))))))))))))))) ->  | AI36: =IF(C36="","",VLOOKUP(C36,vmaster,3,0)) ->  | AJ36: =IF(C36="","",VLOOKUP(C36,vmaster,4,0)) -> 
B37: Implements: | Q37: 3 Function Hose Kit | R37: =VLOOKUP(T11,'Loader Details'!A:AB,23,0) ->  | T37: =IF(S$26="AGCO",AGCO!A26,IF(S$26="AGCO White",'AGCO White'!A26,IF(S$26="AGCO Allis",'AGCO Allis'!A26,IF(S$26="Buhler",Buhler!A26,IF(S$26="Case IH",Case!A26,IF(S$26="Challenger",Challenger!A26,IF(S$26="Deutz",Deutz!A26,IF(S$26="John Deere",'John Deere'!A26,IF(S$26="Kubota",Kubota!A26,IF(S$26="Landini",Landini!A26,IF(S$26="Massey Ferguson",MF!A26,IF(S$26="McCormick",McCormick!A26,IF(S$26="New Holland",NH!A26,IF(S$26="Kioti",KIOTI!A26,IF(S$26="Mahindra",MAHINDRA!A26,IF(S$26="Valtra",Valtra!A26,IF(S$26="","",0))))))))))))))))) ->  | AI37: =IF(J37="","",VLOOKUP(J37,vmaster,3,0)) ->  | AJ37: =IF(J37="","",VLOOKUP(C37,vmaster,4,0)) -> 
B38: Bucket: | J38: =IF(ISERROR(AE22),"",AE22) ->  | L38: =IF($M$48="USD",AI38,AJ38) ->  | Q38: Compact Loader Valve - Cab Tractors | R38: =VLOOKUP(T11,'Loader Details'!A:AB,27,0) ->  | T38: =IF(S$26="AGCO",AGCO!A27,IF(S$26="AGCO White",'AGCO White'!A27,IF(S$26="AGCO Allis",'AGCO Allis'!A27,IF(S$26="Buhler",Buhler!A27,IF(S$26="Case IH",Case!A27,IF(S$26="Challenger",Challenger!A27,IF(S$26="Deutz",Deutz!A27,IF(S$26="John Deere",'John Deere'!A27,IF(S$26="Kubota",Kubota!A27,IF(S$26="Landini",Landini!A27,IF(S$26="Massey Ferguson",MF!A27,IF(S$26="McCormick",McCormick!A27,IF(S$26="New Holland",NH!A27,IF(S$26="Kioti",KIOTI!A27,IF(S$26="Mahindra",MAHINDRA!A27,IF(S$26="Valtra",Valtra!A27,IF(S$26="","",0))))))))))))))))) ->  | AI38: =IF(J38="","",VLOOKUP(J38,vmaster,3,0)) ->  | AJ38: =IF(J38="","",VLOOKUP(J38,vmaster,4,0)) -> 
B39: Implement: | J39: =IF(ISERROR(Q66),"",Q66) ->  | L39: =IF($M$48="USD",AI39,AJ39) ->  | Q39: Compact Loader Valve - Rops Tractors | R39: =VLOOKUP(T11,'Loader Details'!A:AB,28,0) ->  | T39: =IF(S$26="AGCO",AGCO!A28,IF(S$26="AGCO White",'AGCO White'!A28,IF(S$26="AGCO Allis",'AGCO Allis'!A28,IF(S$26="Buhler",Buhler!A28,IF(S$26="Case IH",Case!A28,IF(S$26="Challenger",Challenger!A28,IF(S$26="Deutz",Deutz!A28,IF(S$26="John Deere",'John Deere'!A28,IF(S$26="Kubota",Kubota!A28,IF(S$26="Landini",Landini!A28,IF(S$26="Massey Ferguson",MF!A28,IF(S$26="McCormick",McCormick!A28,IF(S$26="New Holland",NH!A28,IF(S$26="Kioti",KIOTI!A28,IF(S$26="Mahindra",MAHINDRA!A28,IF(S$26="Valtra",Valtra!A28,IF(S$26="","",0))))))))))))))))) ->  | AI39: =IF(J39="","",VLOOKUP(J39,vmaster,3,0)) ->  | AJ39: =IF(J39="","",VLOOKUP(J39,vmaster,4,0)) -> 
B40: =IF(ISERROR(Q66),"",VLOOKUP(Q66,Implements!S6:T25,2,0)) ->  | Q40: =IF(R34="","","2 Function Mechanical") ->  | R40: =IF(ISERROR(Q40),"",Q40) ->  | T40: =IF(S$26="AGCO",AGCO!A29,IF(S$26="AGCO White",'AGCO White'!A29,IF(S$26="AGCO Allis",'AGCO Allis'!A29,IF(S$26="Buhler",Buhler!A29,IF(S$26="Case IH",Case!A29,IF(S$26="Challenger",Challenger!A29,IF(S$26="Deutz",Deutz!A29,IF(S$26="John Deere",'John Deere'!A29,IF(S$26="Kubota",Kubota!A29,IF(S$26="Landini",Landini!A29,IF(S$26="Massey Ferguson",MF!A29,IF(S$26="McCormick",McCormick!A29,IF(S$26="New Holland",NH!A29,IF(S$26="Kioti",KIOTI!A29,IF(S$26="Mahindra",MAHINDRA!A29,IF(S$26="Valtra",Valtra!A29,IF(S$26="","",0))))))))))))))))) ->  | AI40: =IF(C41="","",VLOOKUP(C41,vmaster,3,0)) ->  | AJ40: =IF(C41="","",VLOOKUP(C41,vmaster,4,0)) -> 
B41: Other: | F41: =IF(ISERROR(VLOOKUP(C41,vmaster,2,0)),"",VLOOKUP(C41,vmaster,2,0)) -> - | L41: =IF($M$48="USD",AI40,AJ40) ->  | Q41: =IF(R35="","","2 Function Hose Kit") ->  | R41: =IF(ISERROR(Q41),"",Q41) ->  | T41: =IF(S$26="AGCO",AGCO!A30,IF(S$26="AGCO White",'AGCO White'!A30,IF(S$26="AGCO Allis",'AGCO Allis'!A30,IF(S$26="Buhler",Buhler!A30,IF(S$26="Case IH",Case!A30,IF(S$26="Challenger",Challenger!A30,IF(S$26="Deutz",Deutz!A30,IF(S$26="John Deere",'John Deere'!A30,IF(S$26="Kubota",Kubota!A30,IF(S$26="Landini",Landini!A30,IF(S$26="Massey Ferguson",MF!A30,IF(S$26="McCormick",McCormick!A30,IF(S$26="New Holland",NH!A30,IF(S$26="Kioti",KIOTI!A30,IF(S$26="Mahindra",MAHINDRA!A30,IF(S$26="Valtra",Valtra!A30,IF(S$26="","",0))))))))))))))))) -> 
Q42: =IF(R36="","","2 Function Electric") ->  | T42: =IF(S$26="AGCO",AGCO!A31,IF(S$26="AGCO White",'AGCO White'!A31,IF(S$26="AGCO Allis",'AGCO Allis'!A31,IF(S$26="Buhler",Buhler!A31,IF(S$26="Case IH",Case!A31,IF(S$26="Challenger",Challenger!A31,IF(S$26="Deutz",Deutz!A31,IF(S$26="John Deere",'John Deere'!A31,IF(S$26="Kubota",Kubota!A31,IF(S$26="Landini",Landini!A31,IF(S$26="Massey Ferguson",MF!A31,IF(S$26="McCormick",McCormick!A31,IF(S$26="New Holland",NH!A31,IF(S$26="Kioti",KIOTI!A31,IF(S$26="Mahindra",MAHINDRA!A31,IF(S$26="Valtra",Valtra!A31,IF(S$26="","",0))))))))))))))))) -> 
B43: Comments: | J43: List Price: | L43: =SUM(L26:O42) -> 0 | Q43: =IF(R37="","","3 Function Hose Kit") ->  | T43: =IF(S$26="AGCO",AGCO!A32,IF(S$26="AGCO White",'AGCO White'!A32,IF(S$26="AGCO Allis",'AGCO Allis'!A32,IF(S$26="Buhler",Buhler!A32,IF(S$26="Case IH",Case!A32,IF(S$26="Challenger",Challenger!A32,IF(S$26="Deutz",Deutz!A32,IF(S$26="John Deere",'John Deere'!A32,IF(S$26="Kubota",Kubota!A34,IF(S$26="Landini",Landini!A32,IF(S$26="Massey Ferguson",MF!A32,IF(S$26="McCormick",McCormick!A32,IF(S$26="New Holland",NH!A32,IF(S$26="Kioti",KIOTI!A32,IF(S$26="Mahindra",MAHINDRA!A32,IF(S$26="Valtra",Valtra!A32,IF(S$26="","",0))))))))))))))))) -> 
Q44: =IF(R38="","","Compact Loader Valve - Cab Tractors") ->  | R44: =IF(ISERROR(Q44),"",Q44) ->  | T44: =IF(S$26="AGCO",AGCO!A33,IF(S$26="AGCO White",'AGCO White'!A33,IF(S$26="AGCO Allis",'AGCO Allis'!A33,IF(S$26="Buhler",Buhler!A33,IF(S$26="Case IH",Case!A33,IF(S$26="Challenger",Challenger!A33,IF(S$26="Deutz",Deutz!A33,IF(S$26="John Deere",'John Deere'!A33,IF(S$26="Kubota",Kubota!A35,IF(S$26="Landini",Landini!A33,IF(S$26="Massey Ferguson",MF!A33,IF(S$26="McCormick",McCormick!A33,IF(S$26="New Holland",NH!A33,IF(S$26="Kioti",KIOTI!A33,IF(S$26="Mahindra",MAHINDRA!A33,IF(S$26="Valtra",Valtra!A33,IF(S$26="","",0))))))))))))))))) -> 
J45: Freight: | L45: =Options!M25 ->  | Q45: =IF(R39="","","Compact Loader Valve - Rops Tractors") ->  | T45: =IF(S$26="AGCO",AGCO!A34,IF(S$26="AGCO White",'AGCO White'!A34,IF(S$26="AGCO Allis",'AGCO Allis'!A34,IF(S$26="Buhler",Buhler!A34,IF(S$26="Case IH",Case!A34,IF(S$26="Challenger",Challenger!A34,IF(S$26="Deutz",Deutz!A34,IF(S$26="John Deere",'John Deere'!A34,IF(S$26="Kubota",Kubota!A36,IF(S$26="Landini",Landini!A34,IF(S$26="Massey Ferguson",MF!A34,IF(S$26="McCormick",McCormick!A34,IF(S$26="New Holland",NH!A34,IF(S$26="Kioti",KIOTI!A34,IF(S$26="Mahindra",MAHINDRA!A34,IF(S$26="Valtra",Valtra!A34,IF(S$26="","",0))))))))))))))))) -> 
Q46: =IF(R40="","","Compact Loader Valve - Cab Tractors") ->  | R46: =IF(ISERROR(Q46),"",Q46) ->  | T46: =IF(S$26="AGCO",AGCO!A35,IF(S$26="AGCO White",'AGCO White'!A35,IF(S$26="AGCO Allis",'AGCO Allis'!A35,IF(S$26="Buhler",Buhler!A35,IF(S$26="Case IH",Case!A35,IF(S$26="Challenger",Challenger!A35,IF(S$26="Deutz",Deutz!A35,IF(S$26="John Deere",'John Deere'!A35,IF(S$26="Kubota",Kubota!A37,IF(S$26="Landini",Landini!A35,IF(S$26="Massey Ferguson",MF!A35,IF(S$26="McCormick",McCormick!A35,IF(S$26="New Holland",NH!A35,IF(S$26="Kioti",KIOTI!A35,IF(S$26="Mahindra",MAHINDRA!A35,IF(S$26="Valtra",Valtra!A35,IF(S$26="","",0))))))))))))))))) ->  | AI46: =IF(J47="","",VLOOKUP(J47,vmaster,3,0)) ->  | AJ46: =IF(J47="","",VLOOKUP(J47,vmaster,4,0)) -> 
J47: Expedited Rate: | L47: =Options!V25 ->  | Q47: =IF(R41="","","Compact Loader Valve - Rops Tractors") ->  | T47: =IF(S$26="AGCO",AGCO!A36,IF(S$26="AGCO White",'AGCO White'!A36,IF(S$26="AGCO Allis",'AGCO Allis'!A36,IF(S$26="Buhler",Buhler!A36,IF(S$26="Case IH",Case!A36,IF(S$26="Challenger",Challenger!A36,IF(S$26="Deutz",Deutz!A36,IF(S$26="John Deere",'John Deere'!A36,IF(S$26="Kubota",Kubota!A38,IF(S$26="Landini",Landini!A36,IF(S$26="Massey Ferguson",MF!A36,IF(S$26="McCormick",McCormick!A36,IF(S$26="New Holland",NH!A36,IF(S$26="Kioti",KIOTI!A36,IF(S$26="Mahindra",MAHINDRA!A36,IF(S$26="Valtra",Valtra!A36,IF(S$26="","",0))))))))))))))))) -> 
J48: Prices in | M48: USD | R48: =IF(OR(Q50=1,Q51=1),1,"") ->  | T48: =IF(S$26="AGCO",AGCO!A37,IF(S$26="AGCO White",'AGCO White'!A37,IF(S$26="AGCO Allis",'AGCO Allis'!A37,IF(S$26="Buhler",Buhler!A37,IF(S$26="Case IH",Case!A37,IF(S$26="Challenger",Challenger!A37,IF(S$26="Deutz",Deutz!A37,IF(S$26="John Deere",'John Deere'!A37,IF(S$26="Kubota",Kubota!A39,IF(S$26="Landini",Landini!A37,IF(S$26="Massey Ferguson",MF!A37,IF(S$26="McCormick",McCormick!A37,IF(S$26="New Holland",NH!A37,IF(S$26="Kioti",KIOTI!A37,IF(S$26="Mahindra",MAHINDRA!A37,IF(S$26="Valtra",Valtra!A37,IF(S$26="","",0))))))))))))))))) -> 
B49: Expedited rate pertains to large loaders that cannot ship LTL. Loader will ship as soon as it becomes available. | Q49: =VLOOKUP(Q48,Q34:R39,2,0) ->  | T49: =IF(S$26="AGCO",AGCO!A38,IF(S$26="AGCO White",'AGCO White'!A38,IF(S$26="AGCO Allis",'AGCO Allis'!A38,IF(S$26="Buhler",Buhler!A38,IF(S$26="Case IH",Case!A38,IF(S$26="Challenger",Challenger!A38,IF(S$26="Deutz",Deutz!A38,IF(S$26="John Deere",'John Deere'!A38,IF(S$26="Kubota",Kubota!A40,IF(S$26="Landini",Landini!A38,IF(S$26="Massey Ferguson",MF!A38,IF(S$26="McCormick",McCormick!A38,IF(S$26="New Holland",NH!A38,IF(S$26="Kioti",KIOTI!A38,IF(S$26="Mahindra",MAHINDRA!A38,IF(S$26="Valtra",Valtra!A38,IF(S$26="","",0))))))))))))))))) -> 
Q50: =IF(AND(Q48="2 Function Hose Kit",X28="3 Function Diverter Valve"),1,"") ->  | T50: =IF(S$26="AGCO",AGCO!A39,IF(S$26="AGCO White",'AGCO White'!A39,IF(S$26="AGCO Allis",'AGCO Allis'!A39,IF(S$26="Buhler",Buhler!A39,IF(S$26="Case IH",Case!A39,IF(S$26="Challenger",Challenger!A39,IF(S$26="Deutz",Deutz!A39,IF(S$26="John Deere",'John Deere'!A39,IF(S$26="Kubota",Kubota!A41,IF(S$26="Landini",Landini!A39,IF(S$26="Massey Ferguson",MF!A39,IF(S$26="McCormick",McCormick!A39,IF(S$26="New Holland",NH!A39,IF(S$26="Kioti",KIOTI!A39,IF(S$26="Mahindra",MAHINDRA!A39,IF(S$26="Valtra",Valtra!A39,IF(S$26="","",0))))))))))))))))) -> 
T51: =IF(S$26="AGCO",AGCO!A40,IF(S$26="AGCO White",'AGCO White'!A40,IF(S$26="AGCO Allis",'AGCO Allis'!A40,IF(S$26="Buhler",Buhler!A40,IF(S$26="Case IH",Case!A40,IF(S$26="Challenger",Challenger!A40,IF(S$26="Deutz",Deutz!A40,IF(S$26="John Deere",'John Deere'!A40,IF(S$26="Kubota",Kubota!A42,IF(S$26="Landini",Landini!A40,IF(S$26="Massey Ferguson",MF!A40,IF(S$26="McCormick",McCormick!A40,IF(S$26="New Holland",NH!A40,IF(S$26="Kioti",KIOTI!A40,IF(S$26="Mahindra",MAHINDRA!A40,IF(S$26="Valtra",Valtra!A40,IF(S$26="","",0))))))))))))))))) -> 
T52: =IF(S$26="AGCO",AGCO!A41,IF(S$26="AGCO White",'AGCO White'!A41,IF(S$26="AGCO Allis",'AGCO Allis'!A41,IF(S$26="Buhler",Buhler!A41,IF(S$26="Case IH",Case!A41,IF(S$26="Challenger",Challenger!A41,IF(S$26="Deutz",Deutz!A41,IF(S$26="John Deere",'John Deere'!A41,IF(S$26="Kubota",Kubota!A43,IF(S$26="Landini",Landini!A41,IF(S$26="Massey Ferguson",MF!A41,IF(S$26="McCormick",McCormick!A41,IF(S$26="New Holland",NH!A41,IF(S$26="Kioti",KIOTI!A41,IF(S$26="Mahindra",MAHINDRA!A41,IF(S$26="Valtra",Valtra!A41,IF(S$26="","",0))))))))))))))))) -> 
Q53: =IF(Q$12="Euro",VLOOKUP(P$19,Implements!A$2:O$24,2,0),IF(Q$12="Skid Steer",VLOOKUP(P$19,Implements!A$27:O$49,2,0),"")) ->  | R53: =IF(ISERROR(VLOOKUP(Q53,vmaster,2,0)),"",VLOOKUP(Q53,vmaster,2,0)) ->  | T53: =IF(S$26="AGCO",AGCO!A42,IF(S$26="AGCO White",'AGCO White'!A42,IF(S$26="AGCO Allis",'AGCO Allis'!A42,IF(S$26="Buhler",Buhler!A42,IF(S$26="Case IH",Case!A42,IF(S$26="Challenger",Challenger!A42,IF(S$26="Deutz",Deutz!A42,IF(S$26="John Deere",'John Deere'!A42,IF(S$26="Kubota",Kubota!A44,IF(S$26="Landini",Landini!A42,IF(S$26="Massey Ferguson",MF!A42,IF(S$26="McCormick",McCormick!A42,IF(S$26="New Holland",NH!A42,IF(S$26="Kioti",KIOTI!A42,IF(S$26="Mahindra",MAHINDRA!A42,IF(S$26="Valtra",Valtra!A42,IF(S$26="","",0))))))))))))))))) ->  | X53: =Options!K32 ->  | Y53: =VLOOKUP(X53,Prices!A:C,3,FALSE) -> 
Q54: =IF(Q$12="Euro",VLOOKUP(P$19,Implements!A$2:O$24,3,0),IF(Q$12="Skid Steer",VLOOKUP(P$19,Implements!A$27:O$49,3,0),"")) ->  | T54: =IF(S$26="AGCO",AGCO!A43,IF(S$26="AGCO White",'AGCO White'!A43,IF(S$26="AGCO Allis",'AGCO Allis'!A43,IF(S$26="Buhler",Buhler!A43,IF(S$26="Case IH",Case!A43,IF(S$26="Challenger",Challenger!A43,IF(S$26="Deutz",Deutz!A43,IF(S$26="John Deere",'John Deere'!A43,IF(S$26="Kubota",Kubota!A45,IF(S$26="Landini",Landini!A43,IF(S$26="Massey Ferguson",MF!A43,IF(S$26="McCormick",McCormick!A43,IF(S$26="New Holland",NH!A43,IF(S$26="Kioti",KIOTI!A43,IF(S$26="Mahindra",MAHINDRA!A43,IF(S$26="Valtra",Valtra!A43,IF(S$26="","",0))))))))))))))))) -> 
Q55: =IF(Q$12="Euro",VLOOKUP(P$19,Implements!A$2:O$24,4,0),IF(Q$12="Skid Steer",VLOOKUP(P$19,Implements!A$27:O$49,4,0),"")) ->  | T55: =IF(S$26="AGCO",AGCO!A44,IF(S$26="AGCO White",'AGCO White'!A44,IF(S$26="AGCO Allis",'AGCO Allis'!A44,IF(S$26="Buhler",Buhler!A44,IF(S$26="Case IH",Case!A44,IF(S$26="Challenger",Challenger!A44,IF(S$26="Deutz",Deutz!A44,IF(S$26="John Deere",'John Deere'!A44,IF(S$26="Kubota",Kubota!A46,IF(S$26="Landini",Landini!A44,IF(S$26="Massey Ferguson",MF!A44,IF(S$26="McCormick",McCormick!A44,IF(S$26="New Holland",NH!A44,IF(S$26="Kioti",KIOTI!A44,IF(S$26="Mahindra",MAHINDRA!A44,IF(S$26="Valtra",Valtra!A44,IF(S$26="","",0))))))))))))))))) -> 
Q56: =IF(Q$12="Euro",VLOOKUP(P$19,Implements!A$2:O$24,5,0),IF(Q$12="Skid Steer",VLOOKUP(P$19,Implements!A$27:O$49,5,0),"")) ->  | T56: =IF(S$26="AGCO",AGCO!A45,IF(S$26="AGCO White",'AGCO White'!A45,IF(S$26="AGCO Allis",'AGCO Allis'!A45,IF(S$26="Buhler",Buhler!A45,IF(S$26="Case IH",Case!A45,IF(S$26="Challenger",Challenger!A45,IF(S$26="Deutz",Deutz!A45,IF(S$26="John Deere",'John Deere'!A45,IF(S$26="Kubota",Kubota!A47,IF(S$26="Landini",Landini!A45,IF(S$26="Massey Ferguson",MF!A45,IF(S$26="McCormick",McCormick!A45,IF(S$26="New Holland",NH!A45,IF(S$26="Kioti",KIOTI!A45,IF(S$26="Mahindra",MAHINDRA!A45,IF(S$26="Valtra",Valtra!A45,IF(S$26="","",0))))))))))))))))) -> 
Q57: =IF(Q$12="Euro",VLOOKUP(P$19,Implements!A$2:O$24,6,0),IF(Q$12="Skid Steer",VLOOKUP(P$19,Implements!A$27:O$49,6,0),"")) ->  | T57: =IF(S$26="AGCO",AGCO!A46,IF(S$26="AGCO White",'AGCO White'!A46,IF(S$26="AGCO Allis",'AGCO Allis'!A46,IF(S$26="Buhler",Buhler!A46,IF(S$26="Case IH",Case!A46,IF(S$26="Challenger",Challenger!A46,IF(S$26="Deutz",Deutz!A46,IF(S$26="John Deere",'John Deere'!A46,IF(S$26="Kubota",Kubota!A48,IF(S$26="Landini",Landini!A46,IF(S$26="Massey Ferguson",MF!A46,IF(S$26="McCormick",McCormick!A46,IF(S$26="New Holland",NH!A46,IF(S$26="Kioti",KIOTI!A46,IF(S$26="Mahindra",MAHINDRA!A46,IF(S$26="Valtra",Valtra!A46,IF(S$26="","",0))))))))))))))))) -> 
Q58: =IF(Q$12="Euro",VLOOKUP(P$19,Implements!A$2:O$24,7,0),IF(Q$12="Skid Steer",VLOOKUP(P$19,Implements!A$27:O$49,7,0),"")) ->  | T58: =IF(S$26="AGCO",AGCO!A47,IF(S$26="AGCO White",'AGCO White'!A47,IF(S$26="AGCO Allis",'AGCO Allis'!A47,IF(S$26="Buhler",Buhler!A47,IF(S$26="Case IH",Case!A47,IF(S$26="Challenger",Challenger!A47,IF(S$26="Deutz",Deutz!A47,IF(S$26="John Deere",'John Deere'!A47,IF(S$26="Kubota",Kubota!A49,IF(S$26="Landini",Landini!A47,IF(S$26="Massey Ferguson",MF!A47,IF(S$26="McCormick",McCormick!A47,IF(S$26="New Holland",NH!A47,IF(S$26="Kioti",KIOTI!A47,IF(S$26="Mahindra",MAHINDRA!A47,IF(S$26="Valtra",Valtra!A47,IF(S$26="","",0))))))))))))))))) -> 
Q59: =IF(Q$12="Euro",VLOOKUP(P$19,Implements!A$2:O$24,8,0),IF(Q$12="Skid Steer",VLOOKUP(P$19,Implements!A$27:O$49,8,0),"")) ->  | T59: =IF(S$26="AGCO",AGCO!A48,IF(S$26="AGCO White",'AGCO White'!A48,IF(S$26="AGCO Allis",'AGCO Allis'!A48,IF(S$26="Buhler",Buhler!A48,IF(S$26="Case IH",Case!A48,IF(S$26="Challenger",Challenger!A48,IF(S$26="Deutz",Deutz!A48,IF(S$26="John Deere",'John Deere'!A48,IF(S$26="Kubota",Kubota!A50,IF(S$26="Landini",Landini!A48,IF(S$26="Massey Ferguson",MF!A48,IF(S$26="McCormick",McCormick!A48,IF(S$26="New Holland",NH!A48,IF(S$26="Kioti",KIOTI!A48,IF(S$26="Mahindra",MAHINDRA!A48,IF(S$26="Valtra",Valtra!A48,IF(S$26="","",0))))))))))))))))) -> 
Q60: =IF(Q$12="Euro",VLOOKUP(P$19,Implements!A$2:O$24,9,0),IF(Q$12="Skid Steer",VLOOKUP(P$19,Implements!A$27:O$49,9,0),"")) ->  | T60: =IF(S$26="AGCO",AGCO!A49,IF(S$26="AGCO White",'AGCO White'!A49,IF(S$26="AGCO Allis",'AGCO Allis'!A49,IF(S$26="Buhler",Buhler!A49,IF(S$26="Case IH",Case!A49,IF(S$26="Challenger",Challenger!A49,IF(S$26="Deutz",Deutz!A49,IF(S$26="John Deere",'John Deere'!A49,IF(S$26="Kubota",Kubota!A51,IF(S$26="Landini",Landini!A49,IF(S$26="Massey Ferguson",MF!A49,IF(S$26="McCormick",McCormick!A49,IF(S$26="New Holland",NH!A49,IF(S$26="Kioti",KIOTI!A49,IF(S$26="Mahindra",MAHINDRA!A49,IF(S$26="Valtra",Valtra!A49,IF(S$26="","",0))))))))))))))))) -> 
Q61: =IF(Q$12="Euro",VLOOKUP(P$19,Implements!A$2:O$24,10,0),IF(Q$12="Skid Steer",VLOOKUP(P$19,Implements!A$27:O$49,10,0),"")) ->  | T61: =IF(S$26="AGCO",AGCO!A50,IF(S$26="AGCO White",'AGCO White'!A50,IF(S$26="AGCO Allis",'AGCO Allis'!A50,IF(S$26="Buhler",Buhler!A50,IF(S$26="Case IH",Case!A50,IF(S$26="Challenger",Challenger!A50,IF(S$26="Deutz",Deutz!A50,IF(S$26="John Deere",'John Deere'!A50,IF(S$26="Kubota",Kubota!A52,IF(S$26="Landini",Landini!A50,IF(S$26="Massey Ferguson",MF!A50,IF(S$26="McCormick",McCormick!A50,IF(S$26="New Holland",NH!A50,IF(S$26="Kioti",KIOTI!A50,IF(S$26="Mahindra",MAHINDRA!A50,IF(S$26="Valtra",Valtra!A50,IF(S$26="","",0))))))))))))))))) -> 
Q62: =IF(Q$12="Euro",VLOOKUP(P$19,Implements!A$2:O$24,11,0),IF(Q$12="Skid Steer",VLOOKUP(P$19,Implements!A$27:O$49,11,0),"")) ->  | T62: =IF(S$26="AGCO",AGCO!A51,IF(S$26="AGCO White",'AGCO White'!A51,IF(S$26="AGCO Allis",'AGCO Allis'!A51,IF(S$26="Buhler",Buhler!A51,IF(S$26="Case IH",Case!A51,IF(S$26="Challenger",Challenger!A51,IF(S$26="Deutz",Deutz!A51,IF(S$26="John Deere",'John Deere'!A51,IF(S$26="Kubota",Kubota!A53,IF(S$26="Landini",Landini!A51,IF(S$26="Massey Ferguson",MF!A51,IF(S$26="McCormick",McCormick!A51,IF(S$26="New Holland",NH!A51,IF(S$26="Kioti",KIOTI!A51,IF(S$26="Mahindra",MAHINDRA!A51,IF(S$26="Valtra",Valtra!A51,IF(S$26="","",0))))))))))))))))) -> 
Q63: =IF(Q$12="Euro",VLOOKUP(P$19,Implements!A$2:O$24,12,0),IF(Q$12="Skid Steer",VLOOKUP(P$19,Implements!A$27:O$49,12,0),"")) ->  | T63: =IF(S$26="AGCO",AGCO!A52,IF(S$26="AGCO White",'AGCO White'!A52,IF(S$26="AGCO Allis",'AGCO Allis'!A52,IF(S$26="Buhler",Buhler!A52,IF(S$26="Case IH",Case!A52,IF(S$26="Challenger",Challenger!A52,IF(S$26="Deutz",Deutz!A52,IF(S$26="John Deere",'John Deere'!A52,IF(S$26="Kubota",Kubota!A54,IF(S$26="Landini",Landini!A52,IF(S$26="Massey Ferguson",MF!A52,IF(S$26="McCormick",McCormick!A52,IF(S$26="New Holland",NH!A52,IF(S$26="Kioti",KIOTI!A52,IF(S$26="Mahindra",MAHINDRA!A52,IF(S$26="Valtra",Valtra!A52,IF(S$26="","",0))))))))))))))))) -> 
Q64: =IF(Q$12="Euro",VLOOKUP(P$19,Implements!A$2:O$24,13,0),IF(Q$12="Skid Steer",VLOOKUP(P$19,Implements!A$27:O$49,13,0),"")) ->  | T64: =IF(S$26="AGCO",AGCO!A53,IF(S$26="AGCO White",'AGCO White'!A53,IF(S$26="AGCO Allis",'AGCO Allis'!A53,IF(S$26="Buhler",Buhler!A53,IF(S$26="Case IH",Case!A53,IF(S$26="Challenger",Challenger!A53,IF(S$26="Deutz",Deutz!A53,IF(S$26="John Deere",'John Deere'!A53,IF(S$26="Kubota",Kubota!A55,IF(S$26="Landini",Landini!A53,IF(S$26="Massey Ferguson",MF!A53,IF(S$26="McCormick",McCormick!A53,IF(S$26="New Holland",NH!A53,IF(S$26="Kioti",KIOTI!A53,IF(S$26="Mahindra",MAHINDRA!A53,IF(S$26="Valtra",Valtra!A53,IF(S$26="","",0))))))))))))))))) -> 
T65: =IF(S$26="AGCO",AGCO!A54,IF(S$26="AGCO White",'AGCO White'!A54,IF(S$26="AGCO Allis",'AGCO Allis'!A54,IF(S$26="Buhler",Buhler!A54,IF(S$26="Case IH",Case!A54,IF(S$26="Challenger",Challenger!A54,IF(S$26="Deutz",Deutz!A54,IF(S$26="John Deere",'John Deere'!A54,IF(S$26="Kubota",Kubota!A56,IF(S$26="Landini",Landini!A54,IF(S$26="Massey Ferguson",MF!A54,IF(S$26="McCormick",McCormick!A54,IF(S$26="New Holland",NH!A54,IF(S$26="Kioti",KIOTI!A54,IF(S$26="Mahindra",MAHINDRA!A54,IF(S$26="Valtra",Valtra!A54,IF(S$26="","",0))))))))))))))))) -> 
Q66: =VLOOKUP(R50,Prices!B:E,4,0) ->  | T66: =IF(S$26="AGCO",AGCO!A55,IF(S$26="AGCO White",'AGCO White'!A55,IF(S$26="AGCO Allis",'AGCO Allis'!A55,IF(S$26="Buhler",Buhler!A55,IF(S$26="Case IH",Case!A55,IF(S$26="Challenger",Challenger!A55,IF(S$26="Deutz",Deutz!A55,IF(S$26="John Deere",'John Deere'!A55,IF(S$26="Kubota",Kubota!A57,IF(S$26="Landini",Landini!A55,IF(S$26="Massey Ferguson",MF!A55,IF(S$26="McCormick",McCormick!A55,IF(S$26="New Holland",NH!A55,IF(S$26="Kioti",KIOTI!A55,IF(S$26="Mahindra",MAHINDRA!A55,IF(S$26="Valtra",Valtra!A55,IF(S$26="","",0))))))))))))))))) -> 
T67: =IF(S$26="AGCO",AGCO!A56,IF(S$26="AGCO White",'AGCO White'!A56,IF(S$26="AGCO Allis",'AGCO Allis'!A56,IF(S$26="Buhler",Buhler!A56,IF(S$26="Case IH",Case!A56,IF(S$26="Challenger",Challenger!A56,IF(S$26="Deutz",Deutz!A56,IF(S$26="John Deere",'John Deere'!A56,IF(S$26="Kubota",Kubota!A58,IF(S$26="Landini",Landini!A56,IF(S$26="Massey Ferguson",MF!A56,IF(S$26="McCormick",McCormick!A56,IF(S$26="New Holland",NH!A56,IF(S$26="Kioti",KIOTI!A56,IF(S$26="Mahindra",MAHINDRA!A56,IF(S$26="Valtra",Valtra!A56,IF(S$26="","",0))))))))))))))))) -> 
T68: =IF(S$26="AGCO",AGCO!A57,IF(S$26="AGCO White",'AGCO White'!A57,IF(S$26="AGCO Allis",'AGCO Allis'!A57,IF(S$26="Buhler",Buhler!A57,IF(S$26="Case IH",Case!A57,IF(S$26="Challenger",Challenger!A57,IF(S$26="Deutz",Deutz!A57,IF(S$26="John Deere",'John Deere'!A57,IF(S$26="Kubota",Kubota!A59,IF(S$26="Landini",Landini!A57,IF(S$26="Massey Ferguson",MF!A57,IF(S$26="McCormick",McCormick!A57,IF(S$26="New Holland",NH!A57,IF(S$26="Kioti",KIOTI!A57,IF(S$26="Mahindra",MAHINDRA!A57,IF(S$26="Valtra",Valtra!A57,IF(S$26="","",0))))))))))))))))) -> 
T69: =IF(S$26="AGCO",AGCO!A58,IF(S$26="AGCO White",'AGCO White'!A58,IF(S$26="AGCO Allis",'AGCO Allis'!A58,IF(S$26="Buhler",Buhler!A58,IF(S$26="Case IH",Case!A58,IF(S$26="Challenger",Challenger!A58,IF(S$26="Deutz",Deutz!A58,IF(S$26="John Deere",'John Deere'!A58,IF(S$26="Kubota",Kubota!A60,IF(S$26="Landini",Landini!A58,IF(S$26="Massey Ferguson",MF!A58,IF(S$26="McCormick",McCormick!A58,IF(S$26="New Holland",NH!A58,IF(S$26="Kioti",KIOTI!A58,IF(S$26="Mahindra",MAHINDRA!A58,IF(S$26="Valtra",Valtra!A58,IF(S$26="","",0))))))))))))))))) -> 
T70: =IF(S$26="AGCO",AGCO!A59,IF(S$26="AGCO White",'AGCO White'!A59,IF(S$26="AGCO Allis",'AGCO Allis'!A59,IF(S$26="Buhler",Buhler!A59,IF(S$26="Case IH",Case!A59,IF(S$26="Challenger",Challenger!A59,IF(S$26="Deutz",Deutz!A59,IF(S$26="John Deere",'John Deere'!A59,IF(S$26="Kubota",Kubota!A61,IF(S$26="Landini",Landini!A59,IF(S$26="Massey Ferguson",MF!A59,IF(S$26="McCormick",McCormick!A59,IF(S$26="New Holland",NH!A59,IF(S$26="Kioti",KIOTI!A59,IF(S$26="Mahindra",MAHINDRA!A59,IF(S$26="Valtra",Valtra!A59,IF(S$26="","",0))))))))))))))))) -> 
T71: =IF(S$26="AGCO",AGCO!A60,IF(S$26="AGCO White",'AGCO White'!A60,IF(S$26="AGCO Allis",'AGCO Allis'!A60,IF(S$26="Buhler",Buhler!A60,IF(S$26="Case IH",Case!A60,IF(S$26="Challenger",Challenger!A60,IF(S$26="Deutz",Deutz!A60,IF(S$26="John Deere",'John Deere'!A60,IF(S$26="Kubota",Kubota!A62,IF(S$26="Landini",Landini!A60,IF(S$26="Massey Ferguson",MF!A60,IF(S$26="McCormick",McCormick!A60,IF(S$26="New Holland",NH!A60,IF(S$26="Kioti",KIOTI!A60,IF(S$26="Mahindra",MAHINDRA!A60,IF(S$26="Valtra",Valtra!A60,IF(S$26="","",0))))))))))))))))) -> 
T72: =IF(S$26="AGCO",AGCO!A61,IF(S$26="AGCO White",'AGCO White'!A61,IF(S$26="AGCO Allis",'AGCO Allis'!A61,IF(S$26="Buhler",Buhler!A61,IF(S$26="Case IH",Case!A61,IF(S$26="Challenger",Challenger!A61,IF(S$26="Deutz",Deutz!A61,IF(S$26="John Deere",'John Deere'!A61,IF(S$26="Kubota",Kubota!A63,IF(S$26="Landini",Landini!A61,IF(S$26="Massey Ferguson",MF!A61,IF(S$26="McCormick",McCormick!A61,IF(S$26="New Holland",NH!A61,IF(S$26="Kioti",KIOTI!A61,IF(S$26="Mahindra",MAHINDRA!A61,IF(S$26="Valtra",Valtra!A61,IF(S$26="","",0))))))))))))))))) -> 
T73: =IF(S$26="AGCO",AGCO!A62,IF(S$26="AGCO White",'AGCO White'!A62,IF(S$26="AGCO Allis",'AGCO Allis'!A62,IF(S$26="Buhler",Buhler!A62,IF(S$26="Case IH",Case!A62,IF(S$26="Challenger",Challenger!A62,IF(S$26="Deutz",Deutz!A62,IF(S$26="John Deere",'John Deere'!A62,IF(S$26="Kubota",Kubota!A64,IF(S$26="Landini",Landini!A62,IF(S$26="Massey Ferguson",MF!A62,IF(S$26="McCormick",McCormick!A62,IF(S$26="New Holland",NH!A62,IF(S$26="Kioti",KIOTI!A62,IF(S$26="Mahindra",MAHINDRA!A62,IF(S$26="Valtra",Valtra!A62,IF(S$26="","",0))))))))))))))))) -> 
T74: =IF(S$26="AGCO",AGCO!A63,IF(S$26="AGCO White",'AGCO White'!A63,IF(S$26="AGCO Allis",'AGCO Allis'!A63,IF(S$26="Buhler",Buhler!A63,IF(S$26="Case IH",Case!A63,IF(S$26="Challenger",Challenger!A63,IF(S$26="Deutz",Deutz!A63,IF(S$26="John Deere",'John Deere'!A63,IF(S$26="Kubota",Kubota!A65,IF(S$26="Landini",Landini!A63,IF(S$26="Massey Ferguson",MF!A63,IF(S$26="McCormick",McCormick!A63,IF(S$26="New Holland",NH!A63,IF(S$26="Kioti",KIOTI!A63,IF(S$26="Mahindra",MAHINDRA!A63,IF(S$26="Valtra",Valtra!A63,IF(S$26="","",0))))))))))))))))) -> 
T75: =IF(S$26="AGCO",AGCO!A64,IF(S$26="AGCO White",'AGCO White'!A64,IF(S$26="AGCO Allis",'AGCO Allis'!A64,IF(S$26="Buhler",Buhler!A64,IF(S$26="Case IH",Case!A64,IF(S$26="Challenger",Challenger!A64,IF(S$26="Deutz",Deutz!A64,IF(S$26="John Deere",'John Deere'!A64,IF(S$26="Kubota",Kubota!A66,IF(S$26="Landini",Landini!A64,IF(S$26="Massey Ferguson",MF!A64,IF(S$26="McCormick",McCormick!A64,IF(S$26="New Holland",NH!A64,IF(S$26="Kioti",KIOTI!A64,IF(S$26="Mahindra",MAHINDRA!A64,IF(S$26="Valtra",Valtra!A64,IF(S$26="","",0))))))))))))))))) -> 
T76: =IF(S$26="AGCO",AGCO!A65,IF(S$26="AGCO White",'AGCO White'!A65,IF(S$26="AGCO Allis",'AGCO Allis'!A65,IF(S$26="Buhler",Buhler!A65,IF(S$26="Case IH",Case!A65,IF(S$26="Challenger",Challenger!A65,IF(S$26="Deutz",Deutz!A65,IF(S$26="John Deere",'John Deere'!A65,IF(S$26="Kubota",Kubota!A67,IF(S$26="Landini",Landini!A65,IF(S$26="Massey Ferguson",MF!A65,IF(S$26="McCormick",McCormick!A65,IF(S$26="New Holland",NH!A65,IF(S$26="Kioti",KIOTI!A65,IF(S$26="Mahindra",MAHINDRA!A65,IF(S$26="Valtra",Valtra!A65,IF(S$26="","",0))))))))))))))))) -> 
T77: =IF(S$26="AGCO",AGCO!A66,IF(S$26="AGCO White",'AGCO White'!A66,IF(S$26="AGCO Allis",'AGCO Allis'!A66,IF(S$26="Buhler",Buhler!A66,IF(S$26="Case IH",Case!A66,IF(S$26="Challenger",Challenger!A66,IF(S$26="Deutz",Deutz!A66,IF(S$26="John Deere",'John Deere'!A66,IF(S$26="Kubota",Kubota!A68,IF(S$26="Landini",Landini!A66,IF(S$26="Massey Ferguson",MF!A66,IF(S$26="McCormick",McCormick!A66,IF(S$26="New Holland",NH!A66,IF(S$26="Kioti",KIOTI!A66,IF(S$26="Mahindra",MAHINDRA!A66,IF(S$26="Valtra",Valtra!A66,IF(S$26="","",0))))))))))))))))) -> 
T78: =IF(S$26="AGCO",AGCO!A67,IF(S$26="AGCO White",'AGCO White'!A67,IF(S$26="AGCO Allis",'AGCO Allis'!A67,IF(S$26="Buhler",Buhler!A67,IF(S$26="Case IH",Case!A67,IF(S$26="Challenger",Challenger!A67,IF(S$26="Deutz",Deutz!A67,IF(S$26="John Deere",'John Deere'!A67,IF(S$26="Kubota",Kubota!A69,IF(S$26="Landini",Landini!A67,IF(S$26="Massey Ferguson",MF!A67,IF(S$26="McCormick",McCormick!A67,IF(S$26="New Holland",NH!A67,IF(S$26="Kioti",KIOTI!A67,IF(S$26="Mahindra",MAHINDRA!A67,IF(S$26="Valtra",Valtra!A67,IF(S$26="","",0))))))))))))))))) -> 
T79: =IF(S$26="AGCO",AGCO!A68,IF(S$26="AGCO White",'AGCO White'!A68,IF(S$26="AGCO Allis",'AGCO Allis'!A68,IF(S$26="Buhler",Buhler!A68,IF(S$26="Case IH",Case!A68,IF(S$26="Challenger",Challenger!A68,IF(S$26="Deutz",Deutz!A68,IF(S$26="John Deere",'John Deere'!A68,IF(S$26="Kubota",Kubota!A70,IF(S$26="Landini",Landini!A68,IF(S$26="Massey Ferguson",MF!A68,IF(S$26="McCormick",McCormick!A68,IF(S$26="New Holland",NH!A68,IF(S$26="Kioti",KIOTI!A68,IF(S$26="Mahindra",MAHINDRA!A68,IF(S$26="Valtra",Valtra!A68,IF(S$26="","",0))))))))))))))))) -> 
T80: =IF(S$26="AGCO",AGCO!A69,IF(S$26="AGCO White",'AGCO White'!A69,IF(S$26="AGCO Allis",'AGCO Allis'!A69,IF(S$26="Buhler",Buhler!A69,IF(S$26="Case IH",Case!A69,IF(S$26="Challenger",Challenger!A69,IF(S$26="Deutz",Deutz!A69,IF(S$26="John Deere",'John Deere'!A69,IF(S$26="Kubota",Kubota!A71,IF(S$26="Landini",Landini!A69,IF(S$26="Massey Ferguson",MF!A69,IF(S$26="McCormick",McCormick!A69,IF(S$26="New Holland",NH!A69,IF(S$26="Kioti",KIOTI!A69,IF(S$26="Mahindra",MAHINDRA!A69,IF(S$26="Valtra",Valtra!A69,IF(S$26="","",0))))))))))))))))) -> 
T81: =IF(S$26="AGCO",AGCO!A70,IF(S$26="AGCO White",'AGCO White'!A70,IF(S$26="AGCO Allis",'AGCO Allis'!A70,IF(S$26="Buhler",Buhler!A70,IF(S$26="Case IH",Case!A70,IF(S$26="Challenger",Challenger!A70,IF(S$26="Deutz",Deutz!A70,IF(S$26="John Deere",'John Deere'!A70,IF(S$26="Kubota",Kubota!A72,IF(S$26="Landini",Landini!A70,IF(S$26="Massey Ferguson",MF!A70,IF(S$26="McCormick",McCormick!A70,IF(S$26="New Holland",NH!A70,IF(S$26="Kioti",KIOTI!A70,IF(S$26="Mahindra",MAHINDRA!A70,IF(S$26="Valtra",Valtra!A70,IF(S$26="","",0))))))))))))))))) -> 
T82: =IF(S$26="AGCO",AGCO!A71,IF(S$26="AGCO White",'AGCO White'!A71,IF(S$26="AGCO Allis",'AGCO Allis'!A71,IF(S$26="Buhler",Buhler!A71,IF(S$26="Case IH",Case!A71,IF(S$26="Challenger",Challenger!A71,IF(S$26="Deutz",Deutz!A71,IF(S$26="John Deere",'John Deere'!A71,IF(S$26="Kubota",Kubota!A73,IF(S$26="Landini",Landini!A71,IF(S$26="Massey Ferguson",MF!A71,IF(S$26="McCormick",McCormick!A71,IF(S$26="New Holland",NH!A71,IF(S$26="Kioti",KIOTI!A71,IF(S$26="Mahindra",MAHINDRA!A71,IF(S$26="Valtra",Valtra!A71,IF(S$26="","",0))))))))))))))))) -> 
T83: =IF(S$26="AGCO",AGCO!A72,IF(S$26="AGCO White",'AGCO White'!A72,IF(S$26="AGCO Allis",'AGCO Allis'!A72,IF(S$26="Buhler",Buhler!A72,IF(S$26="Case IH",Case!A72,IF(S$26="Challenger",Challenger!A72,IF(S$26="Deutz",Deutz!A72,IF(S$26="John Deere",'John Deere'!A72,IF(S$26="Kubota",Kubota!A74,IF(S$26="Landini",Landini!A72,IF(S$26="Massey Ferguson",MF!A72,IF(S$26="McCormick",McCormick!A72,IF(S$26="New Holland",NH!A72,IF(S$26="Kioti",KIOTI!A72,IF(S$26="Mahindra",MAHINDRA!A72,IF(S$26="Valtra",Valtra!A72,IF(S$26="","",0))))))))))))))))) -> 
T84: =IF(S$26="AGCO",AGCO!A73,IF(S$26="AGCO White",'AGCO White'!A73,IF(S$26="AGCO Allis",'AGCO Allis'!A73,IF(S$26="Buhler",Buhler!A73,IF(S$26="Case IH",Case!A73,IF(S$26="Challenger",Challenger!A73,IF(S$26="Deutz",Deutz!A73,IF(S$26="John Deere",'John Deere'!A73,IF(S$26="Kubota",Kubota!A75,IF(S$26="Landini",Landini!A73,IF(S$26="Massey Ferguson",MF!A73,IF(S$26="McCormick",McCormick!A73,IF(S$26="New Holland",NH!A73,IF(S$26="Kioti",KIOTI!A73,IF(S$26="Mahindra",MAHINDRA!A73,IF(S$26="Valtra",Valtra!A73,IF(S$26="","",0))))))))))))))))) -> 
T85: =IF(S$26="AGCO",AGCO!A74,IF(S$26="AGCO White",'AGCO White'!A74,IF(S$26="AGCO Allis",'AGCO Allis'!A74,IF(S$26="Buhler",Buhler!A74,IF(S$26="Case IH",Case!A74,IF(S$26="Challenger",Challenger!A74,IF(S$26="Deutz",Deutz!A74,IF(S$26="John Deere",'John Deere'!A74,IF(S$26="Kubota",Kubota!A76,IF(S$26="Landini",Landini!A74,IF(S$26="Massey Ferguson",MF!A74,IF(S$26="McCormick",McCormick!A74,IF(S$26="New Holland",NH!A74,IF(S$26="Kioti",KIOTI!A74,IF(S$26="Mahindra",MAHINDRA!A74,IF(S$26="Valtra",Valtra!A74,IF(S$26="","",0))))))))))))))))) -> 
T86: =IF(S$26="AGCO",AGCO!A75,IF(S$26="AGCO White",'AGCO White'!A75,IF(S$26="AGCO Allis",'AGCO Allis'!A75,IF(S$26="Buhler",Buhler!A75,IF(S$26="Case IH",Case!A75,IF(S$26="Challenger",Challenger!A75,IF(S$26="Deutz",Deutz!A75,IF(S$26="John Deere",'John Deere'!A75,IF(S$26="Kubota",Kubota!A77,IF(S$26="Landini",Landini!A75,IF(S$26="Massey Ferguson",MF!A75,IF(S$26="McCormick",McCormick!A75,IF(S$26="New Holland",NH!A75,IF(S$26="Kioti",KIOTI!A75,IF(S$26="Mahindra",MAHINDRA!A75,IF(S$26="Valtra",Valtra!A75,IF(S$26="","",0))))))))))))))))) -> 
T87: =IF(S$26="AGCO",AGCO!A76,IF(S$26="AGCO White",'AGCO White'!A76,IF(S$26="AGCO Allis",'AGCO Allis'!A76,IF(S$26="Buhler",Buhler!A76,IF(S$26="Case IH",Case!A76,IF(S$26="Challenger",Challenger!A76,IF(S$26="Deutz",Deutz!A76,IF(S$26="John Deere",'John Deere'!A76,IF(S$26="Kubota",Kubota!A78,IF(S$26="Landini",Landini!A76,IF(S$26="Massey Ferguson",MF!A76,IF(S$26="McCormick",McCormick!A76,IF(S$26="New Holland",NH!A76,IF(S$26="Kioti",KIOTI!A76,IF(S$26="Mahindra",MAHINDRA!A76,IF(S$26="Valtra",Valtra!A76,IF(S$26="","",0))))))))))))))))) -> 
T88: =IF(S$26="AGCO",AGCO!A77,IF(S$26="AGCO White",'AGCO White'!A77,IF(S$26="AGCO Allis",'AGCO Allis'!A77,IF(S$26="Buhler",Buhler!A77,IF(S$26="Case IH",Case!A77,IF(S$26="Challenger",Challenger!A77,IF(S$26="Deutz",Deutz!A77,IF(S$26="John Deere",'John Deere'!A77,IF(S$26="Kubota",Kubota!A79,IF(S$26="Landini",Landini!A77,IF(S$26="Massey Ferguson",MF!A77,IF(S$26="McCormick",McCormick!A77,IF(S$26="New Holland",NH!A77,IF(S$26="Kioti",KIOTI!A77,IF(S$26="Mahindra",MAHINDRA!A77,IF(S$26="Valtra",Valtra!A77,IF(S$26="","",0))))))))))))))))) -> 
T89: =IF(S$26="AGCO",AGCO!A78,IF(S$26="AGCO White",'AGCO White'!A78,IF(S$26="AGCO Allis",'AGCO Allis'!A78,IF(S$26="Buhler",Buhler!A78,IF(S$26="Case IH",Case!A78,IF(S$26="Challenger",Challenger!A78,IF(S$26="Deutz",Deutz!A78,IF(S$26="John Deere",'John Deere'!A78,IF(S$26="Kubota",Kubota!A80,IF(S$26="Landini",Landini!A78,IF(S$26="Massey Ferguson",MF!A78,IF(S$26="McCormick",McCormick!A78,IF(S$26="New Holland",NH!A78,IF(S$26="Kioti",KIOTI!A78,IF(S$26="Mahindra",MAHINDRA!A78,IF(S$26="Valtra",Valtra!A78,IF(S$26="","",0))))))))))))))))) -> 
T90: =IF(S$26="AGCO",AGCO!A79,IF(S$26="AGCO White",'AGCO White'!A79,IF(S$26="AGCO Allis",'AGCO Allis'!A79,IF(S$26="Buhler",Buhler!A79,IF(S$26="Case IH",Case!A79,IF(S$26="Challenger",Challenger!A79,IF(S$26="Deutz",Deutz!A79,IF(S$26="John Deere",'John Deere'!A79,IF(S$26="Kubota",Kubota!A81,IF(S$26="Landini",Landini!A79,IF(S$26="Massey Ferguson",MF!A79,IF(S$26="McCormick",McCormick!A79,IF(S$26="New Holland",NH!A79,IF(S$26="Kioti",KIOTI!A79,IF(S$26="Mahindra",MAHINDRA!A79,IF(S$26="Valtra",Valtra!A79,IF(S$26="","",0))))))))))))))))) -> 
T91: =IF(S$26="AGCO",AGCO!A80,IF(S$26="AGCO White",'AGCO White'!A80,IF(S$26="AGCO Allis",'AGCO Allis'!A80,IF(S$26="Buhler",Buhler!A80,IF(S$26="Case IH",Case!A80,IF(S$26="Challenger",Challenger!A80,IF(S$26="Deutz",Deutz!A80,IF(S$26="John Deere",'John Deere'!A80,IF(S$26="Kubota",Kubota!A82,IF(S$26="Landini",Landini!A80,IF(S$26="Massey Ferguson",MF!A80,IF(S$26="McCormick",McCormick!A80,IF(S$26="New Holland",NH!A80,IF(S$26="Kioti",KIOTI!A80,IF(S$26="Mahindra",MAHINDRA!A80,IF(S$26="Valtra",Valtra!A80,IF(S$26="","",0))))))))))))))))) -> 
T92: =IF(S$26="AGCO",AGCO!A81,IF(S$26="AGCO White",'AGCO White'!A81,IF(S$26="AGCO Allis",'AGCO Allis'!A81,IF(S$26="Buhler",Buhler!A81,IF(S$26="Case IH",Case!A81,IF(S$26="Challenger",Challenger!A81,IF(S$26="Deutz",Deutz!A81,IF(S$26="John Deere",'John Deere'!A81,IF(S$26="Kubota",Kubota!A83,IF(S$26="Landini",Landini!A81,IF(S$26="Massey Ferguson",MF!A81,IF(S$26="McCormick",McCormick!A81,IF(S$26="New Holland",NH!A81,IF(S$26="Kioti",KIOTI!A81,IF(S$26="Mahindra",MAHINDRA!A81,IF(S$26="Valtra",Valtra!A81,IF(S$26="","",0))))))))))))))))) -> 
T93: =IF(S$26="AGCO",AGCO!A82,IF(S$26="AGCO White",'AGCO White'!A82,IF(S$26="AGCO Allis",'AGCO Allis'!A82,IF(S$26="Buhler",Buhler!A82,IF(S$26="Case IH",Case!A82,IF(S$26="Challenger",Challenger!A82,IF(S$26="Deutz",Deutz!A82,IF(S$26="John Deere",'John Deere'!A82,IF(S$26="Kubota",Kubota!A84,IF(S$26="Landini",Landini!A82,IF(S$26="Massey Ferguson",MF!A82,IF(S$26="McCormick",McCormick!A82,IF(S$26="New Holland",NH!A82,IF(S$26="Kioti",KIOTI!A82,IF(S$26="Mahindra",MAHINDRA!A82,IF(S$26="Valtra",Valtra!A82,IF(S$26="","",0))))))))))))))))) -> 
T94: =IF(S$26="AGCO",AGCO!A83,IF(S$26="AGCO White",'AGCO White'!A83,IF(S$26="AGCO Allis",'AGCO Allis'!A83,IF(S$26="Buhler",Buhler!A83,IF(S$26="Case IH",Case!A83,IF(S$26="Challenger",Challenger!A83,IF(S$26="Deutz",Deutz!A83,IF(S$26="John Deere",'John Deere'!A83,IF(S$26="Kubota",Kubota!A85,IF(S$26="Landini",Landini!A83,IF(S$26="Massey Ferguson",MF!A83,IF(S$26="McCormick",McCormick!A83,IF(S$26="New Holland",NH!A83,IF(S$26="Kioti",KIOTI!A83,IF(S$26="Mahindra",MAHINDRA!A83,IF(S$26="Valtra",Valtra!A83,IF(S$26="","",0))))))))))))))))) -> 
T95: =IF(S$26="AGCO",AGCO!A84,IF(S$26="AGCO White",'AGCO White'!A84,IF(S$26="AGCO Allis",'AGCO Allis'!A84,IF(S$26="Buhler",Buhler!A84,IF(S$26="Case IH",Case!A84,IF(S$26="Challenger",Challenger!A84,IF(S$26="Deutz",Deutz!A84,IF(S$26="John Deere",'John Deere'!A84,IF(S$26="Kubota",Kubota!A86,IF(S$26="Landini",Landini!A84,IF(S$26="Massey Ferguson",MF!A84,IF(S$26="McCormick",McCormick!A84,IF(S$26="New Holland",NH!A84,IF(S$26="Kioti",KIOTI!A84,IF(S$26="Mahindra",MAHINDRA!A84,IF(S$26="Valtra",Valtra!A84,IF(S$26="","",0))))))))))))))))) -> 
T96: =IF(S$26="AGCO",AGCO!A85,IF(S$26="AGCO White",'AGCO White'!A85,IF(S$26="AGCO Allis",'AGCO Allis'!A85,IF(S$26="Buhler",Buhler!A85,IF(S$26="Case IH",Case!A85,IF(S$26="Challenger",Challenger!A85,IF(S$26="Deutz",Deutz!A85,IF(S$26="John Deere",'John Deere'!A85,IF(S$26="Kubota",Kubota!A87,IF(S$26="Landini",Landini!A85,IF(S$26="Massey Ferguson",MF!A85,IF(S$26="McCormick",McCormick!A85,IF(S$26="New Holland",NH!A85,IF(S$26="Kioti",KIOTI!A85,IF(S$26="Mahindra",MAHINDRA!A85,IF(S$26="Valtra",Valtra!A85,IF(S$26="","",0))))))))))))))))) -> 
T97: =IF(S$26="AGCO",AGCO!A86,IF(S$26="AGCO White",'AGCO White'!A86,IF(S$26="AGCO Allis",'AGCO Allis'!A86,IF(S$26="Buhler",Buhler!A86,IF(S$26="Case IH",Case!A86,IF(S$26="Challenger",Challenger!A86,IF(S$26="Deutz",Deutz!A86,IF(S$26="John Deere",'John Deere'!A86,IF(S$26="Kubota",Kubota!A88,IF(S$26="Landini",Landini!A86,IF(S$26="Massey Ferguson",MF!A86,IF(S$26="McCormick",McCormick!A86,IF(S$26="New Holland",NH!A86,IF(S$26="Kioti",KIOTI!A86,IF(S$26="Mahindra",MAHINDRA!A86,IF(S$26="Valtra",Valtra!A86,IF(S$26="","",0))))))))))))))))) -> 
T98: =IF(S$26="AGCO",AGCO!A87,IF(S$26="AGCO White",'AGCO White'!A87,IF(S$26="AGCO Allis",'AGCO Allis'!A87,IF(S$26="Buhler",Buhler!A87,IF(S$26="Case IH",Case!A87,IF(S$26="Challenger",Challenger!A87,IF(S$26="Deutz",Deutz!A87,IF(S$26="John Deere",'John Deere'!A87,IF(S$26="Kubota",Kubota!A89,IF(S$26="Landini",Landini!A87,IF(S$26="Massey Ferguson",MF!A87,IF(S$26="McCormick",McCormick!A87,IF(S$26="New Holland",NH!A87,IF(S$26="Kioti",KIOTI!A87,IF(S$26="Mahindra",MAHINDRA!A87,IF(S$26="Valtra",Valtra!A87,IF(S$26="","",0))))))))))))))))) -> 
T99: =IF(S$26="AGCO",AGCO!A88,IF(S$26="AGCO White",'AGCO White'!A88,IF(S$26="AGCO Allis",'AGCO Allis'!A88,IF(S$26="Buhler",Buhler!A88,IF(S$26="Case IH",Case!A88,IF(S$26="Challenger",Challenger!A88,IF(S$26="Deutz",Deutz!A88,IF(S$26="John Deere",'John Deere'!A88,IF(S$26="Kubota",Kubota!A90,IF(S$26="Landini",Landini!A88,IF(S$26="Massey Ferguson",MF!A88,IF(S$26="McCormick",McCormick!A88,IF(S$26="New Holland",NH!A88,IF(S$26="Kioti",KIOTI!A88,IF(S$26="Mahindra",MAHINDRA!A88,IF(S$26="Valtra",Valtra!A88,IF(S$26="","",0))))))))))))))))) -> 
T100: =IF(S$26="AGCO",AGCO!A89,IF(S$26="AGCO White",'AGCO White'!A89,IF(S$26="AGCO Allis",'AGCO Allis'!A89,IF(S$26="Buhler",Buhler!A89,IF(S$26="Case IH",Case!A89,IF(S$26="Challenger",Challenger!A89,IF(S$26="Deutz",Deutz!A89,IF(S$26="John Deere",'John Deere'!A89,IF(S$26="Kubota",Kubota!A91,IF(S$26="Landini",Landini!A89,IF(S$26="Massey Ferguson",MF!A89,IF(S$26="McCormick",McCormick!A89,IF(S$26="New Holland",NH!A89,IF(S$26="Kioti",KIOTI!A89,IF(S$26="Mahindra",MAHINDRA!A89,IF(S$26="Valtra",Valtra!A89,IF(S$26="","",0))))))))))))))))) -> 
T101: =IF(S$26="AGCO",AGCO!A90,IF(S$26="AGCO White",'AGCO White'!A90,IF(S$26="AGCO Allis",'AGCO Allis'!A90,IF(S$26="Buhler",Buhler!A90,IF(S$26="Case IH",Case!A90,IF(S$26="Challenger",Challenger!A90,IF(S$26="Deutz",Deutz!A90,IF(S$26="John Deere",'John Deere'!A90,IF(S$26="Kubota",Kubota!A92,IF(S$26="Landini",Landini!A90,IF(S$26="Massey Ferguson",MF!A90,IF(S$26="McCormick",McCormick!A90,IF(S$26="New Holland",NH!A90,IF(S$26="Kioti",KIOTI!A90,IF(S$26="Mahindra",MAHINDRA!A90,IF(S$26="Valtra",Valtra!A90,IF(S$26="","",0))))))))))))))))) -> 
T102: =IF(S$26="AGCO",AGCO!A91,IF(S$26="AGCO White",'AGCO White'!A91,IF(S$26="AGCO Allis",'AGCO Allis'!A91,IF(S$26="Buhler",Buhler!A91,IF(S$26="Case IH",Case!A91,IF(S$26="Challenger",Challenger!A91,IF(S$26="Deutz",Deutz!A91,IF(S$26="John Deere",'John Deere'!A91,IF(S$26="Kubota",Kubota!A93,IF(S$26="Landini",Landini!A91,IF(S$26="Massey Ferguson",MF!A91,IF(S$26="McCormick",McCormick!A91,IF(S$26="New Holland",NH!A91,IF(S$26="Kioti",KIOTI!A91,IF(S$26="Mahindra",MAHINDRA!A91,IF(S$26="Valtra",Valtra!A91,IF(S$26="","",0))))))))))))))))) -> 
T103: =IF(S$26="AGCO",AGCO!A92,IF(S$26="AGCO White",'AGCO White'!A92,IF(S$26="AGCO Allis",'AGCO Allis'!A92,IF(S$26="Buhler",Buhler!A92,IF(S$26="Case IH",Case!A92,IF(S$26="Challenger",Challenger!A92,IF(S$26="Deutz",Deutz!A92,IF(S$26="John Deere",'John Deere'!A92,IF(S$26="Kubota",Kubota!A94,IF(S$26="Landini",Landini!A92,IF(S$26="Massey Ferguson",MF!A92,IF(S$26="McCormick",McCormick!A92,IF(S$26="New Holland",NH!A92,IF(S$26="Kioti",KIOTI!A92,IF(S$26="Mahindra",MAHINDRA!A92,IF(S$26="Valtra",Valtra!A92,IF(S$26="","",0))))))))))))))))) -> 
T104: =IF(S$26="AGCO",AGCO!A93,IF(S$26="AGCO White",'AGCO White'!A93,IF(S$26="AGCO Allis",'AGCO Allis'!A93,IF(S$26="Buhler",Buhler!A93,IF(S$26="Case IH",Case!A93,IF(S$26="Challenger",Challenger!A93,IF(S$26="Deutz",Deutz!A93,IF(S$26="John Deere",'John Deere'!A93,IF(S$26="Kubota",Kubota!A95,IF(S$26="Landini",Landini!A93,IF(S$26="Massey Ferguson",MF!A93,IF(S$26="McCormick",McCormick!A93,IF(S$26="New Holland",NH!A93,IF(S$26="Kioti",KIOTI!A93,IF(S$26="Mahindra",MAHINDRA!A93,IF(S$26="Valtra",Valtra!A93,IF(S$26="","",0))))))))))))))))) -> 
T105: =IF(S$26="AGCO",AGCO!A94,IF(S$26="AGCO White",'AGCO White'!A94,IF(S$26="AGCO Allis",'AGCO Allis'!A94,IF(S$26="Buhler",Buhler!A94,IF(S$26="Case IH",Case!A94,IF(S$26="Challenger",Challenger!A94,IF(S$26="Deutz",Deutz!A94,IF(S$26="John Deere",'John Deere'!A94,IF(S$26="Kubota",Kubota!A96,IF(S$26="Landini",Landini!A94,IF(S$26="Massey Ferguson",MF!A94,IF(S$26="McCormick",McCormick!A94,IF(S$26="New Holland",NH!A94,IF(S$26="Kioti",KIOTI!A94,IF(S$26="Mahindra",MAHINDRA!A94,IF(S$26="Valtra",Valtra!A94,IF(S$26="","",0))))))))))))))))) -> 
T106: =IF(S$26="AGCO",AGCO!A95,IF(S$26="AGCO White",'AGCO White'!A95,IF(S$26="AGCO Allis",'AGCO Allis'!A95,IF(S$26="Buhler",Buhler!A95,IF(S$26="Case IH",Case!A95,IF(S$26="Challenger",Challenger!A95,IF(S$26="Deutz",Deutz!A95,IF(S$26="John Deere",'John Deere'!A95,IF(S$26="Kubota",Kubota!A97,IF(S$26="Landini",Landini!A95,IF(S$26="Massey Ferguson",MF!A95,IF(S$26="McCormick",McCormick!A95,IF(S$26="New Holland",NH!A95,IF(S$26="Kioti",KIOTI!A95,IF(S$26="Mahindra",MAHINDRA!A95,IF(S$26="Valtra",Valtra!A95,IF(S$26="","",0))))))))))))))))) -> 
T107: =IF(S$26="AGCO",AGCO!A96,IF(S$26="AGCO White",'AGCO White'!A96,IF(S$26="AGCO Allis",'AGCO Allis'!A96,IF(S$26="Buhler",Buhler!A96,IF(S$26="Case IH",Case!A96,IF(S$26="Challenger",Challenger!A96,IF(S$26="Deutz",Deutz!A96,IF(S$26="John Deere",'John Deere'!A96,IF(S$26="Kubota",Kubota!A98,IF(S$26="Landini",Landini!A96,IF(S$26="Massey Ferguson",MF!A96,IF(S$26="McCormick",McCormick!A96,IF(S$26="New Holland",NH!A96,IF(S$26="Kioti",KIOTI!A96,IF(S$26="Mahindra",MAHINDRA!A96,IF(S$26="Valtra",Valtra!A96,IF(S$26="","",0))))))))))))))))) -> 
T108: =IF(S$26="AGCO",AGCO!A97,IF(S$26="AGCO White",'AGCO White'!A97,IF(S$26="AGCO Allis",'AGCO Allis'!A97,IF(S$26="Buhler",Buhler!A97,IF(S$26="Case IH",Case!A97,IF(S$26="Challenger",Challenger!A97,IF(S$26="Deutz",Deutz!A97,IF(S$26="John Deere",'John Deere'!A97,IF(S$26="Kubota",Kubota!A99,IF(S$26="Landini",Landini!A97,IF(S$26="Massey Ferguson",MF!A97,IF(S$26="McCormick",McCormick!A97,IF(S$26="New Holland",NH!A97,IF(S$26="Kioti",KIOTI!A97,IF(S$26="Mahindra",MAHINDRA!A97,IF(S$26="Valtra",Valtra!A97,IF(S$26="","",0))))))))))))))))) -> 
T109: =IF(S$26="AGCO",AGCO!A98,IF(S$26="AGCO White",'AGCO White'!A98,IF(S$26="AGCO Allis",'AGCO Allis'!A98,IF(S$26="Buhler",Buhler!A98,IF(S$26="Case IH",Case!A98,IF(S$26="Challenger",Challenger!A98,IF(S$26="Deutz",Deutz!A98,IF(S$26="John Deere",'John Deere'!A98,IF(S$26="Kubota",Kubota!A100,IF(S$26="Landini",Landini!A98,IF(S$26="Massey Ferguson",MF!A98,IF(S$26="McCormick",McCormick!A98,IF(S$26="New Holland",NH!A98,IF(S$26="Kioti",KIOTI!A98,IF(S$26="Mahindra",MAHINDRA!A98,IF(S$26="Valtra",Valtra!A98,IF(S$26="","",0))))))))))))))))) -> 
T110: =IF(S$26="AGCO",AGCO!A99,IF(S$26="AGCO White",'AGCO White'!A99,IF(S$26="AGCO Allis",'AGCO Allis'!A99,IF(S$26="Buhler",Buhler!A99,IF(S$26="Case IH",Case!A99,IF(S$26="Challenger",Challenger!A99,IF(S$26="Deutz",Deutz!A99,IF(S$26="John Deere",'John Deere'!A99,IF(S$26="Kubota",Kubota!A101,IF(S$26="Landini",Landini!A99,IF(S$26="Massey Ferguson",MF!A99,IF(S$26="McCormick",McCormick!A99,IF(S$26="New Holland",NH!A99,IF(S$26="Kioti",KIOTI!A99,IF(S$26="Mahindra",MAHINDRA!A99,IF(S$26="Valtra",Valtra!A99,IF(S$26="","",0))))))))))))))))) -> 
T111: =IF(S$26="AGCO",AGCO!A100,IF(S$26="AGCO White",'AGCO White'!A100,IF(S$26="AGCO Allis",'AGCO Allis'!A100,IF(S$26="Buhler",Buhler!A100,IF(S$26="Case IH",Case!A100,IF(S$26="Challenger",Challenger!A100,IF(S$26="Deutz",Deutz!A100,IF(S$26="John Deere",'John Deere'!A100,IF(S$26="Kubota",Kubota!A102,IF(S$26="Landini",Landini!A100,IF(S$26="Massey Ferguson",MF!A100,IF(S$26="McCormick",McCormick!A100,IF(S$26="New Holland",NH!A100,IF(S$26="Kioti",KIOTI!A100,IF(S$26="Mahindra",MAHINDRA!A100,IF(S$26="Valtra",Valtra!A100,IF(S$26="","",0))))))))))))))))) -> 
T112: =IF(S$26="AGCO",AGCO!A101,IF(S$26="AGCO White",'AGCO White'!A101,IF(S$26="AGCO Allis",'AGCO Allis'!A101,IF(S$26="Buhler",Buhler!A101,IF(S$26="Case IH",Case!A101,IF(S$26="Challenger",Challenger!A101,IF(S$26="Deutz",Deutz!A101,IF(S$26="John Deere",'John Deere'!A101,IF(S$26="Kubota",Kubota!A103,IF(S$26="Landini",Landini!A101,IF(S$26="Massey Ferguson",MF!A101,IF(S$26="McCormick",McCormick!A101,IF(S$26="New Holland",NH!A101,IF(S$26="Kioti",KIOTI!A101,IF(S$26="Mahindra",MAHINDRA!A101,IF(S$26="Valtra",Valtra!A101,IF(S$26="","",0))))))))))))))))) -> 
T113: =IF(S$26="AGCO",AGCO!A102,IF(S$26="AGCO White",'AGCO White'!A102,IF(S$26="AGCO Allis",'AGCO Allis'!A102,IF(S$26="Buhler",Buhler!A102,IF(S$26="Case IH",Case!A102,IF(S$26="Challenger",Challenger!A102,IF(S$26="Deutz",Deutz!A102,IF(S$26="John Deere",'John Deere'!A102,IF(S$26="Kubota",Kubota!A104,IF(S$26="Landini",Landini!A102,IF(S$26="Massey Ferguson",MF!A102,IF(S$26="McCormick",McCormick!A102,IF(S$26="New Holland",NH!A102,IF(S$26="Kioti",KIOTI!A102,IF(S$26="Mahindra",MAHINDRA!A102,IF(S$26="Valtra",Valtra!A102,IF(S$26="","",0))))))))))))))))) -> 
T114: =IF(S$26="AGCO",AGCO!A103,IF(S$26="AGCO White",'AGCO White'!A103,IF(S$26="AGCO Allis",'AGCO Allis'!A103,IF(S$26="Buhler",Buhler!A103,IF(S$26="Case IH",Case!A103,IF(S$26="Challenger",Challenger!A103,IF(S$26="Deutz",Deutz!A103,IF(S$26="John Deere",'John Deere'!A103,IF(S$26="Kubota",Kubota!A105,IF(S$26="Landini",Landini!A103,IF(S$26="Massey Ferguson",MF!A103,IF(S$26="McCormick",McCormick!A103,IF(S$26="New Holland",NH!A103,IF(S$26="Kioti",KIOTI!A103,IF(S$26="Mahindra",MAHINDRA!A103,IF(S$26="Valtra",Valtra!A103,IF(S$26="","",0))))))))))))))))) -> 
T115: =IF(S$26="AGCO",AGCO!A104,IF(S$26="AGCO White",'AGCO White'!A104,IF(S$26="AGCO Allis",'AGCO Allis'!A104,IF(S$26="Buhler",Buhler!A104,IF(S$26="Case IH",Case!A104,IF(S$26="Challenger",Challenger!A104,IF(S$26="Deutz",Deutz!A104,IF(S$26="John Deere",'John Deere'!A104,IF(S$26="Kubota",Kubota!A106,IF(S$26="Landini",Landini!A104,IF(S$26="Massey Ferguson",MF!A104,IF(S$26="McCormick",McCormick!A104,IF(S$26="New Holland",NH!A104,IF(S$26="Kioti",KIOTI!A104,IF(S$26="Mahindra",MAHINDRA!A104,IF(S$26="Valtra",Valtra!A104,IF(S$26="","",0))))))))))))))))) -> 
T116: =IF(S$26="AGCO",AGCO!A105,IF(S$26="AGCO White",'AGCO White'!A105,IF(S$26="AGCO Allis",'AGCO Allis'!A105,IF(S$26="Buhler",Buhler!A105,IF(S$26="Case IH",Case!A105,IF(S$26="Challenger",Challenger!A105,IF(S$26="Deutz",Deutz!A105,IF(S$26="John Deere",'John Deere'!A105,IF(S$26="Kubota",Kubota!A107,IF(S$26="Landini",Landini!A105,IF(S$26="Massey Ferguson",MF!A105,IF(S$26="McCormick",McCormick!A105,IF(S$26="New Holland",NH!A105,IF(S$26="Kioti",KIOTI!A105,IF(S$26="Mahindra",MAHINDRA!A105,IF(S$26="Valtra",Valtra!A105,IF(S$26="","",0))))))))))))))))) -> 
T117: =IF(S$26="AGCO",AGCO!A106,IF(S$26="AGCO White",'AGCO White'!A106,IF(S$26="AGCO Allis",'AGCO Allis'!A106,IF(S$26="Buhler",Buhler!A106,IF(S$26="Case IH",Case!A106,IF(S$26="Challenger",Challenger!A106,IF(S$26="Deutz",Deutz!A106,IF(S$26="John Deere",'John Deere'!A106,IF(S$26="Kubota",Kubota!A108,IF(S$26="Landini",Landini!A106,IF(S$26="Massey Ferguson",MF!A106,IF(S$26="McCormick",McCormick!A106,IF(S$26="New Holland",NH!A106,IF(S$26="Kioti",KIOTI!A106,IF(S$26="Mahindra",MAHINDRA!A106,IF(S$26="Valtra",Valtra!A106,IF(S$26="","",0))))))))))))))))) -> 
T118: =IF(S$26="AGCO",AGCO!A107,IF(S$26="AGCO White",'AGCO White'!A107,IF(S$26="AGCO Allis",'AGCO Allis'!A107,IF(S$26="Buhler",Buhler!A107,IF(S$26="Case IH",Case!A107,IF(S$26="Challenger",Challenger!A107,IF(S$26="Deutz",Deutz!A107,IF(S$26="John Deere",'John Deere'!A107,IF(S$26="Kubota",Kubota!A109,IF(S$26="Landini",Landini!A107,IF(S$26="Massey Ferguson",MF!A107,IF(S$26="McCormick",McCormick!A107,IF(S$26="New Holland",NH!A107,IF(S$26="Kioti",KIOTI!A107,IF(S$26="Mahindra",MAHINDRA!A107,IF(S$26="Valtra",Valtra!A107,IF(S$26="","",0))))))))))))))))) -> 
T119: =IF(S$26="AGCO",AGCO!A108,IF(S$26="AGCO White",'AGCO White'!A108,IF(S$26="AGCO Allis",'AGCO Allis'!A108,IF(S$26="Buhler",Buhler!A108,IF(S$26="Case IH",Case!A108,IF(S$26="Challenger",Challenger!A108,IF(S$26="Deutz",Deutz!A108,IF(S$26="John Deere",'John Deere'!A108,IF(S$26="Kubota",Kubota!A110,IF(S$26="Landini",Landini!A108,IF(S$26="Massey Ferguson",MF!A108,IF(S$26="McCormick",McCormick!A108,IF(S$26="New Holland",NH!A108,IF(S$26="Kioti",KIOTI!A108,IF(S$26="Mahindra",MAHINDRA!A108,IF(S$26="Valtra",Valtra!A108,IF(S$26="","",0))))))))))))))))) -> 
T120: =IF(S$26="AGCO",AGCO!A109,IF(S$26="AGCO White",'AGCO White'!A109,IF(S$26="AGCO Allis",'AGCO Allis'!A109,IF(S$26="Buhler",Buhler!A109,IF(S$26="Case IH",Case!A109,IF(S$26="Challenger",Challenger!A109,IF(S$26="Deutz",Deutz!A109,IF(S$26="John Deere",'John Deere'!A109,IF(S$26="Kubota",Kubota!A111,IF(S$26="Landini",Landini!A109,IF(S$26="Massey Ferguson",MF!A109,IF(S$26="McCormick",McCormick!A109,IF(S$26="New Holland",NH!A109,IF(S$26="Kioti",KIOTI!A109,IF(S$26="Mahindra",MAHINDRA!A109,IF(S$26="Valtra",Valtra!A109,IF(S$26="","",0))))))))))))))))) -> 
T121: =IF(S$26="AGCO",AGCO!A110,IF(S$26="AGCO White",'AGCO White'!A110,IF(S$26="AGCO Allis",'AGCO Allis'!A110,IF(S$26="Buhler",Buhler!A110,IF(S$26="Case IH",Case!A110,IF(S$26="Challenger",Challenger!A110,IF(S$26="Deutz",Deutz!A110,IF(S$26="John Deere",'John Deere'!A110,IF(S$26="Kubota",Kubota!A112,IF(S$26="Landini",Landini!A110,IF(S$26="Massey Ferguson",MF!A110,IF(S$26="McCormick",McCormick!A110,IF(S$26="New Holland",NH!A110,IF(S$26="Kioti",KIOTI!A110,IF(S$26="Mahindra",MAHINDRA!A110,IF(S$26="Valtra",Valtra!A110,IF(S$26="","",0))))))))))))))))) -> 
T122: =IF(S$26="AGCO",AGCO!A111,IF(S$26="AGCO White",'AGCO White'!A111,IF(S$26="AGCO Allis",'AGCO Allis'!A111,IF(S$26="Buhler",Buhler!A111,IF(S$26="Case IH",Case!A111,IF(S$26="Challenger",Challenger!A111,IF(S$26="Deutz",Deutz!A111,IF(S$26="John Deere",'John Deere'!A111,IF(S$26="Kubota",Kubota!A113,IF(S$26="Landini",Landini!A111,IF(S$26="Massey Ferguson",MF!A111,IF(S$26="McCormick",McCormick!A111,IF(S$26="New Holland",NH!A111,IF(S$26="Kioti",KIOTI!A111,IF(S$26="Mahindra",MAHINDRA!A111,IF(S$26="Valtra",Valtra!A111,IF(S$26="","",0))))))))))))))))) -> 

Sheet Options (hidden)
A1: Q21 | B1: 4491 | C1: Q | D1: 21 | E1: 1 | G1: 5220651 | H1: 5220650 | I1: 5220451 | J1: 9031984 | K1: =VLOOKUP(A$42,'trip costs'!A:K,6,0) ->  | N1: ="" ->  | T1: N/A
A2: Q26 | B2: 6796 | C2: Q | D2: 26 | E2: 1 | G2: 5220651 | H2: 5220650 | I2: 5220451 | J2: 9031984 | K2: =VLOOKUP(A$42,'trip costs'!A:K,7,0) ->  | N2: ="" ->  | T2: N/A
A3: Q31 | B3: 4892 | C3: Q | D3: 31 | E3: 1 | G3: 5220651 | H3: 5220650 | I3: 5220451 | J3: 9031984 | K3: =VLOOKUP(A$42,'trip costs'!A:K,7,0) ->  | N3: ="" ->  | T3: N/A
A4: Q36 | B4: 7617 | C4: Q | D4: 36 | E4: 1 | G4: 5220651 | H4: 5220650 | I4: 5220451 | J4: 9031984 | K4: =VLOOKUP(A$42,'trip costs'!A:K,7,0) ->  | N4: ="" ->  | T4: N/A
A5: Q41 | B5: 6087 | C5: Q | D5: 41 | E5: 1 | G5: 5220651 | H5: 5220650 | I5: 5220451 | J5: 9031984 | K5: =VLOOKUP(A$42,'trip costs'!A:K,7,0) ->  | N5: ="" ->  | T5: N/A
A6: Q46 | B6: 8126 | C6: Q | D6: 46 | E6: 1 | G6: 5220651 | H6: 5220650 | I6: 5220451 | J6: 9031984 | K6: =VLOOKUP(A$42,'trip costs'!A:K,8,0) ->  | N6: ="" ->  | T6: N/A
A7: Q51 | B7: 6408 | C7: Q | D7: 51 | E7: 1 | G7: 5220653 | H7: 5220652 | I7: 5220451 | J7: 9031986 | K7: =VLOOKUP(A$42,'trip costs'!A:K,8,0) ->  | N7: You should consider SoftDrive for this configuration! | T7: N/A
A8: Q56 | B8: 9149 | C8: Q | D8: 56 | E8: 1 | G8: 5220653 | H8: 5220652 | I8: 5220451 | J8: 9031986 | K8: =VLOOKUP(A$42,'trip costs'!A:K,8,0) ->  | N8: You should consider SoftDrive for this configuration! | T8: N/A
A9: Q61 | B9: 7964 | C9: Q | D9: 61 | E9: 1 | G9: 5220653 | H9: 5220653 | I9: 5220451 | J9: 9031988 | K9: =VLOOKUP(A$42,'trip costs'!A:K,8,0) ->  | N9: You should consider SoftDrive for this configuration! | T9: N/A
A10: Q66 | B10: 9515 | C10: Q | D10: 66 | E10: 1 | G10: 5220653 | H10: 5220653 | I10: 5220451 | J10: 9031988 | K10: =VLOOKUP(A$42,'trip costs'!A:K,9,0) ->  | N10: You should consider SoftDrive for this configuration! | T10: =K10*2 -> 
A11: Q76 | B11: 10123 | C11: Q | D11: 76 | E11: 1 | G11: 5220654 | H11: 5220654 | I11: 5220451 | J11: 9031990 | K11: =VLOOKUP(A$42,'trip costs'!A:K,10,0) ->  | N11: You should consider SoftDrive for this configuration! | T11: =K11*2 -> 
A12: Q88 | B12: 13533 | C12: Q | D12: 88 | E12: 1 | G12: 5220655 | H12: 5220655 | I12: 5220452 | J12: 9031994 | K12: =VLOOKUP(A$42,'trip costs'!A:K,11,0) ->  | N12: You should consider SoftDrive for this configuration!
A13: Q98 | B13: 15670 | C13: Q | D13: 98 | E13: 1 | G13: 5220655 | H13: 5220655 | I13: 5220452 | J13: 9031996 | K13: N/A | N13: You should consider SoftDrive for this configuration!
A14: 100C | C14: CA | D14: 10 | E14: A1 | F14: 1 | G14: 5221796 | I14: 10550453 | K14: =VLOOKUP(A$42,'trip costs'!A:K,4,0) ->  | N14: ="" ->  | T14: N/A
A15: 140C | C15: CA | D15: 14 | E15: A1 | F15: 1 | G15: 5221796 | I15: 10550453 | K15: =VLOOKUP(A$42,'trip costs'!A:K,4,0) ->  | N15: ="" ->  | T15: N/A
A16: 160C | C16: CA | D16: 16 | E16: N1 | F16: 1 | G16: 5221796 | I16: 10550453 | K16: =VLOOKUP(A$42,'trip costs'!A:K,4,0) ->  | N16: ="" ->  | T16: N/A
A17: 180C | C17: CA | D17: 18 | E17: N1 | F17: 1 | G17: 5221796 | I17: 10550453 | K17: =VLOOKUP(A$42,'trip costs'!A:K,4,0) ->  | N17: ="" ->  | T17: N/A
A18: X21 | B18: 3444 | C18: XA | D18: 21 | E18: N1 | G18: 5034241 | H18: 5034241 | I18: 60010002 | K18: =VLOOKUP(A$42,'trip costs'!A:K,5,0) ->  | N18: ="" ->  | T18: N/A
A19: X26 | B19: 4428 | C19: XA | D19: 26 | E19: P1 | F19: 1 | G19: 5034241 | H19: 5034241 | I19: 60010002 | K19: =VLOOKUP(A$42,'trip costs'!A:K,6,0) ->  | N19: ="" ->  | T19: N/A
A20: X31 | B20: 3600 | C20: XA | D20: 31 | E20: N1 | G20: 5034241 | H20: 5034241 | I20: 60010002 | K20: =VLOOKUP(A$42,'trip costs'!A:K,6,0) ->  | N20: ="" ->  | T20: N/A
A21: X36 | B21: 4604 | C21: XA | D21: 36 | E21: P1 | F21: 1 | G21: 5034241 | H21: 5034241 | I21: 60010002 | K21: =VLOOKUP(A$42,'trip costs'!A:K,6,0) ->  | N21: ="" ->  | T21: N/A
A22: X41 | B22: 4014 | C22: XA | D22: 41 | E22: N1 | G22: 5034241 | H22: 5034241 | I22: 60010002 | K22: =VLOOKUP(A$42,'trip costs'!A:K,7,0) ->  | N22: ="" ->  | T22: N/A
A23: X46 | B23: 5069 | C23: XA | D23: 46 | E23: P1 | F23: 1 | G23: 5034241 | H23: 5034241 | I23: 60010002 | K23: =VLOOKUP(A$42,'trip costs'!A:K,7,0) ->  | N23: ="" ->  | T23: N/A
A24: X51 | B24: 4428 | C24: XA | D24: 51 | E24: N1 | G24: 5034241 | H24: 5034241 | I24: 60010002 | K24: =VLOOKUP(A$42,'trip costs'!A:K,7,0) ->  | M24: =VLOOKUP(A39,A1:K25,11,0) ->  | N24: You should consider SoftDrive for this configuration! | T24: N/A | V24: =VLOOKUP(A39,A1:T25,20,0) -> 
A25: X56 | B25: 5535 | C25: XA | D25: 56 | E25: P1 | F25: 1 | G25: 5034241 | H25: 5034241 | I25: 60010002 | K25: =VLOOKUP(A$42,'trip costs'!A:K,8,0) ->  | M25: =IF(ISERROR(M24),"",M24) ->  | N25: You should consider SoftDrive for this configuration! | T25: N/A | V25: =IF(ISERROR(V24),"",V24) -> 
B27: Q Codes | C27: X Codes
A28: Quicke Grey | B28: A | C28: Q
A29: John Deere Green | B29: 2 | C29: 1
A30: Kubota Orange | B30: 4 | C30: K
A31: Massey Ferguson Red | B31: G | C31: M
A32: New Holland Blue | B32: P | C32: F | J32: =VLOOKUP(A39,A1:C25,3,0) ->  | K32: =IF(J32="Q",N37,N36) ->  | L32: =IF(ISERROR(K32),"",K32) -> 
A33: Case IH Red | B33: E | C33: D | L33: =L32 -> 
A34: Deutz Green | B34: 8 | C34: 8 | H34: =VLOOKUP(LOADERpro!P19,A11:F25,6,0) -> 
H35: =IF(H34=1,H36,"") -> 
A36: X Code | B36: =VLOOKUP(A39,A14:C25,3,0) ->  | C36: =VLOOKUP(A39,A14:D25,4,0) ->  | D36: =VLOOKUP(A39,A14:E25,5,0) ->  | E36: =E42 ->  | F36: =IF(A41="Euro",8,IF(A41="Skid Steer",1,IF(A41="PIN ON","O",""))) ->  | G36: =IF(B36="CA","OOO","1OO") ->  | H36: =VLOOKUP(LOADERpro!X17,A28:C34,3,0) ->  | I36: =IF(H34=1,H36,"") ->  | J36: =B36&C36&D36&E36&F36&G36&H36&I36 ->  | N36: =IF(ISERROR(J36),"",J36) -> 
A37: Q Code | B37: =VLOOKUP(A39,A1:D25,4,0) ->  | C37: =VLOOKUP(A39,A1:E13,5,0) ->  | D37: =D42 ->  | E37: =VLOOKUP(A40,A28:B34,2,0) ->  | F37: =IF(A41="Euro",8,IF(A41="Skid Steer",1,"")) ->  | G37: =IF(A41="Euro",8,IF(A41="Skid Steer",1,"")) ->  | H37: =IF(ISERROR(H38),"",H38) -> 5000 | J37: =B37&C37&D37&E37&G37&H37 ->  | N37: =IF(ISERROR(J37),"",J37) -> 
D38: =LOADERpro!N17 ->  | H38: =IF(LOADERpro!N17="US",1000,IF(LOADERpro!N17="UM",1000,5000)) -> 5000
A39: =LOADERpro!P19 -> 0
A40: =LOADERpro!X17 -> 0
A41: =LOADERpro!Q12 -> 0
A42: =LOADERpro!H9 -> 0 | D42: =VLOOKUP(LOADERpro!R28,'Loader Details'!Q:Y,9,0) ->  | E42: =VLOOKUP(LOADERpro!R28,'Loader Details'!Q:X,8,0) -> 

Sheet trip costs (hidden)
A1: FREIGHT | B1: CLASS | E1: 6 | F1: 7 | G1: 7 | H1: 7 | I1: 7 | K1: 7
A2: RATES
A4: STATE | D4: 100-180C | E4: X21 | F4: Q21,X26,X31,X36 | G4: Q26-Q41 X41-X51 | H4: Q46-Q61, X56 | I4: Q66 | J4: Q76 | K4: Q88 | M4: STATE | O4: 1847, 1045, 2247 | P4: 2045, 3045, 180C | Q4: 2347, 160C SL, 180C SL, 3545, 2427, 2447, 4045, 200N | R4: 5045, 200P, 2847, 220N, 6045, S21, 220P | S4: Q31/33, 240N, 3227, 240P, Q26, 260N, Q41, Q36/38 | T4: Q46/48, 260P, Q51, Q61, Q56/58 | U4: Q66/68 | V4: Q76/78 | W4: Q88
A5: AL | B5: ALABAMA | D5: 226 | E5: 231 | F5: 278 | G5: 324 | H5: 369 | I5: =H5+150 -> 519 | J5: =H5+200 -> 569 | K5: =H5+250 -> 619 | M5: AL | N5: ALABAMA | O5: 141 | P5: 226 | Q5: 231 | R5: 278 | S5: 324 | T5: 369 | U5: 519 | V5: 569 | W5: 619
A6: AR | B6: ARKANSAS | D6: 328 | E6: 349 | F6: 419 | G6: 489 | H6: 559 | I6: =H6+150 -> 709 | J6: =H6+200 -> 759 | K6: =H6+250 -> 809 | M6: AR | N6: ARKANSAS | O6: 205 | P6: 328 | Q6: 349 | R6: 419 | S6: 489 | T6: 559 | U6: 709 | V6: 759 | W6: 809
A7: AZ | B7: ARIZONA | D7: 434 | E7: 457 | F7: 548 | G7: 639 | H7: 730 | I7: 880 | J7: 930 | K7: 980 | M7: AZ | N7: ARIZONA | O7: 272 | P7: 434 | Q7: 457 | R7: 548 | S7: 639 | T7: 730 | U7: 880 | V7: 930 | W7: 980
A8: CA | B8: CALIFORNIA | D8: 566 | E8: 595 | F8: 714 | G8: 764 | H8: 873 | I8: 1023 | J8: 1073 | K8: 1123 | M8: CA | N8: CALIFORNIA | O8: 354 | P8: 566 | Q8: 595 | R8: 714 | S8: 764 | T8: 873 | U8: 1023 | V8: 1073 | W8: 1123
A9: CO | B9: COLORADO | D9: 438 | E9: 460 | F9: 552 | G9: 644 | H9: 675 | I9: 825 | J9: 875 | K9: 925 | M9: CO | N9: COLORADO | O9: 274 | P9: 438 | Q9: 460 | R9: 552 | S9: 644 | T9: 675 | U9: 825 | V9: 875 | W9: 925
A10: CT | B10: CONNECTICUT | D10: 318 | E10: 325 | F10: 390 | G10: 455 | H10: 519 | I10: 669 | J10: 719 | K10: 769 | M10: CT | N10: CONNECTICUT | O10: 199 | P10: 318 | Q10: 325 | R10: 390 | S10: 455 | T10: 519 | U10: 669 | V10: 719 | W10: 769
A11: DE | B11: DELAWARE | D11: 245 | E11: 251 | F11: 301 | G11: 351 | H11: 401 | I11: 551 | J11: 601 | K11: 651 | M11: DE | N11: DELAWARE | O11: 163 | P11: 245 | Q11: 251 | R11: 301 | S11: 351 | T11: 401 | U11: 551 | V11: 601 | W11: 651
A12: FL | B12: FLORIDA | D12: 302 | E12: 310 | F12: 372 | G12: 434 | H12: 496 | I12: 646 | J12: 696 | K12: 746 | M12: FL | N12: FLORIDA | O12: 189 | P12: 302 | Q12: 310 | R12: 372 | S12: 434 | T12: 496 | U12: 646 | V12: 696 | W12: 746
A13: GA | B13: GEORGIA | D13: 239 | E13: 244 | F13: 293 | G13: 342 | H13: 390 | I13: 540 | J13: 590 | K13: 640 | M13: GA | N13: GEORGIA | O13: 150 | P13: 239 | Q13: 244 | R13: 293 | S13: 342 | T13: 390 | U13: 540 | V13: 590 | W13: 640
A14: IA | B14: IOWA | D14: 309 | E14: 313 | F14: 375 | G14: 438 | H14: 500 | I14: 650 | J14: 700 | K14: 750 | M14: IA | N14: IOWA | O14: 193 | P14: 309 | Q14: 313 | R14: 375 | S14: 438 | T14: 500 | U14: 650 | V14: 700 | W14: 750
A15: ID | B15: IDAHO | D15: 504 | E15: 530 | F15: 636 | G15: 742 | H15: 848 | I15: 998 | J15: 1048 | K15: 1098 | M15: ID | N15: IDAHO | O15: 315 | P15: 504 | Q15: 530 | R15: 636 | S15: 742 | T15: 848 | U15: 998 | V15: 1048 | W15: 1098
A16: IL | B16: ILLINOIS | D16: 284 | E16: 287 | F16: 345 | G16: 402 | H16: 459 | I16: 609 | J16: 659 | K16: 709 | M16: IL | N16: ILLINOIS | O16: 178 | P16: 284 | Q16: 287 | R16: 345 | S16: 402 | T16: 459 | U16: 609 | V16: 659 | W16: 709
A17: IN | B17: INDIANA | D17: 254 | E17: 257 | F17: 308 | G17: 331 | H17: 378 | I17: 528 | J17: 578 | K17: 628 | M17: IN | N17: INDIANA | O17: 163 | P17: 254 | Q17: 257 | R17: 308 | S17: 331 | T17: 378 | U17: 528 | V17: 578 | W17: 628
A18: KS | B18: KANSAS | D18: 328 | E18: 349 | F18: 419 | G18: 489 | H18: 559 | I18: 709 | J18: 759 | K18: 809 | M18: KS | N18: KANSAS | O18: 205 | P18: 328 | Q18: 349 | R18: 419 | S18: 489 | T18: 559 | U18: 709 | V18: 759 | W18: 809
A19: KY | B19: KENTUCKY | D19: 206 | E19: 206 | F19: 247 | G19: 288 | H19: 329 | I19: 479 | J19: 529 | K19: 579 | M19: KY | N19: KENTUCKY | O19: 134 | P19: 206 | Q19: 206 | R19: 247 | S19: 288 | T19: 329 | U19: 479 | V19: 529 | W19: 579
A20: LA | B20: LOUISIANA | D20: 310 | E20: 330 | F20: 396 | G20: 462 | H20: 528 | I20: 678 | J20: 728 | K20: 778 | M20: LA | N20: LOUISIANA | O20: 194 | P20: 310 | Q20: 330 | R20: 396 | S20: 462 | T20: 528 | U20: 678 | V20: 728 | W20: 778
A21: MA | B21: MASSACHUSETS | D21: 345 | E21: 367 | F21: 440 | G21: 513 | H21: 586 | I21: 736 | J21: 786 | K21: 836 | M21: MA | N21: MASSACHUSETS | O21: 216 | P21: 345 | Q21: 367 | R21: 440 | S21: 513 | T21: 586 | U21: 736 | V21: 786 | W21: 836
A22: MD | B22: MARYLAND | D22: 233 | E22: 240 | F22: 287 | G22: 335 | H22: 383 | I22: 533 | J22: 583 | K22: 633 | M22: MD | N22: MARYLAND | O22: 159 | P22: 233 | Q22: 240 | R22: 287 | S22: 335 | T22: 383 | U22: 533 | V22: 583 | W22: 633
A23: ME | B23: MAINE | D23: 727 | E23: 773 | F23: 928 | G23: 1082 | H23: 1237 | I23: 1387 | J23: 1437 | K23: 1487 | M23: ME | N23: MAINE | O23: 455 | P23: 727 | Q23: 773 | R23: 928 | S23: 1082 | T23: 1237 | U23: 1387 | V23: 1437 | W23: 1487
A24: MI | B24: MICHIGAN | D24: 267 | E24: 270 | F24: 324 | G24: 348 | H24: 399 | I24: 549 | J24: 599 | K24: 649 | M24: MI | N24: MICHIGAN | O24: 170 | P24: 267 | Q24: 270 | R24: 324 | S24: 348 | T24: 399 | U24: 549 | V24: 599 | W24: 649
A25: MN | B25: MINNESOTA | D25: 356 | E25: 379 | F25: 454 | G25: 530 | H25: 605 | I25: 755 | J25: 805 | K25: 855 | M25: MN | N25: MINNESOTA | O25: 223 | P25: 356 | Q25: 379 | R25: 454 | S25: 530 | T25: 605 | U25: 755 | V25: 805 | W25: 855
A26: MO | B26: MISSOURI | D26: 338 | E26: 360 | F26: 431 | G26: 503 | H26: 575 | I26: 725 | J26: 775 | K26: 825 | M26: MO | N26: MISSOURI | O26: 211 | P26: 338 | Q26: 360 | R26: 431 | S26: 503 | T26: 575 | U26: 725 | V26: 775 | W26: 825
A27: MS | B27: MISSISSIPPI | D27: 266 | E27: 273 | F27: 327 | G27: 381 | H27: 436 | I27: 586 | J27: 636 | K27: 686 | M27: MS | N27: MISSISSIPPI | O27: 166 | P27: 266 | Q27: 273 | R27: 327 | S27: 381 | T27: 436 | U27: 586 | V27: 636 | W27: 686
A28: MT | B28: MONTANA | D28: 548 | E28: 576 | F28: 691 | G28: 806 | H28: 921 | I28: 1071 | J28: 1121 | K28: 1171 | M28: MT | N28: MONTANA | O28: 342 | P28: 548 | Q28: 576 | R28: 691 | S28: 806 | T28: 921 | U28: 1071 | V28: 1121 | W28: 1171
A29: NC | B29: NORTH CAROLINA | D29: 170 | E29: 170 | F29: 204 | G29: 238 | H29: 272 | I29: 422 | J29: 472 | K29: 522 | M29: NC | N29: NORTH CAROLINA | O29: 119 | P29: 170 | Q29: 170 | R29: 204 | S29: 238 | T29: 272 | U29: 422 | V29: 472 | W29: 522
A30: ND | B30: NORTH DAKOTA | D30: 401 | E30: 427 | F30: 512 | G30: 597 | H30: 625 | I30: 775 | J30: 825 | K30: 875 | M30: ND | N30: NORTH DAKOTA | O30: 251 | P30: 401 | Q30: 427 | R30: 512 | S30: 597 | T30: 625 | U30: 775 | V30: 825 | W30: 875
A31: NE | B31: NEBRASKA | D31: 359 | E31: 382 | F31: 458 | G31: 535 | H31: 611 | I31: 761 | J31: 811 | K31: 861 | M31: NE | N31: NEBRASKA | O31: 225 | P31: 359 | Q31: 382 | R31: 458 | S31: 535 | T31: 611 | U31: 761 | V31: 811 | W31: 861
A32: NH | B32: NEW HAMPSHIRE | D32: 354 | E32: 377 | F32: 453 | G32: 528 | H32: 604 | I32: 754 | J32: 804 | K32: 854 | M32: NH | N32: NEW HAMPSHIRE | O32: 221 | P32: 354 | Q32: 377 | R32: 453 | S32: 528 | T32: 604 | U32: 754 | V32: 804 | W32: 854
A33: NJ | B33: NEW JERSEY | D33: 345 | E33: 367 | F33: 440 | G33: 513 | H33: 586 | I33: 736 | J33: 786 | K33: 836 | M33: NJ | N33: NEW JERSEY | O33: 216 | P33: 345 | Q33: 367 | R33: 440 | S33: 513 | T33: 586 | U33: 736 | V33: 786 | W33: 836
A34: NM | B34: NEW MEXICO | D34: 384 | E34: 408 | F34: 490 | G34: 571 | H34: 653 | I34: 803 | J34: 853 | K34: 903 | M34: NM | N34: NEW MEXICO | O34: 240 | P34: 384 | Q34: 408 | R34: 490 | S34: 571 | T34: 653 | U34: 803 | V34: 853 | W34: 903
A35: NV | B35: NEVADA | D35: 468 | E35: 491 | F35: 590 | G35: 688 | H35: 786 | I35: 936 | J35: 986 | K35: 1036 | M35: NV | N35: NEVADA | O35: 293 | P35: 468 | Q35: 491 | R35: 590 | S35: 688 | T35: 786 | U35: 936 | V35: 986 | W35: 1036
A36: NY | B36: NEW YORK | D36: 313 | E36: 321 | F36: 384 | G36: 448 | H36: 513 | I36: 663 | J36: 713 | K36: 763 | M36: NY | N36: NEW YORK | O36: 195 | P36: 313 | Q36: 321 | R36: 384 | S36: 448 | T36: 513 | U36: 663 | V36: 713 | W36: 763
A37: OH | B37: OHIO | D37: 202 | E37: 202 | F37: 243 | G37: 283 | H37: 323 | I37: 473 | J37: 523 | K37: 573 | M37: OH | N37: OHIO | O37: 145 | P37: 202 | Q37: 202 | R37: 243 | S37: 283 | T37: 323 | U37: 473 | V37: 523 | W37: 573
A38: OK | B38: OKLAHOMA | D38: 328 | E38: 349 | F38: 419 | G38: 489 | H38: 559 | I38: 709 | J38: 759 | K38: 809 | M38: OK | N38: OKLAHOMA | O38: 205 | P38: 328 | Q38: 349 | R38: 419 | S38: 489 | T38: 559 | U38: 709 | V38: 759 | W38: 809
A39: OR | B39: OREGON | D39: 435 | E39: 604 | F39: 724 | G39: 774 | H39: 886 | I39: 1036 | J39: 1086 | K39: 1136 | M39: OR | N39: OREGON | O39: 359 | P39: 435 | Q39: 604 | R39: 724 | S39: 774 | T39: 886 | U39: 1036 | V39: 1086 | W39: 1136
A40: PA | B40: PENNSYLVANIA | D40: 245 | E40: 251 | F40: 301 | G40: 351 | H40: 401 | I40: 551 | J40: 601 | K40: 651 | M40: PA | N40: PENNSYLVANIA | O40: 163 | P40: 245 | Q40: 251 | R40: 301 | S40: 351 | T40: 401 | U40: 551 | V40: 601 | W40: 651
A41: SC | B41: SOUTH CAROLINA | D41: 184 | E41: 184 | F41: 221 | G41: 258 | H41: 295 | I41: 445 | J41: 495 | K41: 545 | M41: SC | N41: SOUTH CAROLINA | O41: 124 | P41: 184 | Q41: 184 | R41: 221 | S41: 258 | T41: 295 | U41: 445 | V41: 495 | W41: 545
A42: SD | B42: SOUTH DAKOTA | D42: 365 | E42: 388 | F42: 465 | G42: 543 | H42: 620 | I42: 770 | J42: 820 | K42: 870 | M42: SD | N42: SOUTH DAKOTA | O42: 228 | P42: 365 | Q42: 388 | R42: 465 | S42: 543 | T42: 620 | U42: 770 | V42: 820 | W42: 870
A43: TN | B43: TENNESSEE | D43: 235 | E43: 240 | F43: 288 | G43: 336 | H43: 384 | I43: 534 | J43: 584 | K43: 634 | M43: TN | N43: TENNESSEE | O43: 147 | P43: 235 | Q43: 240 | R43: 288 | S43: 336 | T43: 384 | U43: 534 | V43: 584 | W43: 634
A44: TX | B44: TEXAS | D44: 355 | E44: 378 | F44: 454 | G44: 529 | H44: 605 | I44: 755 | J44: 815 | K44: 855 | M44: TX | N44: TEXAS | O44: 222 | P44: 355 | Q44: 378 | R44: 454 | S44: 529 | T44: 605 | U44: 755 | V44: 805 | W44: 855
A45: UT | B45: UTAH | D45: 494 | E45: 519 | F45: 623 | G45: 665 | H45: 760 | I45: 910 | J45: 960 | K45: 1010 | M45: UT | N45: UTAH | O45: 309 | P45: 494 | Q45: 519 | R45: 623 | S45: 665 | T45: 760 | U45: 910 | V45: 960 | W45: 1010
A46: VT | B46: VERMONT | D46: 354 | E46: 377 | F46: 453 | G46: 528 | H46: 604 | I46: 754 | J46: 804 | K46: 854 | M46: VT | N46: VERMONT | O46: 221 | P46: 354 | Q46: 377 | R46: 453 | S46: 528 | T46: 604 | U46: 754 | V46: 804 | W46: 854
A47: VA | B47: VIRGINIA | D47: 158 | E47: 158 | F47: 183 | G47: 212 | H47: 243 | I47: 393 | J47: 443 | K47: 493 | M47: VA | N47: VIRGINIA | O47: 127 | P47: 158 | Q47: 158 | R47: 183 | S47: 212 | T47: 243 | U47: 393 | V47: 443 | W47: 493
A48: WA | B48: WASHINGTON | D48: 420 | E48: 586 | F48: 644 | G48: 752 | H48: 859 | I48: 1009 | J48: 1059 | K48: 1109 | M48: WA | N48: WASHINGTON | O48: 349 | P48: 420 | Q48: 586 | R48: 644 | S48: 752 | T48: 859 | U48: 1009 | V48: 1059 | W48: 1109
A49: WI | B49: WISCONSIN | D49: 352 | E49: 370 | F49: 444 | G49: 518 | H49: 592 | I49: 742 | J49: 792 | K49: 842 | M49: WI | N49: WISCONSIN | O49: 221 | P49: 352 | Q49: 370 | R49: 444 | S49: 518 | T49: 592 | U49: 742 | V49: 792 | W49: 842
A50: WV | B50: WEST VIRGINIA | D50: 205 | E50: 205 | F50: 246 | G50: 287 | H50: 328 | I50: 478 | J50: 528 | K50: 578 | M50: WV | N50: WEST VIRGINIA | O50: 152 | P50: 205 | Q50: 205 | R50: 246 | S50: 287 | T50: 328 | U50: 478 | V50: 528 | W50: 578
A51: WY | B51: WYOMING | D51: 774 | E51: 824 | F51: 988 | G51: 1153 | H51: 1318 | I51: 1468 | J51: 1518 | K51: 1568 | M51: WY | N51: WYOMING | O51: 484 | P51: 774 | Q51: 824 | R51: 988 | S51: 1153 | T51: 1318 | U51: 1468 | V51: 1518 | W51: 1568
A52: NS | D52: 300 | E52: 400 | F52: 400 | G52: 400 | H52: 400 | I52: 400 | J52: 400 | K52: 400
A53: AB | D53: 400 | E53: 600 | F53: 600 | G53: 600 | H53: 600 | I53: 600 | J53: 600 | K53: 600
A54: BC | D54: 500 | E54: 700 | F54: 700 | G54: 700 | H54: 700 | I54: 700 | J54: 700 | K54: 700
A55: SK | D55: 400 | E55: 600 | F55: 600 | G55: 600 | H55: 600 | I55: 600 | J55: 600 | K55: 600
A56: MB | D56: 400 | E56: 600 | F56: 600 | G56: 600 | H56: 600 | I56: 600 | J56: 600 | K56: 600
A57: ON | D57: 200 | E57: 250 | F57: 250 | G57: 300 | H57: 300 | I57: 300 | J57: 300 | K57: 300
A58: QC | D58: 300 | E58: 300 | F58: 300 | G58: 400 | H58: 400 | I58: 400 | J58: 400 | K58: 400
A59: NB | D59: 400 | E59: 500 | F59: 500 | G59: 500 | H59: 500 | I59: 500 | J59: 500 | K59: 500
A60: PE | D60: 400 | E60: 500 | F60: 500 | G60: 500 | H60: 500 | I60: 500 | J60: 500 | K60: 500
A61: NL | D61: 400 | E61: 500 | F61: 500 | G61: 500 | H61: 500 | I61: 500 | J61: 500 | K61: 500

Sheet Loader Details (hidden)
A1: Tractor Model | B1: 2/4 | C1: Version | D1: Width | E1: Note #1 | F1: Note #2 | G1: Note #3 | H1: Note #4 | I1: Loaders | J1: Loaders | K1: Loaders | L1: Loaders | M1: Loaders | N1: Loaders | O1: Loaders | P1: Loaders | Q1: Subframe | R1: Grill Guard | T1: 2 Mechanical | U1: 2 Electric | V1: 2 Hose | W1: 3 Hose | X1: X Width # | Y1: Q Width # | Z1: Conversion Kit | AA1: Cab | AB1: Rops
A2: GT45, 55 and "A" | B2: 2/4 | C2: ROPS/CAB | D2: DS | E2: 4 | F2: 5 | I2: ="" ->  | J2: ="" ->  | K2: ="" ->  | L2: ="" ->  | M2: Q21 | N2: ="" ->  | O2: Q26 | P2: ="" ->  | Q2: 14310515 | T2: 15155BAA | U2: ="" ->  | V2: ="" ->  | W2: ="" ->  | X2: =IF(D2="US","U","L") -> L | Y2: =IF(D2="DS","3",IF(D2="DM","4",IF(D2="US","1",IF(D2="UM","2",IF(D2="DL","3"))))) -> 3 | AA2: ="" ->  | AB2: ="" -> 
A3: GT55 and "A" | B3: 2/4 | C3: CAB | D3: DS | E3: 4 | F3: 6 | I3: ="" ->  | J3: ="" ->  | K3: ="" ->  | L3: ="" ->  | M3: Q21 | N3: ="" ->  | O3: Q26 | P3: ="" ->  | Q3: 14310505 | T3: 15155BAA | U3: ="" ->  | V3: ="" ->  | W3: ="" ->  | X3: =IF(D3="US","U","L") -> L | Y3: =IF(D3="DS","3",IF(D3="DM","4",IF(D3="US","1",IF(D3="UM","2",IF(D3="DL","3"))))) -> 3 | AA3: ="" ->  | AB3: ="" -> 
A4: GT65, 75 and "A" | B4: 2/4 | C4: ROPS/CAB | D4: DS | E4: 4 | F4: 5 | I4: ="" ->  | J4: ="" ->  | K4: ="" ->  | L4: ="" ->  | M4: Q21 | N4: Q31 | O4: Q26 | P4: Q36 | Q4: 14310495 | T4: 15155BAA | U4: ="" ->  | V4: ="" ->  | W4: ="" ->  | X4: L | Y4: 3 | AA4: ="" ->  | AB4: ="" -> 
A5: GT75 and "A" | B5: 2/4 | C5: CAB | D5: DS | E5: 4 | F5: 6 | I5: ="" ->  | J5: ="" ->  | K5: ="" ->  | L5: ="" ->  | M5: Q31 | N5: ="" ->  | O5: Q36 | P5: ="" ->  | Q5: 14310615 | T5: 15155BAA | U5: ="" ->  | V5: ="" ->  | W5: ="" ->  | X5: L | Y5: 3 | AA5: ="" ->  | AB5: ="" -> 
A6: LT75, 90 | B6: 2/4 | C6: ROPS/CAB | D6: =IF(E6=11,"US","DM") -> DM | E6: 1 | I6: X41 | J6: ="" ->  | K6: X46 | L6: ="" ->  | M6: Q41 | N6: ="" ->  | O6: Q46 | P6: ="" ->  | Q6: 14321115 | T6: 15013BFA | U6: ="" ->  | V6: ="" ->  | W6: ="" ->  | X6: L | Y6: 4 | AA6: ="" ->  | AB6: ="" -> 
A7: LT "A" 75, 85, 90, 95 AUTO IV TIER II and III | B7: 2/4 | C7: ROPS/CAB | D7: DM | E7: 1 | I7: X41 | J7: X51 | K7: X46 | L7: X56 | M7: Q41 | N7: Q51 | O7: Q46 | P7: Q56 | Q7: 14322815 | T7: 15013BFA | U7: ="" ->  | V7: ="" ->  | W7: ="" ->  | X7: L | Y7: 4 | AA7: ="" ->  | AB7: ="" -> 
A8: LT "A" 75, 90 Speed Shift | B8: 2/4 | C8: ROPS/CAB | D8: DM | E8: 1 | I8: X41 | J8: X51 | K8: X46 | L8: X56 | M8: Q41 | N8: Q51 | O8: Q46 | P8: Q56 | Q8: 14322325 | T8: 15013BFA | U8: ="" ->  | V8: ="" ->  | W8: ="" ->  | X8: L | Y8: 4 | AA8: ="" ->  | AB8: ="" -> 
A9: RT 100, 120 Auto Quad | B9: 4 | C9: CAB | D9: DM | E9: 3 | I9: ="" ->  | J9: ="" ->  | K9: ="" ->  | L9: ="" ->  | M9: Q61 | N9: ="" ->  | O9: Q66 | P9: ="" ->  | Q9: 14320505 | T9: 15020BAA | U9: ="" ->  | V9: ="" ->  | W9: ="" ->  | X9: L | Y9: 4 | AA9: ="" ->  | AB9: ="" -> 
A10: RT 100, 120 Dyna VT | B10: 4 | C10: CAB | D10: DM | E10: 2 | F10: 3 | I10: ="" ->  | J10: ="" ->  | K10: ="" ->  | L10: ="" ->  | M10: Q61 | N10: ="" ->  | O10: Q66 | P10: ="" ->  | Q10: 14320515 | T10: 15020BAA | U10: ="" ->  | V10: ="" ->  | W10: ="" ->  | X10: L | Y10: 4 | AA10: ="" ->  | AB10: ="" -> 
A11: RT 135, 150 Auto Quad | B11: 4 | C11: CAB | D11: DM | E11: 3 | I11: ="" ->  | J11: ="" ->  | K11: ="" ->  | L11: ="" ->  | M11: ="" ->  | N11: ="" ->  | O11: Q76 | P11: ="" ->  | Q11: 14320945 | T11: 15020BAA | U11: ="" ->  | V11: ="" ->  | W11: ="" ->  | X11: L | Y11: 4 | AA11: ="" ->  | AB11: ="" -> 
A12: RT 135, 150 Dyna VT | B12: 4 | C12: CAB | D12: DM | E12: 2 | F12: 3 | I12: ="" ->  | J12: ="" ->  | K12: ="" ->  | L12: ="" ->  | M12: ="" ->  | N12: ="" ->  | O12: Q76 | P12: ="" ->  | Q12: 14320855 | T12: 15020BAA | U12: ="" ->  | V12: ="" ->  | W12: ="" ->  | X12: L | Y12: 4 | AA12: ="" ->  | AB12: ="" -> 
A13: RT "A" 100, 120 TIER 2 Auto IV | B13: 4 | C13: CAB | D13: DM | E13: 3 | I13: ="" ->  | J13: ="" ->  | K13: ="" ->  | L13: ="" ->  | M13: Q61 | N13: ="" ->  | O13: Q66 | P13: ="" ->  | Q13: 14322355 | T13: 15020BAA | U13: ="" ->  | V13: ="" ->  | W13: ="" ->  | X13: L | Y13: 4 | AA13: ="" ->  | AB13: ="" -> 
A14: RT "A" 100, 120 TIER 2 CVT | B14: 4 | C14: CAB | D14: DM | E14: 2 | F14: 3 | I14: ="" ->  | J14: ="" ->  | K14: ="" ->  | L14: ="" ->  | M14: Q61 | N14: ="" ->  | O14: Q66 | P14: ="" ->  | Q14: 14322345 | T14: 15020BAA | U14: ="" ->  | V14: ="" ->  | W14: ="" ->  | X14: L | Y14: 4 | AA14: ="" ->  | AB14: ="" -> 
A15: RT "A" 140, 155 TIER 2 Auto IV | B15: 4 | C15: CAB | D15: DM | E15: 3 | I15: ="" ->  | J15: ="" ->  | K15: ="" ->  | L15: ="" ->  | M15: ="" ->  | N15: ="" ->  | O15: Q76 | P15: ="" ->  | Q15: 14320415 | T15: 15020BAA | U15: ="" ->  | V15: ="" ->  | W15: ="" ->  | X15: L | Y15: 4 | AA15: ="" ->  | AB15: ="" -> 
A16: RT "A" 140, 155 TIER 2 CVT | B16: 4 | C16: CAB | D16: DM | E16: 2 | F16: 3 | I16: ="" ->  | J16: ="" ->  | K16: ="" ->  | L16: ="" ->  | M16: ="" ->  | N16: ="" ->  | O16: Q76 | P16: ="" ->  | Q16: 14320445 | T16: 15020BAA | U16: ="" ->  | V16: ="" ->  | W16: ="" ->  | X16: L | Y16: 4 | AA16: ="" ->  | AB16: ="" -> 
A17: RT "A" 110, 120 TIER 3 Auto VI | B17: 4 | C17: CAB | D17: DM | E17: 3 | F17: 7 | I17: ="" ->  | J17: ="" ->  | K17: ="" ->  | L17: ="" ->  | M17: Q61 | N17: ="" ->  | O17: Q66 | P17: ="" ->  | Q17: 14325535 | T17: 15020BAA | U17: 15015FCA | V17: ="" ->  | W17: ="" ->  | X17: L | Y17: 4 | AA17: ="" ->  | AB17: ="" -> 
A18: RT "A" 110, 120 TIER 3 CVT | B18: 4 | C18: CAB | D18: DM | E18: 3 | F18: 7 | I18: ="" ->  | J18: ="" ->  | K18: ="" ->  | L18: ="" ->  | M18: Q61 | N18: ="" ->  | O18: Q66 | P18: ="" ->  | Q18: 14325525 | T18: 15020BAA | U18: 15015FCA | V18: ="" ->  | W18: ="" ->  | X18: L | Y18: 4 | AA18: ="" ->  | AB18: ="" -> 
A19: RT "A" 140, 155 TIER 3 Auto VI | B19: 4 | C19: CAB | D19: DM | E19: 3 | F19: 7 | I19: ="" ->  | J19: ="" ->  | K19: ="" ->  | L19: ="" ->  | M19: ="" ->  | N19: ="" ->  | O19: Q76 | P19: ="" ->  | Q19: 14323295 | T19: 15020BAA | U19: 15015FCA | V19: ="" ->  | W19: ="" ->  | X19: L | Y19: 4 | AA19: ="" ->  | AB19: ="" -> 
A20: RT "A" 140, 155 TIER 3 CVT | B20: 4 | C20: CAB | D20: DM | E20: 2 | F20: 7 | I20: ="" ->  | J20: ="" ->  | K20: ="" ->  | L20: ="" ->  | M20: ="" ->  | N20: ="" ->  | O20: Q76 | P20: ="" ->  | Q20: 14325515 | T20: 15020BAA | U20: 15015FCA | V20: ="" ->  | W20: ="" ->  | X20: L | Y20: 4 | AA20: ="" ->  | AB20: ="" -> 
A21: RT 165A AUTO VI Tier 3 Serial # <T176049 | B21: 4 | C21: CAB | D21: DM | E21: 1 | I21: ="" ->  | J21: ="" ->  | K21: ="" ->  | L21: ="" ->  | M21: ="" ->  | N21: ="" ->  | O21: Q76 | P21: ="" ->  | Q21: 14322465 | T21: 15020BAA | U21: 15015FCA | V21: ="" ->  | W21: ="" ->  | X21: L | Y21: 4 | AA21: ="" ->  | AB21: ="" -> 
A22: RT 165A AUTO VI Tier 3 Serial # >T189041 | B22: 4 | C22: CAB | D22: DL | E22: 1 | N22: ="" ->  | O22: Q88 | P22: ="" ->  | Q22: 14330965 | T22: 15020BAA | U22: 15015FCA | V22: ="" ->  | W22: ="" ->  | X22: L | Y22: 3 | AA22: ="" ->  | AB22: ="" -> 
A23: RT 165A Tier 3 CVT | B23: 4 | C23: CAB | D23: DL | E23: 1 | N23: ="" ->  | O23: Q88 | P23: ="" ->  | Q23: 14331105 | T23: 15020BAA | U23: 15015FCA | V23: ="" ->  | W23: ="" ->  | X23: L | Y23: 3 | AA23: ="" ->  | AB23: ="" -> 
A24: RT 180A from serial # T198034 | B24: 4 | C24: CAB | D24: DL | E24: 1 | N24: ="" ->  | O24: Q88 | P24: ="" ->  | Q24: 14330965 | T24: 15020BAA | U24: 15015FCA | V24: ="" ->  | W24: ="" ->  | X24: L | Y24: 3 | AA24: ="" ->  | AB24: ="" -> 
A25: RT 180A Tier 3 CVT | B25: 4 | C25: CAB | D25: DL | E25: 1 | N25: ="" ->  | O25: Q88 | P25: ="" ->  | Q25: 14331105 | T25: 15020BAA | U25: 15015FCA | V25: ="" ->  | W25: ="" ->  | X25: L | Y25: 3 | AA25: ="" ->  | AB25: ="" -> 
A26: DT "A" 180, 200, 220, 240 | B26: 4 | C26: CAB | D26: DL | E26: 2 | I26: ="" ->  | J26: ="" ->  | K26: ="" ->  | L26: ="" ->  | M26: ="" ->  | N26: ="" ->  | O26: Q88 | P26: ="" ->  | Q26: 14330115 | T26: 15110BAA | U26: ="" ->  | V26: ="" ->  | W26: ="" ->  | X26: L | Y26: 3 | AA26: ="" ->  | AB26: ="" -> 
A27: DT "B" 205, 225, 250, 275 | B27: 4 | C27: CAB | D27: DL | E27: 8 | I27: ="" ->  | J27: ="" ->  | K27: ="" ->  | L27: ="" ->  | M27: ="" ->  | N27: ="" ->  | O27: Q88 | P27: ="" ->  | Q27: 14331054 | T27: ="" ->  | U27: 15177FCA | V27: ="" ->  | W27: ="" ->  | X27: L | Y27: 3 | AA27: ="" ->  | AB27: ="" -> 
A28: AGCO | D28: DM | I28: ="" ->  | J28: ="" ->  | K28: ="" ->  | L28: ="" ->  | M28: ="" ->  | N28: ="" ->  | O28: ="" ->  | P28: ="" ->  | T28: ="" ->  | U28: ="" ->  | V28: ="" ->  | W28: ="" ->  | X28: L | Y28: 4 | AA28: ="" ->  | AB28: ="" -> 
A29: LT70, 85 ROPS | B29: 2/4 | C29: ROPS | D29: US | E29: 11 | F29: 99 | I29: X41 | J29: ="" ->  | K29: X46 | L29: ="" ->  | M29: Q41 | N29: ="" ->  | O29: Q46 | P29: ="" ->  | Q29: 345515 | T29: 15096BAA | U29: ="" ->  | V29: ="" ->  | W29: ="" ->  | X29: U | Y29: 1 | AA29: ="" ->  | AB29: ="" -> 
A30: LT70, 85 CAB | B30: 2/4 | C30: CAB | D30: US | E30: 11 | F30: 99 | I30: X41 | J30: ="" ->  | K30: X46 | L30: ="" ->  | M30: Q41 | N30: ="" ->  | O30: Q46 | P30: ="" ->  | Q30: 10347235 | T30: 15096BAA | U30: ="" ->  | V30: ="" ->  | W30: ="" ->  | X30: U | Y30: 1 | AA30: ="" ->  | AB30: ="" -> 
A31: RT95, 115 | B31: 2/4 | C31: CAB | D31: US | E31: 11 | F31: 99 | I31: X51 | J31: ="" ->  | K31: X56 | L31: ="" ->  | M31: Q51 | N31: ="" ->  | O31: Q56 | P31: ="" ->  | Q31: 345365 | T31: 15108BAA | U31: ="" ->  | V31: ="" ->  | W31: ="" ->  | X31: U | Y31: 1 | AA31: ="" ->  | AB31: ="" -> 
A32: RT 130, 145 | B32: 4 | C32: CAB | D32: UM | E32: 9 | F32: 12 | G32: 99 | I32: ="" ->  | J32: ="" ->  | K32: ="" ->  | L32: ="" ->  | M32: ="" ->  | N32: ="" ->  | O32: Q76 | P32: ="" ->  | Q32: 320635 | T32: 15115BAA | U32: ="" ->  | V32: ="" ->  | W32: ="" ->  | X32: L | Y32: 2 | AA32: ="" ->  | AB32: ="" -> 
A33: AGCO ALLIS | D33: DM | I33: ="" ->  | J33: ="" ->  | K33: ="" ->  | L33: ="" ->  | M33: ="" ->  | N33: ="" ->  | O33: ="" ->  | P33: ="" ->  | T33: ="" ->  | U33: ="" ->  | V33: ="" ->  | W33: ="" ->  | X33: L | Y33: 4 | AA33: ="" ->  | AB33: ="" -> 
A34: 8745, 8765 (Valtra Engine) | B34: 2/4 | C34: ROPS | D34: US | E34: 11 | F34: 99 | I34: X41 | J34: ="" ->  | K34: X46 | L34: ="" ->  | M34: Q41 | N34: ="" ->  | O34: Q46 | P34: ="" ->  | Q34: 345495 | T34: 15096BAA | U34: ="" ->  | V34: ="" ->  | W34: ="" ->  | X34: U | Y34: 1 | AA34: ="" ->  | AB34: ="" -> 
A35: 8745, 8765 (Cummins Engine) | B35: 2/4 | C35: ROPS | D35: US | E35: 11 | F35: 99 | I35: X41 | J35: ="" ->  | K35: X46 | L35: ="" ->  | M35: Q41 | N35: ="" ->  | O35: Q46 | P35: ="" ->  | Q35: 345515 | T35: 15096BAA | U35: ="" ->  | V35: ="" ->  | W35: ="" ->  | X35: U | Y35: 1 | AA35: ="" ->  | AB35: ="" -> 
A36: 8745, 8765 (Cummins Engine) | B36: 2/4 | C36: CAB | D36: US | E36: 11 | F36: 99 | I36: X41 | J36: ="" ->  | K36: X46 | L36: ="" ->  | M36: Q41 | N36: ="" ->  | O36: Q46 | P36: ="" ->  | Q36: 10347235 | T36: 15096BAA | U36: ="" ->  | V36: ="" ->  | W36: ="" ->  | X36: U | Y36: 1 | AA36: ="" ->  | AB36: ="" -> 
A37: 8775, 8785 (Valtra Engine) | B37: 2/4 | C37: CAB | D37: US | E37: 11 | F37: 99 | I37: X51 | J37: ="" ->  | K37: X56 | L37: ="" ->  | M37: Q51 | N37: ="" ->  | O37: Q56 | P37: ="" ->  | Q37: 345355 | T37: 15108BAA | U37: ="" ->  | V37: ="" ->  | W37: ="" ->  | X37: U | Y37: 1 | AA37: ="" ->  | AB37: ="" -> 
A38: 8775, 8785 (Cummins Engine) | B38: 2/4 | C38: CAB | D38: US | E38: 11 | F38: 99 | I38: X51 | J38: ="" ->  | K38: X56 | L38: ="" ->  | M38: Q51 | N38: ="" ->  | O38: Q56 | P38: ="" ->  | Q38: 345365 | T38: 15108BAA | U38: ="" ->  | V38: ="" ->  | W38: ="" ->  | X38: U | Y38: 1 | AA38: ="" ->  | AB38: ="" -> 
A39: 4650, 4660 | B39: 2/4 | C39: ROPS | D39: US | E39: 10 | F39: 11 | G39: 99 | I39: X31 | J39: ="" ->  | K39: X36 | L39: ="" ->  | M39: Q21 | N39: Q31 | O39: Q26 | P39: Q36 | Q39: 341555 | S39: 1 | T39: 317148 | U39: ="" ->  | V39: ="" ->  | W39: ="" ->  | X39: U | Y39: 1 | Z39: 1 | AA39: ="" ->  | AB39: ="" -> 
A40: 5650, 5660 | B40: 2/4 | C40: ROPS | D40: US | E40: 10 | F40: 11 | G40: 99 | I40: X31 | J40: ="" ->  | K40: X36 | L40: ="" ->  | M40: Q21 | N40: Q31 | O40: Q26 | P40: Q36 | Q40: 10347155 | S40: 1 | T40: 317257 | U40: ="" ->  | V40: ="" ->  | W40: ="" ->  | X40: U | Y40: 1 | Z40: 1 | AA40: ="" ->  | AB40: ="" -> 
A41: 5670, 5680 | B41: 2/4 | C41: ROPS | D41: US | E41: 10 | F41: 11 | G41: 99 | I41: X31 | J41: X41 | K41: X36 | L41: X46 | M41: Q31 | N41: Q41 | O41: Q36 | P41: Q46 | Q41: 10347015 | S41: 1 | T41: 317149 | U41: ="" ->  | V41: ="" ->  | W41: ="" ->  | X41: U | Y41: 1 | Z41: 1 | AA41: ="" ->  | AB41: ="" -> 
A42: 8610, 8630 | B42: 2/4 | C42: CAB | D42: UM | E42: 10 | F42: 12 | G42: 99 | I42: ="" ->  | J42: ="" ->  | K42: ="" ->  | L42: ="" ->  | M42: ="" ->  | N42: ="" ->  | O42: Q56 | P42: Q66 | Q42: 320255 | S42: 1 | T42: 317121 | U42: ="" ->  | V42: ="" ->  | W42: ="" ->  | X42: L | Y42: 2 | Z42: 1 | AA42: ="" ->  | AB42: ="" -> 
A43: AGCO WHITE | D43: DM | I43: ="" ->  | J43: ="" ->  | K43: ="" ->  | L43: ="" ->  | M43: ="" ->  | N43: ="" ->  | O43: ="" ->  | P43: ="" ->  | T43: ="" ->  | U43: ="" ->  | V43: ="" ->  | W43: ="" ->  | X43: L | Y43: 4 | AA43: ="" ->  | AB43: ="" -> 
A44: 6410, 6510 | B44: 2/4 | C44: ROPS | D44: US | E44: 11 | F44: 99 | I44: X41 | J44: ="" ->  | K44: X46 | L44: ="" ->  | M44: Q41 | N44: ="" ->  | O44: Q46 | P44: ="" ->  | Q44: 345515 | T44: 15096BAA | U44: ="" ->  | V44: ="" ->  | W44: ="" ->  | X44: U | Y44: 1 | AA44: ="" ->  | AB44: ="" -> 
A45: 6410, 6510 | B45: 2/4 | C45: CAB | D45: US | E45: 11 | F45: 99 | I45: X41 | J45: ="" ->  | K45: X46 | L45: ="" ->  | M45: Q41 | N45: ="" ->  | O45: Q46 | P45: ="" ->  | Q45: 10347235 | T45: 15096BAA | U45: ="" ->  | V45: ="" ->  | W45: ="" ->  | X45: U | Y45: 1 | AA45: ="" ->  | AB45: ="" -> 
A46: 6710, 6810' | B46: 2/4 | C46: CAB | D46: US | E46: 11 | F46: 99 | I46: X51 | J46: ="" ->  | K46: X56 | L46: ="" ->  | M46: Q51 | N46: ="" ->  | O46: Q56 | P46: ="" ->  | Q46: 345365 | T46: 15108BAA | U46: ="" ->  | V46: ="" ->  | W46: ="" ->  | X46: U | Y46: 1 | AA46: ="" ->  | AB46: ="" -> 
A47: 8310, 8410 | B47: 2/4 | C47: CAB | D47: UM | E47: 12 | F47: 99 | I47: ="" ->  | J47: ="" ->  | K47: ="" ->  | L47: ="" ->  | M47: ="" ->  | N47: ="" ->  | O47: Q76 | P47: ="" ->  | Q47: 320635 | T47: 15115BAA | U47: ="" ->  | V47: ="" ->  | W47: ="" ->  | X47: L | Y47: 2 | AA47: ="" ->  | AB47: ="" -> 
A48: 6045 ROPS | B48: 2/4 | C48: ROPS | D48: US | E48: 10 | F48: 11 | G48: 99 | I48: X31 | J48: ="" ->  | K48: X36 | L48: ="" ->  | M48: Q21 | N48: Q31 | O48: Q26 | P48: Q36 | Q48: 10347155 | S48: 1 | T48: 317257 | U48: ="" ->  | V48: ="" ->  | W48: ="" ->  | X48: U | Y48: 1 | Z48: 1 | AA48: ="" ->  | AB48: ="" -> 
A49: 6065 ROPS | B49: 2/4 | C49: ROPS | D49: US | E49: 10 | F49: 11 | G49: 99 | I49: X31 | J49: ="" ->  | K49: X36 | L49: X46 | M49: Q31 | N49: Q41 | O49: Q36 | P49: Q46 | Q49: 345475 | S49: 1 | T49: 317149 | U49: ="" ->  | V49: ="" ->  | W49: ="" ->  | X49: U | Y49: 1 | Z49: 1 | AA49: ="" ->  | AB49: ="" -> 
A50: 6065 CAB | B50: 2/4 | C50: CAB | D50: US | E50: 10 | F50: 11 | G50: 99 | I50: X31 | J50: ="" ->  | K50: X36 | L50: X46 | M50: Q31 | N50: Q41 | O50: Q36 | P50: Q46 | Q50: 341715 | S50: 1 | T50: 317151 | U50: ="" ->  | V50: ="" ->  | W50: ="" ->  | X50: U | Y50: 1 | Z50: 1 | AA50: ="" ->  | AB50: ="" -> 
A51: 6105 CAB | B51: 2/4 | C51: CAB | D51: UM | E51: 10 | F51: 12 | G51: 99 | I51: ="" ->  | J51: ="" ->  | K51: ="" ->  | L51: ="" ->  | M51: ="" ->  | N51: ="" ->  | O51: Q56 | P51: Q66 | Q51: 320255 | S51: 1 | T51: 317121 | U51: ="" ->  | V51: ="" ->  | W51: ="" ->  | X51: L | Y51: 2 | Z51: 1 | AA51: ="" ->  | AB51: ="" -> 
A52: Genesis 2145, 2160, 2180, 2210 | B52: 2/4 | C52: CAB | D52: DL | E52: 99 | I52: ="" ->  | J52: ="" ->  | K52: ="" ->  | L52: ="" ->  | M52: ="" ->  | N52: ="" ->  | O52: Q88 | P52: ="" ->  | Q52: 14330135 | T52: 15091BAA | U52: 15091FCA | V52: ="" ->  | W52: ="" ->  | X52: L | Y52: 3 | AA52: ="" ->  | AB52: ="" -> 
A53: Farmall 65A, 75A | B53: 2/4 | C53: ROPS | D53: =IF(E53=11,"US","DM") -> DM | E53: ="" ->  | F53: ="" ->  | G53: ="" ->  | H53: ="" ->  | I53: X21 | J53: ="" ->  | K53: X26 | L53: ="" ->  | M53: Q21 | N53: ="" ->  | O53: Q26 | P53: ="" ->  | Q53: 14327694 | R53: ="" ->  | S53: ="" ->  | T53: 15463BAA | U53: ="" ->  | V53: ="" ->  | W53: ="" ->  | X53: L | Y53: 4 | Z53: ="" ->  | AA53: ="" ->  | AB53: ="" ->  | AC53: ="" ->  | AD53: ="" ->  | AE53: ="" ->  | AF53: ="" -> 
A54: JX55, 60, 65, 70 | B54: 2/4 | C54: ROPS/CAB | D54: DM | I54: X21 | J54: X31 | K54: X26 | L54: X36 | M54: Q21 | N54: Q31 | O54: Q26 | P54: Q36 | Q54: 14321295 | T54: 15025BAA | U54: ="" ->  | V54: ="" ->  | W54: ="" ->  | X54: L | Y54: 4 | AA54: ="" ->  | AB54: ="" -> 
A55: JX1075N, JX1095N | B55: 4 | C55: ROPS/CAB | D55: DS | E55: 4 | F55: 15 | G55: 16 | I55: ="" ->  | J55: ="" ->  | K55: ="" ->  | L55: ="" ->  | M55: Q21 | N55: ="" ->  | O55: Q26 | P55: ="" ->  | Q55: 14310324 | T55: 15086BAA | U55: ="" ->  | V55: ="" ->  | W55: ="" ->  | X55: L | Y55: 3 | AA55: ="" ->  | AB55: ="" -> 
A56: JX75, 80, 85, 90 | B56: 2/4 | C56: ROPS/CAB | D56: DM | I56: X31 | J56: X41 | K56: X36 | L56: X46 | M56: Q31 | N56: Q41 | O56: Q36 | P56: Q46 | Q56: 14321285 | T56: 15025BAA | U56: ="" ->  | V56: ="" ->  | W56: ="" ->  | X56: L | Y56: 4 | AA56: ="" ->  | AB56: ="" -> 
A57: Farmall 90, 95, JX95 | B57: 2/4 | C57: ROPS/CAB | D57: DM | E57: 94 | I57: X41 | J57: ="" ->  | K57: X46 | L57: ="" ->  | M57: Q41 | N57: ="" ->  | O57: Q46 | P57: ="" ->  | Q57: 14324725 | T57: 15025BAA | U57: ="" ->  | V57: ="" ->  | W57: ="" ->  | X57: L | Y57: 4 | AA57: ="" ->  | AB57: ="" -> 
A58: Farmall 65C, 75C (Straddle Jesi) | B58: 2/4 | C58: ROPS/CAB | D58: =IF(E58=11,"US","DM") -> DM | I58: X21 | J58: ="" ->  | K58: X26 | L58: ="" ->  | M58: Q21 | N58: ="" ->  | O58: Q26 | P58: ="" ->  | Q58: 14323765 | S58: ="" ->  | T58: 15053BAA | U58: ="" ->  | V58: 10378214D | W58: ="" ->  | X58: L | Y58: 4 | AA58: ="" ->  | AB58: ="" -> 
A59: Farmall 85C, 95C (Straddle Jesi) | B59: 2/4 | C59: ROPS/CAB | D59: DM | I59: X21 | J59: X31 | K59: X26 | L59: X36 | M59: Q21 | N59: Q31 | O59: Q26 | P59: Q36 | Q59: 14324025 | S59: ="" ->  | T59: 15053BAA | U59: ="" ->  | V59: 10378214D | W59: ="" ->  | X59: L | Y59: 4 | AA59: ="" ->  | AB59: ="" -> 
A60: JX1060C, 1070C, 1075C | B60: 2/4 | C60: ROPS/CAB | D60: DM | E60: 18 | I60: X21 | J60: X31 | K60: X26 | L60: X36 | M60: Q21 | N60: Q31 | O60: Q26 | P60: Q36 | Q60: 14321994 | T60: 15023BAA | U60: ="" ->  | V60: 10378214D | W60: ="" ->  | X60: L | Y60: 4 | AA60: ="" ->  | AB60: ="" -> 
A61: JX1085C, 1095C | B61: 2/4 | C61: ROPS/CAB | D61: DM | I61: X21 | J61: X31 | K61: X26 | L61: X36 | M61: Q21 | N61: Q31 | O61: Q26 | P61: Q36 | Q61: 14324025 | T61: 15023BAA | U61: ="" ->  | V61: 10378214D | W61: ="" ->  | X61: L | Y61: 4 | AA61: ="" ->  | AB61: ="" -> 
A62: FARMALL 85U, 95U, 105U (JESI) | B62: 2/4 | C62: ROPS/CAB | D62: =IF(E62=11,"US","DM") -> DM | I62: X31 | J62: X41 | K62: X36 | L62: X46 | M62: Q31 | N62: Q41 | O62: Q36 | P62: Q46 | Q62: 14323955 | T62: 15048BAA | U62: 15019FCA | V62: 10378209D | W62: ="" ->  | X62: =IF(D62="US","U","L") -> L | Y62: =IF(D62="DS","3",IF(D62="DM","4",IF(D62="US","1",IF(D62="UM","2",IF(D62="DL","3"))))) -> 4 | AA62: ="" ->  | AB62: ="" -> 
A63: JX1080U, JX1090U, 1100U (JESI) | B63: 2/4 | C63: ROPS/CAB | D63: DM | I63: X31 | J63: X41 | K63: X36 | L63: X46 | M63: Q31 | N63: Q41 | O63: Q36 | P63: Q46 | Q63: 14323955 | T63: 15048BAA | U63: 15019FCA | V63: 10378209D | W63: ="" ->  | X63: L | Y63: 4 | AA63: ="" ->  | AB63: ="" -> 
A64: Farmall 70, 80 | B64: 2/4 | C64: ROPS/CAB | D64: =IF(E64=11,"US","DM") -> DM | E64: 94 | I64: X21 | J64: X31 | K64: X26 | L64: X36 | M64: Q21 | N64: Q31 | O64: Q26 | P64: Q36 | Q64: 14325485 | T64: 15025BAA | U64: ="" ->  | V64: ="" ->  | W64: ="" ->  | X64: =IF(D64="US","U","L") -> L | Y64: =IF(D64="DS","3",IF(D64="DM","4",IF(D64="US","1",IF(D64="UM","2",IF(D64="DL","3"))))) -> 4 | AA64: ="" ->  | AB64: ="" -> 
A65: JX70, 80, 90, 100U | B65: 2/4 | C65: ROPS/CAB | D65: DM | I65: X31 | J65: X41 | K65: X36 | L65: X46 | M65: Q31 | N65: Q41 | O65: Q36 | P65: Q46 | Q65: 14321215 | T65: 15048BAA | U65: 15019FCA | V65: 10378209D | W65: ="" ->  | X65: L | Y65: 4 | AA65: ="" ->  | AB65: ="" -> 
A66: MXU 100, 110 Limited | B66: 2/4 | C66: ROPS/CAB | D66: DM | I66: X41 | J66: X51 | K66: X46 | L66: X56 | M66: Q41 | N66: Q51 | O66: Q46 | P66: Q56 | Q66: 14323354 | T66: 15039BAA | U66: 15039FCA | V66: 10378137D | W66: 10378141M | X66: L | Y66: 4 | AA66: ="" ->  | AB66: ="" -> 
A67: MXU 100, 110 Limited | B67: 2/4 | C67: ROPS/CAB | D67: =IF(E67=11,"US","DM") -> DM | I67: X41 | J67: X51 | K67: X46 | L67: X56 | M67: Q41 | N67: Q51 | O67: Q46 | P67: Q56 | Q67: 14323354 | T67: 15039BAA | U67: 15039FCA | V67: 10378137D | W67: 10378141M | X67: =IF(D67="US","U","L") -> L | Y67: =IF(D67="DS","3",IF(D67="DM","4",IF(D67="US","1",IF(D67="UM","2",IF(D67="DL","3"))))) -> 4 | AA67: ="" ->  | AB67: ="" -> 
A68: MXU 115, 130 Value (Open Center) | B68: 2/4 | C68: ROPS/CAB | D68: DM | I68: ="" ->  | J68: ="" ->  | K68: ="" ->  | L68: ="" ->  | M68: Q51 | N68: Q61 | O68: Q56 | P68: Q66 | Q68: 14323364 | T68: 15018BAB | U68: 15021FCA | V68: 10378137D | W68: 10378141M | X68: L | Y68: 4 | AA68: ="" ->  | AB68: ="" -> 
A69: Maxxum 110, 120, 130 T3 | B69: 2/4 | C69: ROPS/CAB | D69: DM | I69: X41 | J69: X51 | K69: X46 | L69: X56 | M69: Q41 | N69: Q51 | O69: Q46 | P69: Q56 | Q69: 14324847 | T69: 15302BAB | U69: 15039FCA | V69: 10378338D | W69: 10378338M | X69: L | Y69: 4 | AA69: ="" ->  | AB69: ="" -> 
A70: Maxxum 115,125,140 T3 | B70: 2/4 | C70: ROPS/CAB | D70: =IF(E70=11,"US","DM") -> DM | I70: ="" ->  | J70: ="" ->  | K70: ="" ->  | L70: ="" ->  | M70: Q51 | N70: Q61 | O70: Q56 | P70: Q66 | Q70: 14324857 | T70: 15302BAB | U70: 15039FCA | V70: 10378338D | W70: 10378338M | X70: =IF(D70="US","U","L") -> L | Y70: =IF(D70="DS","3",IF(D70="DM","4",IF(D70="US","1",IF(D70="UM","2",IF(D70="DL","3"))))) -> 4 | AA70: ="" ->  | AB70: ="" -> 
A71: MX 180 - 335 | B71: 4 | C71: CAB | D71: DL | E71: 17 | I71: ="" ->  | J71: ="" ->  | K71: ="" ->  | L71: ="" ->  | M71: ="" ->  | N71: ="" ->  | O71: Q88 | P71: ="" ->  | Q71: 14330044 | T71: 15090BAA | U71: 15090FCA | V71: ="" ->  | W71: ="" ->  | X71: L | Y71: 3 | AA71: ="" ->  | AB71: ="" -> 
A72: Magnum 180 - 280 (Teir III) | B72: 4 | C72: CAB | D72: DL | E72: 17 | F72: 105 | I72: ="" ->  | J72: ="" ->  | K72: ="" ->  | L72: ="" ->  | M72: ="" ->  | N72: ="" ->  | O72: Q88 | P72: ="" ->  | Q72: 14330044 | T72: 15090BAA | U72: 15090FCA | V72: ="" ->  | W72: ="" ->  | X72: L | Y72: 3 | AA72: ="" ->  | AB72: ="" -> 
A73: 3230-4240, C70 - C100 4WD | B73: 2/4 | C73: ROPS/CAB | D73: DM | E73: 13 | F73: 10 | I73: X31 | J73: X41 | K73: X36 | L73: X46 | M73: Q31 | N73: Q41 | O73: Q36 | P73: Q46 | Q73: 14322205 | S73: 1 | T73: 317204 | U73: ="" ->  | V73: ="" ->  | W73: ="" ->  | X73: L | Y73: 4 | Z73: 1 | AA73: ="" ->  | AB73: ="" -> 
A74: 3230-4240, C70 - C100 2WD | B74: 2 | C74: ROPS | D74: =IF(E74=11,"US","DM") -> DM | I74: X31 | J74: ="" ->  | K74: X36 | L74: ="" ->  | M74: Q31 | N74: ="" ->  | O74: Q36 | P74: ="" ->  | Q74: 14322244 | S74: 1 | T74: 10317683 | U74: ="" ->  | V74: ="" ->  | W74: ="" ->  | X74: =IF(D74="US","U","L") -> L | Y74: =IF(D74="DS","3",IF(D74="DM","4",IF(D74="US","1",IF(D74="UM","2",IF(D74="DL","3"))))) -> 4 | Z74: 1 | AA74: ="" ->  | AB74: ="" -> 
A75: 685-985 AND 695-995 4WD | B75: 2/4 | C75: ROPS/CAB | D75: DM | E75: 13 | F75: 10 | I75: X31 | J75: X41 | K75: X36 | L75: X46 | M75: Q31 | N75: Q41 | O75: Q36 | P75: Q46 | Q75: 14322205 | S75: 1 | T75: 317204 | U75: ="" ->  | V75: ="" ->  | W75: ="" ->  | X75: L | Y75: 4 | Z75: 1 | AA75: ="" ->  | AB75: ="" -> 
A76: 685-985 AND 695-995 2WD | B76: 2 | C76: ROPS | D76: =IF(E76=11,"US","DM") -> DM | I76: X31 | J76: ="" ->  | K76: X36 | L76: ="" ->  | M76: Q31 | N76: ="" ->  | O76: Q36 | P76: ="" ->  | Q76: 14322244 | S76: 1 | T76: 10317683 | U76: ="" ->  | V76: ="" ->  | W76: ="" ->  | X76: =IF(D76="US","U","L") -> L | Y76: =IF(D76="DS","3",IF(D76="DM","4",IF(D76="US","1",IF(D76="UM","2",IF(D76="DL","3"))))) -> 4 | Z76: 1 | AA76: ="" ->  | AB76: ="" -> 
A77: CX70, 80, 90, 100 | B77: 2/4 | C77: ROPS/CAB | D77: DM | I77: X31 | J77: X41 | K77: X36 | L77: X46 | M77: Q31 | N77: Q41 | O77: Q36 | P77: Q46 | Q77: 14322675 | T77: 15040BAA | U77: 15040FCA | V77: ="" ->  | W77: ="" ->  | X77: L | Y77: 4 | AA77: ="" ->  | AB77: ="" -> 
A78: 5130 - 5250 6 Cylinder | B78: 2/4 | C78: ROPS/CAB | D78: DM | I78: ="" ->  | J78: ="" ->  | K78: ="" ->  | L78: ="" ->  | M78: Q51 | N78: Q61 | O78: Q56 | P78: Q66 | Q78: 14320144 | T78: 15054BAC | U78: ="" ->  | V78: ="" ->  | W78: ="" ->  | X78: L | Y78: 4 | AA78: ="" ->  | AB78: ="" -> 
A79: MX80C - 100C | B79: 4 | C79: ROPS/CAB | D79: DM | E79: 14 | I79: X41 | J79: X51 | K79: X46 | L79: X56 | M79: Q41 | N79: Q51 | O79: Q46 | P79: Q56 | Q79: 14320164 | T79: 15044BAA | U79: 15044FCA | V79: ="" ->  | W79: ="" ->  | X79: L | Y79: 4 | AA79: ="" ->  | AB79: ="" -> 
A80: MX100-135 | B80: 2/4 | C80: ROPS/CAB | D80: DM | E80: 14 | I80: ="" ->  | J80: ="" ->  | K80: ="" ->  | L80: ="" ->  | M80: Q61 | N80: ="" ->  | O80: Q66 | P80: Q76 | Q80: 14320044 | T80: 15044BAA | U80: 15044FCA | V80: ="" ->  | W80: ="" ->  | X80: L | Y80: 4 | AA80: ="" ->  | AB80: ="" -> 
A81: MX150-170 | B81: 2/4 | C81: ROPS/CAB | D81: DM | E81: 14 | I81: ="" ->  | J81: ="" ->  | K81: ="" ->  | L81: ="" ->  | M81: ="" ->  | N81: ="" ->  | O81: Q76 | P81: ="" ->  | Q81: 14320044 | T81: 15044BAA | U81: 15044FCA | V81: ="" ->  | W81: ="" ->  | X81: L | Y81: 4 | AA81: ="" ->  | AB81: ="" -> 
A82: MXM 130, 140 Value (Open Center) | B82: 2/4 | C82: ROPS/CAB | D82: DM | E82: 100 | I82: ="" ->  | J82: ="" ->  | K82: ="" ->  | L82: ="" ->  | M82: Q61 | N82: ="" ->  | O82: Q66 | P82: ="" ->  | Q82: 14322834 | T82: 15089BAA | U82: ="" ->  | V82: 10378137D | W82: 10378141M | X82: L | Y82: 4 | AA82: ="" ->  | AB82: ="" -> 
A83: MXM 120, 130, 140, 155 Pro (Closed Center) | B83: 2/4 | C83: ROPS/CAB | D83: DM | E83: 100 | I83: ="" ->  | J83: ="" ->  | K83: ="" ->  | L83: ="" ->  | M83: Q61 | N83: ="" ->  | O83: Q66 | P83: ="" ->  | Q83: 14322834 | T83: 15052BAA | U83: 15052FCA | V83: 10378137D | W83: 10378141M | X83: L | Y83: 4 | AA83: ="" ->  | AB83: ="" -> 
A84: MXM 175, 190 Pro | B84: 2/4 | C84: ROPS/CAB | D84: DM | E84: 100 | I84: ="" ->  | J84: ="" ->  | K84: ="" ->  | L84: ="" ->  | M84: ="" ->  | N84: ="" ->  | O84: Q76 | P84: ="" ->  | Q84: 14322834 | T84: 15052BAA | U84: 15052FCA | V84: 10378137D | W84: 10378141M | X84: L | Y84: 4 | AA84: ="" ->  | AB84: ="" -> 
A85: Magnum 7110 - 7150 / 7210 - 7250 / 8910 - 8950 | B85: 2/4 | C85: CAB | D85: DL | I85: ="" ->  | J85: ="" ->  | K85: ="" ->  | L85: ="" ->  | M85: ="" ->  | N85: ="" ->  | O85: Q88 | P85: ="" ->  | Q85: 14330924 | T85: 15079BAA | U85: 15079FCA | V85: ="" ->  | W85: ="" ->  | X85: L | Y85: 3 | AA85: ="" ->  | AB85: ="" -> 
A86: 5120' | B86: 2/4 | C86: ROPS/CAB | D86: DM | I86: X41 | J86: ="" ->  | K86: X46 | L86: ="" ->  | M86: Q41 | N86: ="" ->  | O86: X46 | P86: ="" ->  | Q86: 14326114 | T86: 15054BAC | U86: ="" ->  | V86: ="" ->  | W86: ="" ->  | X86: L | Y86: 4 | AA86: ="" ->  | AB86: ="" -> 
A87: 5220 4 Cylinder | B87: 2/4 | C87: ROPS/CAB | D87: US | E87: 10 | F87: 99 | I87: X41 | J87: X51 | K87: X46 | L87: X56 | M87: Q41 | N87: Q51 | O87: Q46 | P87: Q56 | Q87: 344224 | T87: 15054BAC | V87: ="" ->  | W87: ="" ->  | X87: U | Y87: 1 | AA87: ="" ->  | AB87: ="" -> 
A88: C50, C60, 3210, 3220 | B88: 2/4 | C88: ROPS | D88: US | E88: 10 | F88: 11 | G88: 99 | I88: X31 | J88: ="" ->  | K88: X36 | L88: ="" ->  | M88: Q21 | N88: Q31 | O88: Q26 | P88: Q36 | Q88: 345004 | S88: 1 | T88: 317204 | U88: ="" ->  | V88: ="" ->  | W88: ="" ->  | X88: U | Y88: 1 | Z88: 1 | AA88: ="" ->  | AB88: ="" -> 
A89: CX50, CX60 | B89: 4 | C89: ROPS/CAB | D89: US | E89: 10 | F89: 99 | I89: X31 | J89: ="" ->  | K89: X36 | L89: ="" ->  | M89: Q31 | N89: ="" ->  | O89: Q36 | P89: ="" ->  | Q89: 345434 | T89: 15040BAA | U89: ="" ->  | V89: ="" ->  | W89: ="" ->  | X89: U | Y89: 1 | AA89: ="" ->  | AB89: ="" -> 
A90: MT 315B, 325B, 335B and 345B | B90: 2/4 | C90: ROPS/CAB | D90: DM | I90: X21 | J90: ="" ->  | K90: X26 | L90: ="" ->  | M90: Q21 | N90: ="" ->  | O90: Q26 | P90: ="" ->  | Q90: 14326695 | T90: 15094BAA | V90: ="" ->  | W90: ="" ->  | X90: L | Y90: 4 | AA90: ="" ->  | AB90: ="" -> 
A91: MT 425B Dyna-4 | B91: 2/4 | C91: ROPS/CAB | D91: DM | I91: X41 | J91: X51 | K91: X46 | L91: X56 | M91: Q41 | N91: Q51 | O91: Q46 | P91: Q56 | Q91: 14324425 | T91: 15013BFA | U91: 15013FCA | V91: ="" ->  | W91: ="" ->  | X91: L | Y91: 4 | AA91: ="" ->  | AB91: ="" -> 
A92: MT 425B Speedshift | B92: 2/4 | C92: ROPS/CAB | D92: DM | I92: X41 | J92: X51 | K92: X46 | L92: X56 | M92: Q41 | N92: Q51 | O92: Q46 | P92: Q56 | Q92: 14322625 | T92: 15013BFA | U92: 15013FCA | V92: ="" ->  | W92: ="" ->  | X92: L | Y92: 4 | AA92: ="" ->  | AB92: ="" -> 
A93: MT 445B, 455B, 465B Dyna 4 | B93: 2/4 | C93: ROPS/CAB | D93: DM | I93: X41 | J93: X51 | K93: X46 | L93: X56 | M93: Q41 | N93: Q51 | O93: Q46 | P93: Q56 | Q93: 14324425 | T93: 15013BFA | U93: 15013FCA | V93: ="" ->  | W93: ="" ->  | X93: L | Y93: 4 | AA93: ="" ->  | AB93: ="" -> 
A94: MT 445B, 455B, 465B Speedshift | B94: 2/4 | C94: ROPS/CAB | D94: DM | I94: ="" ->  | J94: ="" ->  | K94: ="" ->  | L94: ="" ->  | M94: Q51 | N94: Q61 | O94: Q66 | P94: Q76 | Q94: 14322625 | T94: 15013BFA | U94: 15013FCA | V94: ="" ->  | W94: ="" ->  | X94: L | Y94: 4 | AA94: ="" ->  | AB94: ="" -> 
A95: MT 525B Dyna Power VI | B95: 2/4 | C95: ROPS/CAB | D95: DM | E95: 19 | I95: ="" ->  | J95: ="" ->  | K95: ="" ->  | L95: ="" ->  | M95: Q51 | N95: Q61 | O95: Q66 | P95: Q76 | Q95: 14321305 | T95: 15324BFA | U95: 15324FCA | V95: ="" ->  | W95: ="" ->  | X95: L | Y95: 4 | AA95: ="" ->  | AB95: ="" -> 
A96: MT 525B Dyna-VT | B96: 2/4 | C96: ROPS/CAB | D96: DM | E96: 19 | I96: ="" ->  | J96: ="" ->  | K96: ="" ->  | L96: ="" ->  | M96: Q51 | N96: Q61 | O96: Q66 | P96: Q76 | Q96: 14320435 | T96: 15324BFA | U96: 15324FCA | V96: ="" ->  | W96: ="" ->  | X96: L | Y96: 4 | AA96: ="" ->  | AB96: ="" -> 
A97: MT 525B Dynashift | B97: 2/4 | C97: ROPS/CAB | D97: DM | E97: 19 | I97: ="" ->  | J97: ="" ->  | K97: ="" ->  | L97: ="" ->  | M97: Q51 | N97: Q61 | O97: Q66 | P97: Q76 | Q97: 14320395 | T97: 15324BFA | U97: 15324FCA | V97: ="" ->  | W97: ="" ->  | X97: L | Y97: 4 | AA97: ="" ->  | AB97: ="" -> 
A98: MT 525B Tier3 Auto Power VI | B98: 2/4 | C98: ROPS/CAB | D98: DM | E98: 19 | I98: ="" ->  | J98: ="" ->  | K98: ="" ->  | L98: ="" ->  | M98: Q51 | N98: Q61 | O98: Q66 | P98: Q76 | Q98: 14322155 | T98: 15324BFA | U98: 15324FCA | V98: ="" ->  | W98: ="" ->  | X98: L | Y98: 4 | AA98: ="" ->  | AB98: ="" -> 
A99: MT 525B Tier3 Tech Star CVT | B99: 2/4 | C99: ROPS/CAB | D99: DM | E99: 19 | I99: ="" ->  | J99: ="" ->  | K99: ="" ->  | L99: ="" ->  | M99: Q51 | N99: Q61 | O99: Q66 | P99: Q76 | Q99: 14323125 | T99: 15324BFA | U99: 15324FCA | V99: ="" ->  | W99: ="" ->  | X99: L | Y99: 4 | AA99: ="" ->  | AB99: ="" -> 
A100: MT 535B & 545B Dyna Power VI | B100: 2/4 | C100: ROPS/CAB | D100: DM | E100: 19 | I100: ="" ->  | J100: ="" ->  | K100: ="" ->  | L100: ="" ->  | M100: Q51 | N100: Q61 | O100: Q66 | P100: Q76 | Q100: 14321305 | T100: 15324BFA | U100: 15324FCA | V100: ="" ->  | W100: ="" ->  | X100: L | Y100: 4 | AA100: ="" ->  | AB100: ="" -> 
A101: MT 535B & 545B Dyna-VT | B101: 2/4 | C101: ROPS/CAB | D101: DM | E101: 19 | I101: ="" ->  | J101: ="" ->  | K101: ="" ->  | L101: ="" ->  | M101: Q51 | N101: Q61 | O101: Q66 | P101: Q76 | Q101: 14320435 | T101: 15324BFA | U101: 15324FCA | V101: ="" ->  | W101: ="" ->  | X101: L | Y101: 4 | AA101: ="" ->  | AB101: ="" -> 
A102: MT 535B & 545B Dynashift | B102: 2/4 | C102: ROPS/CAB | D102: DM | E102: 19 | I102: ="" ->  | J102: ="" ->  | K102: ="" ->  | L102: ="" ->  | M102: Q51 | N102: Q61 | O102: Q66 | P102: Q76 | Q102: 14320395 | T102: 15324BFA | U102: 15324FCA | V102: ="" ->  | W102: ="" ->  | X102: L | Y102: 4 | AA102: ="" ->  | AB102: ="" -> 
A103: MT 535B & 545B Tier3 Auto Power VI | B103: 2/4 | C103: ROPS/CAB | D103: DM | E103: 19 | I103: ="" ->  | J103: ="" ->  | K103: ="" ->  | L103: ="" ->  | M103: Q51 | N103: Q61 | O103: Q66 | P103: Q76 | Q103: 14322155 | T103: 15324BFA | U103: 15324FCA | V103: ="" ->  | W103: ="" ->  | X103: L | Y103: 4 | AA103: ="" ->  | AB103: ="" -> 
A104: MT 535B & 545B Tier3 Tech Star CVT | B104: 2/4 | C104: ROPS/CAB | D104: DM | E104: 19 | I104: ="" ->  | J104: ="" ->  | K104: ="" ->  | L104: ="" ->  | M104: Q51 | N104: Q61 | O104: Q66 | P104: Q76 | Q104: 14323125 | T104: 15324BFA | U104: 15324FCA | V104: ="" ->  | W104: ="" ->  | X104: L | Y104: 4 | AA104: ="" ->  | AB104: ="" -> 
A105: MT 555B & 565B Dyna-VT | B105: 2/4 | C105: ROPS/CAB | D105: DM | E105: 19 | I105: ="" ->  | J105: ="" ->  | K105: ="" ->  | L105: ="" ->  | M105: ="" ->  | N105: ="" ->  | O105: Q76 | P105: ="" ->  | Q105: 14321165 | T105: 15324BFA | U105: 15324FCA | V105: ="" ->  | W105: ="" ->  | X105: L | Y105: 4 | Z105: ="" ->  | AA105: ="" ->  | AB105: ="" -> 
A106: MT 555B & 565B Dynashift | B106: 2/4 | C106: ROPS/CAB | D106: DM | E106: 19 | I106: ="" ->  | J106: ="" ->  | K106: ="" ->  | L106: ="" ->  | M106: ="" ->  | N106: ="" ->  | O106: Q76 | P106: ="" ->  | Q106: 14321145 | T106: 15324BFA | U106: 15324FCA | V106: ="" ->  | W106: ="" ->  | X106: L | Y106: 4 | Z106: ="" ->  | AA106: ="" ->  | AB106: ="" -> 
A107: MT 555B, 565B, 575B Tier3 Auto Power VI | B107: 2/4 | C107: ROPS/CAB | D107: DM | E107: 19 | I107: ="" ->  | J107: ="" ->  | K107: ="" ->  | L107: ="" ->  | M107: ="" ->  | N107: ="" ->  | O107: Q76 | P107: ="" ->  | Q107: 14323315 | T107: 15324BFA | U107: 15324FCA | V107: ="" ->  | W107: ="" ->  | X107: L | Y107: 4 | Z107: ="" ->  | AA107: ="" ->  | AB107: ="" -> 
A108: MT 555B, 565B, 575B Tier3 Tech Star CVT | B108: 2/4 | C108: ROPS/CAB | D108: DM | E108: 19 | I108: ="" ->  | J108: ="" ->  | K108: ="" ->  | L108: ="" ->  | M108: ="" ->  | N108: ="" ->  | O108: Q76 | P108: ="" ->  | Q108: 14323325 | T108: 15324BFA | U108: 15324FCA | V108: ="" ->  | W108: ="" ->  | X108: L | Y108: 4 | Z108: ="" ->  | AA108: ="" ->  | AB108: ="" -> 
A109: MT 585B CVT, 595B CVT | B109: 2/4 | C109: ROPS/CAB | D109: DL | I109: ="" ->  | J109: ="" ->  | K109: ="" ->  | L109: ="" ->  | M109: ="" ->  | N109: ="" ->  | O109: Q88 | P109: ="" ->  | Q109: 14331105 | T109: 15324BFA | U109: 15324FCA | V109: ="" ->  | W109: ="" ->  | X109: L | Y109: 3 | Z109: ="" ->  | AA109: ="" ->  | AB109: ="" -> 
A110: MT 635B, 645B, 655B, 665B | B110: 2/4 | C110: ROPS/CAB | D110: DL | I110: ="" ->  | J110: ="" ->  | K110: ="" ->  | L110: ="" ->  | M110: ="" ->  | N110: ="" ->  | O110: Q88 | P110: ="" ->  | Q110: 14330115 | T110: 15110BAA | U110: ="" ->  | V110: ="" ->  | W110: ="" ->  | X110: L | Y110: 3 | Z110: ="" ->  | AA110: ="" ->  | AB110: ="" -> 
A111: MT425, 445, 455, 465 | B111: 2/4 | C111: ROPS | D111: US | E111: 11 | F111: 99 | I111: X41 | J111: ="" ->  | K111: X46 | L111: ="" ->  | M111: Q41 | N111: ="" ->  | O111: Q46 | P111: ="" ->  | Q111: 346015 | T111: 15096BAA | U111: ="" ->  | V111: ="" ->  | W111: ="" ->  | X111: U | Y111: 1 | Z111: ="" ->  | AA111: ="" ->  | AB111: ="" -> 
A112: MT565 | B112: 4 | C112: CAB | D112: UM | E112: 12 | F112: 99 | I112: ="" ->  | J112: ="" ->  | K112: ="" ->  | L112: ="" ->  | M112: ="" ->  | N112: ="" ->  | O112: Q76 | P112: ="" ->  | Q112: 320945 | T112: 15115BAA | U112: ="" ->  | V112: ="" ->  | W112: ="" ->  | X112: L | Y112: 2 | Z112: ="" ->  | AA112: ="" ->  | AB112: ="" -> 
A113: Agrofarm 85, 100, 410, 420 and 430 | B113: 2/4 | C113: Cab/Rops | D113: DM | E113: 20 | I113: X31 | J113: X41 | K113: X36 | L113: X46 | M113: Q31 | N113: Q41 | O113: Q36 | P113: Q46 | Q113: 14324585 | T113: 15154BAA | U113: 15154FCA | V113: ="" ->  | W113: ="" ->  | X113: L | Y113: 4 | Z113: ="" ->  | AA113: ="" ->  | AB113: ="" -> 
A114: Agrolux 45-75 | B114: 4 | C114: ROPS | D114: DM | E114: 102 | I114: X21 | J114: ="" ->  | K114: X26 | L114: ="" ->  | M114: ="" ->  | N114: ="" ->  | O114: ="" ->  | P114: ="" ->  | Q114: 14327165 | T114: 15183BAA | U114: ="" ->  | V114: ="" ->  | W114: ="" ->  | X114: L | Y114: 4 | Z114: ="" ->  | AA114: ="" ->  | AB114: ="" -> 
A115: Agroplus 310,315,320 + Ecoline | B115: 4 | C115: Cab/Rops | D115: DM | I115: X21 | J115: X31 | K115: X26 | L115: X36 | M115: Q21 | N115: Q31 | O115: Q26 | P115: Q36 | Q115: 14325495 | T115: 15184BAA | U115: ="" ->  | V115: ="" ->  | W115: ="" ->  | X115: L | Y115: 4 | Z115: ="" ->  | AA115: ="" ->  | AB115: ="" -> 
A116: Agrolplus 410,420 + Ecoline | B116: 4 | C116: Cab/Rops | D116: DM | I116: X21 | J116: X31 | K116: X26 | L116: X36 | M116: Q21 | N116: Q31 | O116: Q26 | P116: Q36 | Q116: 14325505 | T116: 15184BAA | U116: ="" ->  | V116: ="" ->  | W116: ="" ->  | X116: L | Y116: 4 | Z116: ="" ->  | AA116: ="" ->  | AB116: ="" -> 
A117: Agrofarm TTV420 and TTV430 + Profiline | B117: 2/4 | C117: Cab/Rops | D117: =IF(E117=11,"US","DM") -> DM | E117: 20 | I117: X31 | J117: X41 | K117: X36 | L117: X46 | M117: Q31 | N117: Q41 | O117: Q36 | P117: Q46 | Q117: 14324585 | T117: 15256BAA | U117: 15256FCA | V117: 10378316B | W117: ="" ->  | X117: =IF(D117="US","U","L") -> L | Y117: =IF(D117="DS","3",IF(D117="DM","4",IF(D117="US","1",IF(D117="UM","2",IF(D117="DL","3"))))) -> 4 | Z117: ="" ->  | AA117: ="" ->  | AB117: ="" -> 
A118: Agrofarm 410T and 420T | B118: 2/4 | C118: Rops | D118: DM | I118: X31 | J118: X41 | K118: X36 | L118: X46 | M118: Q31 | N118: Q41 | O118: Q36 | P118: Q46 | Q118: 14325335 | T118: 15154BAA | U118: 15154FCA | V118: ="" ->  | W118: ="" ->  | X118: L | Y118: 4 | Z118: ="" ->  | AA118: ="" ->  | AB118: ="" -> 
A119: Agrofarm 410TB and 420TB | B119: 2/4 | C119: Rops | D119: DM | I119: X31 | J119: X41 | K119: X36 | L119: X46 | M119: Q31 | N119: Q41 | O119: Q36 | P119: Q46 | Q119: 14325345 | T119: 15154BAA | U119: 15154FCA | V119: ="" ->  | W119: ="" ->  | X119: L | Y119: 4 | Z119: ="" ->  | AA119: ="" ->  | AB119: ="" -> 
A120: Agrotron K90-120, K410,420 and 430 | B120: 4 | C120: Cab | D120: DM | E120: 21 | I120: X41 | J120: X51 | K120: X46 | L120: X56 | M120: Q41 | N120: Q51 | O120: Q46 | P120: Q56 | Q120: 14322824 | T120: 15032BAA | U120: 15032FCA | V120: ="" ->  | W120: ="" ->  | X120: L | Y120: 4 | Z120: ="" ->  | AA120: ="" ->  | AB120: ="" -> 
A121: Agrotron K90-120, K410,420, 430 (Profiline) | B121: 4 | C121: Cab | D121: DM | I121: X41 | J121: X51 | K121: X46 | L121: X56 | M121: Q41 | N121: Q51 | O121: Q46 | P121: Q56 | Q121: 14322824 | T121: ="" ->  | U121: 15170FCA | V121: ="" ->  | W121: ="" ->  | X121: L | Y121: 4 | Z121: ="" ->  | AA121: ="" ->  | AB121: ="" -> 
A122: Agrotron K-110 and K-610 | B122: 4 | C122: Cab | D122: DM | E122: 21 | I122: ="" ->  | J122: ="" ->  | K122: ="" ->  | L122: ="" ->  | M122: Q51 | N122: Q61 | O122: Q56 | P122: Q66 | Q122: 14322774 | T122: 15032BAA | U122: 15032FCA | V122: ="" ->  | W122: ="" ->  | X122: L | Y122: 4 | Z122: ="" ->  | AA122: ="" ->  | AB122: ="" -> 
A123: Agrotron K-110 & K-610 (Profiline) | B123: 4 | C123: Cab | D123: DM | I123: ="" ->  | J123: ="" ->  | K123: ="" ->  | L123: ="" ->  | M123: Q51 | N123: Q61 | O123: Q56 | P123: Q66 | Q123: 14322774 | T123: ="" ->  | U123: 15170FCA | V123: ="" ->  | W123: ="" ->  | X123: L | Y123: 4 | Z123: ="" ->  | AA123: ="" ->  | AB123: ="" -> 
A124: Agrotron M410 and M420 | B124: 4 | C124: Cab | D124: DM | E124: 23 | I124: ="" ->  | J124: ="" ->  | K124: ="" ->  | L124: ="" ->  | M124: Q51 | N124: Q61 | O124: Q56 | P124: Q66 | Q124: 14326744 | T124: 15010BAA | U124: 15010FCA | V124: ="" ->  | W124: ="" ->  | X124: L | Y124: 4 | Z124: ="" ->  | AA124: ="" ->  | AB124: ="" -> 
A125: Agrotron TTV 410, 420, 430 + Profiline | B125: 4 | C125: Cab | D125: DM | I125: ="" ->  | J125: ="" ->  | K125: ="" ->  | L125: ="" ->  | M125: Q51 | N125: Q61 | O125: Q56 | P125: Q66 | Q125: 14326744 | T125: ="" ->  | U125: 15270FCC | V125: ="" ->  | W125: ="" ->  | X125: L | Y125: 4 | Z125: ="" ->  | AA125: ="" ->  | AB125: ="" -> 
A126: Agrotron M600 - M625 + Profiline | B126: 4 | C126: Cab | D126: DM | E126: 24 | I126: ="" ->  | J126: ="" ->  | K126: ="" ->  | L126: ="" ->  | M126: Q51 | N126: Q61 | O126: Q56 | P126: Q66 | Q126: 14324124 | T126: 15010BAA | U126: 15010FCA | V126: ="" ->  | W126: ="" ->  | X126: L | Y126: 4 | Z126: ="" ->  | AA126: ="" ->  | AB126: ="" -> 
A127: Agrotron M640 | B127: 4 | C127: Cab | D127: DM | E127: 23 | I127: ="" ->  | J127: ="" ->  | K127: ="" ->  | L127: ="" ->  | M127: Q61 | N127: ="" ->  | O127: Q66 | P127: Q76 | Q127: 14324084 | T127: 15010BAA | U127: 15010FCA | V127: ="" ->  | W127: ="" ->  | X127: L | Y127: 4 | Z127: ="" ->  | AA127: ="" ->  | AB127: ="" -> 
A128: Agrotron M640 Profiline | B128: 4 | C128: Cab | D128: DM | I128: ="" ->  | J128: ="" ->  | K128: ="" ->  | L128: ="" ->  | M128: Q61 | N128: ="" ->  | O128: Q66 | P128: Q76 | Q128: 14324084 | T128: 15010BAA | U128: 15010FCA | V128: ="" ->  | W128: ="" ->  | X128: L | Y128: 4 | Z128: ="" ->  | AA128: ="" ->  | AB128: ="" -> 
A129: Agrotron TTV 610 and TTV 620 | B129: 4 | C129: Cab | D129: DM | I129: ="" ->  | J129: ="" ->  | K129: ="" ->  | L129: ="" ->  | M129: Q61 | N129: ="" ->  | O129: Q66 | P129: Q76 | Q129: 14324084 | T129: ="" ->  | U129: 15182FCA | V129: ="" ->  | W129: ="" ->  | X129: L | Y129: 4 | Z129: ="" ->  | AA129: ="" ->  | AB129: ="" -> 
A130: Agrotron M650 | B130: 4 | C130: Cab | D130: DM | I130: ="" ->  | J130: ="" ->  | K130: ="" ->  | L130: ="" ->  | M130: ="" ->  | N130: ="" ->  | O130: Q76 | P130: ="" ->  | Q130: 14324064 | T130: 15010BAA | U130: 15010FCA | V130: ="" ->  | W130: ="" ->  | X130: L | Y130: 4 | Z130: ="" ->  | AA130: ="" ->  | AB130: ="" -> 
A131: Agrotron M650 Profiline | B131: 4 | C131: Cab | D131: DM | I131: ="" ->  | J131: ="" ->  | K131: ="" ->  | L131: ="" ->  | M131: ="" ->  | N131: ="" ->  | O131: Q76 | P131: ="" ->  | Q131: 14324064 | T131: 15010BAA | U131: 15010FCA | V131: ="" ->  | W131: ="" ->  | X131: L | Y131: 4 | Z131: ="" ->  | AA131: ="" ->  | AB131: ="" -> 
A132: Agrotron TTV 630, TTV7210, 7230, 7250 | B132: 4 | C132: Cab | D132: DL | I132: ="" ->  | J132: ="" ->  | K132: ="" ->  | L132: ="" ->  | M132: ="" ->  | N132: ="" ->  | O132: Q88 | P132: ="" ->  | Q132: 14331175 | T132: ="" ->  | U132: 15254FCC | V132: ="" ->  | W132: ="" ->  | X132: L | Y132: 3 | Z132: ="" ->  | AA132: ="" ->  | AB132: ="" -> 
A133: 5100 , 5110, 5120, 5130 | B133: 4 | C133: Cab/Rops | D133: DM | E133: 26 | I133: X41 | J133: X51 | K133: X46 | L133: X56 | M133: Q41 | N133: Q51 | O133: Q46 | P133: Q56 | Q133: 14326664 | T133: 15317BAA | U133: ="" ->  | V133: ="" ->  | W133: ="" ->  | X133: L | Y133: 4 | Z133: ="" ->  | AA133: ="" ->  | AB133: ="" -> 
A134: 5100 , 5110, 5120, 5130 Profiline and TTV | B134: 4 | C134: Cab/Rops | D134: DM | E134: 25 | F134: 26 | I134: X41 | J134: X51 | K134: X46 | L134: X56 | M134: Q41 | N134: Q51 | O134: Q46 | P134: Q56 | Q134: 14326664 | T134: 15340BAA | U134: ="" ->  | V134: ="" ->  | W134: ="" ->  | X134: L | Y134: 4 | Z134: ="" ->  | AA134: ="" ->  | AB134: ="" -> 
A135: Agrotron 6150, 6160 | B135: 4 | C135: Cab | D135: DM | E135: 24 | F135: 26 | G135: 27 | I135: ="" ->  | J135: ="" ->  | K135: ="" ->  | L135: ="" ->  | M135: Q51 | N135: Q61 | O135: Q56 | P135: Q66 | Q135: 14326394 | T135: 15270BAC | U135: 15270FCC | V135: ="" ->  | W135: ="" ->  | X135: L | Y135: 4 | Z135: ="" ->  | AA135: ="" ->  | AB135: ="" -> 
A136: Agrotron 6150, 6160 Profiline and TTV | B136: 4 | C136: Cab | D136: DM | E136: 27 | I136: ="" ->  | J136: ="" ->  | K136: ="" ->  | L136: ="" ->  | M136: Q51 | N136: Q61 | O136: Q56 | P136: Q66 | Q136: 14326394 | T136: ="" ->  | U136: 15270FCC | V136: 10378301B | W136: ="" ->  | X136: L | Y136: 4 | Z136: ="" ->  | AA136: ="" ->  | AB136: ="" -> 
A137: Agrotron 6150.4, 6160.4 | B137: 4 | C137: Cab | D137: DM | E137: 24 | F137: 26 | G137: 27 | I137: X41 | J137: X51 | K137: X46 | L137: X56 | M137: Q41 | N137: Q51 | O137: Q46 | P137: Q56 | Q137: 14327134 | T137: 15357BAC | U137: 15357FCC | V137: ="" ->  | W137: ="" ->  | X137: L | Y137: 4 | Z137: ="" ->  | AA137: ="" ->  | AB137: ="" -> 
A138: Agrotron 6150.4, 6160.4 Profiline and TTV | B138: 4 | C138: Cab | D138: DM | E138: 27 | I138: X41 | J138: X51 | K138: X46 | L138: X56 | M138: Q41 | N138: Q51 | O138: Q46 | P138: Q56 | Q138: 14327134 | T138: ="" ->  | U138: 15357FCC | V138: ="" ->  | W138: ="" ->  | X138: L | Y138: 4 | Z138: ="" ->  | AA138: ="" ->  | AB138: ="" -> 
A139: Agrotron 6180, 6190 | B139: 4 | C139: Cab | D139: DM | E139: 24 | F139: 26 | G139: 27 | I139: ="" ->  | J139: ="" ->  | K139: ="" ->  | L139: ="" ->  | M139: Q61 | N139: ="" ->  | O139: Q66 | P139: Q76 | Q139: 14326304 | T139: 15342BAC | U139: 15342FCC | V139: ="" ->  | W139: ="" ->  | X139: L | Y139: 4 | Z139: ="" ->  | AA139: ="" ->  | AB139: ="" -> 
A140: Agrotron 6180, 6190 Profiline and TTV | B140: 4 | C140: Cab | D140: =IF(E140=11,"US","DM") -> DM | E140: 27 | I140: ="" ->  | J140: ="" ->  | K140: ="" ->  | L140: ="" ->  | M140: Q61 | N140: ="" ->  | O140: Q66 | P140: Q76 | Q140: 14326304 | T140: ="" ->  | U140: 15342FCC | V140: 10378301B | W140: ="" ->  | X140: =IF(D140="US","U","L") -> L | Y140: =IF(D140="DS","3",IF(D140="DM","4",IF(D140="US","1",IF(D140="UM","2",IF(D140="DL","3"))))) -> 4 | Z140: ="" ->  | AA140: ="" ->  | AB140: ="" -> 
A141: 5045E, 5055E, 5065E, 5075E (Teir 3) | B141: 2/4 | C141: ROPS/CAB | D141: DM | E141: 33 | I141: X21 | J141: X31 | K141: X26 | L141: X36 | M141: Q21 | N141: Q31 | O141: Q26 | P141: Q36 | Q141: 14328604 | T141: 15178BAA | U141: ="" ->  | V141: 10378047D | W141: 10378277M' | X141: L | Y141: 4 | Z141: ="" ->  | AA141: ="" ->  | AB141: ="" -> 
A142: 5045E, 5055E, 5065E, 5075E (Teir 4) | B142: 2/4 | C142: ROPS/CAB | D142: DM | I142: X21 | J142: X31 | K142: X26 | L142: X36 | M142: Q21 | N142: Q31 | O142: Q26 | P142: Q36 | Q142: 14328784 | T142: ="" ->  | U142: ="" ->  | V142: 10378420D | W142: ="" ->  | X142: L | Y142: 4 | Z142: ="" ->  | AA142: ="" ->  | AB142: ="" -> 
A143: 5085E, 5100E (Teir 3) | B143: 2/4 | C143: ROPS/CAB | D143: DM | E143: ="" ->  | I143: X31 | J143: ="" ->  | K143: X36 | L143: ="" ->  | M143: Q31 | N143: ="" ->  | O143: Q36 | P143: ="" ->  | Q143: 14327084 | T143: ="" ->  | U143: ="" ->  | V143: 10378096D | W143: ="" ->  | X143: L | Y143: 4 | Z143: ="" ->  | AA143: ="" ->  | AB143: ="" -> 
A144: 5085E, 5100E (Teir4) | B144: 2/4 | C144: ROPS/CAB | D144: DM | E144: ="" ->  | I144: X31 | J144: ="" ->  | K144: X36 | L144: ="" ->  | M144: Q31 | N144: ="" ->  | O144: Q36 | P144: ="" ->  | Q144: 14328944 | T144: ="" ->  | U144: ="" ->  | V144: 10378420D | W144: ="" ->  | X144: L | Y144: 4 | Z144: ="" ->  | AA144: ="" ->  | AB144: ="" -> 
A145: 5083E, 5093E, 5101E, 5425, 5525, 5625, 5603 | B145: 2/4 | C145: ROPS/CAB | D145: DM | E145: 35 | I145: X21 | J145: X31 | K145: X26 | L145: X36 | M145: Q21 | N145: Q31 | O145: Q26 | P145: ="" ->  | Q145: 14325964 | T145: 15082BAA | U145: ="" ->  | V145: 10378047D | W145: 10378277M' | X145: L | Y145: 4 | Z145: ="" ->  | AA145: ="" ->  | AB145: ="" -> 
A146: 5065M, 5075M, 5085M (Teir 3&4) | B146: 2/4 | C146: ROPS/CAB | D146: DM | E146: ="" ->  | I146: X31 | J146: ="" ->  | K146: X36 | L146: ="" ->  | M146: Q31 | N146: ="" ->  | O146: Q36 | P146: ="" ->  | Q146: 14325324 | T146: ="" ->  | U146: ="" ->  | V146: 10378047D | W146: 10378277M' | X146: L | Y146: 4 | Z146: ="" ->  | AA146: ="" ->  | AB146: ="" -> 
A147: 5095M, 5105M, 5100M, 5115M (Teir 3&4) | B147: 2/4 | C147: ROPS/CAB | D147: DM | E147: ="" ->  | I147: X31 | J147: ="" ->  | K147: X36 | L147: ="" ->  | M147: Q31 | N147: ="" ->  | O147: Q36 | P147: ="" ->  | Q147: 14325324 | T147: ="" ->  | U147: ="" ->  | V147: 10378047D | W147: 10378277M' | X147: L | Y147: 4 | Z147: ="" ->  | AA147: ="" ->  | AB147: ="" -> 
A148: 6100D, 6115D, 6130D, 6140D | B148: 2/4 | C148: ROPS/CAB | D148: DM | E148: ="" ->  | I148: X41 | J148: X51 | K148: X46 | L148: X56 | M148: Q41 | N148: Q51 | O148: Q46 | P148: Q56 | Q148: 14324814 | T148: 15141BAA | U148: ="" ->  | V148: 10378047D | W148: 10378277M' | X148: L | Y148: 4 | Z148: ="" ->  | AA148: ="" ->  | AB148: ="" -> 
A149: 61105D, 6115D, 6130D, 60140D T4 | B149: 2/4 | C149: ROPS/CAB | D149: =IF(E149=11,"US","DM") -> DM | E149: ="" ->  | I149: X41 | J149: X51 | K149: X46 | L149: X56 | M149: Q41 | N149: Q51 | O149: Q46 | P149: Q56 | Q149: 14329094 | T149: ="" ->  | U149: ="" ->  | V149: 10378420D | W149: 10378277M' | X149: =IF(D149="US","U","L") -> L | Y149: =IF(D149="DS","3",IF(D149="DM","4",IF(D149="US","1",IF(D149="UM","2",IF(D149="DL","3"))))) -> 4 | Z149: ="" ->  | AA149: ="" ->  | AB149: ="" -> 
A150: 6105E, 6120E, 6135E T4F | B150: 2/4 | C150: ROPS/CAB | D150: DM | E150: ="" ->  | I150: X41 | J150: X51 | K150: X46 | L150: X56 | M150: Q41 | N150: Q51 | O150: Q46 | P150: Q56 | Q150: 14329094 | T150: ="" ->  | U150: ="" ->  | V150: 10378420D | W150: 10378277M' | X150: L | Y150: 4 | Z150: ="" ->  | AA150: ="" ->  | AB150: ="" -> 
A151: 6105M, 6115M, 6125M | B151: 2/4 | C151: ROPS/CAB | D151: DM | E151: 106 | I151: ="" ->  | J151: ="" ->  | K151: ="" ->  | L151: ="" ->  | M151: Q51 | N151: Q61 | O151: Q56 | P151: Q66 | Q151: 14328584 | T151: 15304BAA | U151: 15304FCA | V151: 10378435D | W151: 10378277M' | X151: L | Y151: 4 | Z151: ="" ->  | AA151: ="" ->  | AB151: ="" -> 
A152: 6105R, 6110R, 6115R,6120R, 6125R | B152: 2/4 | C152: ROPS/CAB | D152: DM | E152: 106 | I152: ="" ->  | J152: ="" ->  | K152: ="" ->  | L152: ="" ->  | M152: Q51 | N152: Q61 | O152: Q56 | P152: Q66 | Q152: 14328584 | T152: 15304BAA | U152: 15304FCA | V152: 10378435D | W152: 10378277M' | X152: L | Y152: 4 | Z152: ="" ->  | AA152: ="" ->  | AB152: ="" -> 
A153: 6130M, 6140M, 6150M | B153: 2/4 | C153: ROPS/CAB | D153: DM | E153: 106 | I153: ="" ->  | J153: ="" ->  | K153: ="" ->  | L153: ="" ->  | M153: Q61 | N153: ="" ->  | O153: Q66 | P153: Q76 | Q153: 14329024 | T153: 15304BAA | U153: 15304FCA | V153: 10378435D | W153: 10378277M' | X153: L | Y153: 4 | Z153: ="" ->  | AA153: ="" ->  | AB153: ="" -> 
A154: 6135M, 6145M, 6155M | B154: 2/4 | C154: ROPS/CAB | D154: =IF(E154=11,"US","DM") -> DM | E154: 106 | I154: ="" ->  | J154: ="" ->  | K154: ="" ->  | L154: ="" ->  | M154: Q61 | N154: ="" ->  | O154: Q66 | P154: Q76 | Q154: 14329024 | T154: 15304BAA | U154: 15304FCA | V154: 10378435D | W154: 10378277M' | X154: =IF(D154="US","U","L") -> L | Y154: =IF(D154="DS","3",IF(D154="DM","4",IF(D154="US","1",IF(D154="UM","2",IF(D154="DL","3"))))) -> 4 | Z154: ="" ->  | AA154: ="" ->  | AB154: ="" -> 
A155: 6130R, 6140R, 6150R | B155: 2/4 | C155: ROPS/CAB | D155: DM | E155: 106 | I155: ="" ->  | J155: ="" ->  | K155: ="" ->  | L155: ="" ->  | M155: Q61 | N155: ="" ->  | O155: Q66 | P155: Q76 | Q155: 14329024 | T155: 15304BAA | U155: 15304FCA | V155: 10378435D | W155: 10378277M' | X155: L | Y155: 4 | Z155: ="" ->  | AA155: ="" ->  | AB155: ="" -> 
A156: 6135R, 6145R | B156: 2/4 | C156: ROPS/CAB | D156: DM | E156: 106 | I156: ="" ->  | J156: ="" ->  | K156: ="" ->  | L156: ="" ->  | M156: Q61 | N156: ="" ->  | O156: Q66 | P156: Q76 | Q156: 14329024 | T156: 15304BAA | U156: 15304FCA | V156: 10378435D | W156: 10378277M' | X156: L | Y156: 4 | Z156: ="" ->  | AA156: ="" ->  | AB156: ="" -> 
A157: 6170M, 6190M, 6210M | B157: 2/4 | C157: CAB | D157: DM | E157: 106 | I157: ="" ->  | J157: ="" ->  | K157: ="" ->  | L157: ="" ->  | M157: ="" ->  | N157: ="" ->  | O157: Q76 | P157: ="" ->  | Q157: 14329034 | T157: 15406BAA | U157: 15406FCA | V157: 10378435D | W157: ="" ->  | X157: L | Y157: 4 | Z157: ="" ->  | AA157: ="" ->  | AB157: ="" -> 
A158: 6175M, 6195M, 6215M | B158: 2/4 | C158: CAB | D158: =IF(E158=11,"US","DM") -> DM | E158: 106 | I158: ="" ->  | J158: ="" ->  | K158: ="" ->  | L158: ="" ->  | M158: ="" ->  | N158: ="" ->  | O158: Q76 | P158: ="" ->  | Q158: 14329034 | T158: 15406BAA | U158: 15406FCA | V158: 10378435D | W158: ="" ->  | X158: =IF(D158="US","U","L") -> L | Y158: =IF(D158="DS","3",IF(D158="DM","4",IF(D158="US","1",IF(D158="UM","2",IF(D158="DL","3"))))) -> 4 | Z158: ="" ->  | AA158: ="" ->  | AB158: ="" -> 
A159: 6170R, 6190R, 6210R | B159: 2/4 | C159: CAB | D159: DM | E159: 106 | I159: ="" ->  | J159: ="" ->  | K159: ="" ->  | L159: ="" ->  | M159: ="" ->  | N159: ="" ->  | O159: Q76 | P159: ="" ->  | Q159: 14329034 | T159: 15406BAA | U159: 15406FCA | V159: 10378435D | W159: ="" ->  | X159: L | Y159: 4 | Z159: ="" ->  | AA159: ="" ->  | AB159: ="" -> 
A160: 6175R, 6195R, 6215R | B160: 2/4 | C160: CAB | D160: DM | E160: 106 | I160: ="" ->  | J160: ="" ->  | K160: ="" ->  | L160: ="" ->  | M160: ="" ->  | N160: ="" ->  | O160: Q76 | P160: ="" ->  | Q160: 14329034 | T160: 15406BAA | U160: 15406FCA | V160: 10378435D | W160: ="" ->  | X160: L | Y160: 4 | Z160: ="" ->  | AA160: ="" ->  | AB160: ="" -> 
A161: 7200R, 7210R, 7215R, 7230R | B161: 2/4 | C161: CAB | D161: DL | E161: ="" ->  | I161: ="" ->  | J161: ="" ->  | K161: ="" ->  | L161: ="" ->  | M161: ="" ->  | N161: ="" ->  | O161: Q88 | P161: ="" ->  | Q161: 14331124 | T161: ="" ->  | U161: 15292FCA | V161: 10378216D | W161: ="" ->  | X161: L | Y161: 3 | Z161: ="" ->  | AA161: ="" ->  | AB161: ="" -> 
A162: 7250R, 7260R, 7270R, 7280R, 7290R | B162: 2/4 | C162: CAB | D162: DL | E162: ="" ->  | I162: ="" ->  | J162: ="" ->  | K162: ="" ->  | L162: ="" ->  | M162: ="" ->  | N162: ="" ->  | O162: Q88 | P162: ="" ->  | Q162: 14331124 | T162: ="" ->  | U162: 15292FCA | V162: 10378216D | W162: ="" ->  | X162: L | Y162: 3 | Z162: ="" ->  | AA162: ="" ->  | AB162: ="" -> 
A163: 8245R, 8270R, 8295R, 8320R, 8335R, 8345R | B163: 2/4 | C163: CAB | D163: DXL | E163: 39 | I163: ="" ->  | J163: ="" ->  | K163: ="" ->  | L163: ="" ->  | M163: ="" ->  | N163: ="" ->  | O163: Q98 | P163: ="" ->  | Q163: 14340024 | T163: ="" ->  | U163: 15258FCA | V163: ="" ->  | W163: ="" ->  | X163: L | Y163: 0 | Z163: ="" ->  | AA163: ="" ->  | AB163: ="" -> 
A164: 5105, 5205 | B164: 2/4 | C164: ROPS | D164: DM | E164: ="" ->  | I164: X21 | J164: ="" ->  | K164: X26 | L164: ="" ->  | M164: Q21 | N164: ="" ->  | O164: Q26 | P164: ="" ->  | Q164: 14323464 | T164: 15139BAA | U164: ="" ->  | V164: ="" ->  | W164: ="" ->  | X164: L | Y164: 4 | Z164: ="" ->  | AA164: ="" ->  | AB164: ="" -> 
A165: 5103, 5203, 5303, 5403 | B165: 2/4 | C165: ROPS | D165: DM | E165: ="" ->  | I165: X21 | J165: ="" ->  | K165: X26 | L165: ="" ->  | M165: Q21 | N165: ="" ->  | O165: Q26 | P165: ="" ->  | Q165: 14323264 | T165: 15139BAA | U165: ="" ->  | V165: 10378047D | W165: 10378277M' | X165: L | Y165: 4 | Z165: ="" ->  | AA165: ="" ->  | AB165: ="" -> 
A166: 5225, 5325 | B166: 2/4 | C166: ROPS/CAB | D166: DM | E166: 31 | F166: 32 | I166: X21 | J166: X31 | K166: X26 | L166: ="" ->  | M166: Q21 | N166: Q31 | O166: Q26 | P166: ="" ->  | Q166: 14324834 | T166: 15082BAA | U166: ="" ->  | V166: 10378047D | W166: 10378277M' | X166: L | Y166: 4 | Z166: ="" ->  | AA166: ="" ->  | AB166: ="" -> 
A167: 6403' | B167: 2/4 | C167: ROPS | D167: DM | E167: ="" ->  | I167: X41 | J167: ="" ->  | K167: X46 | L167: ="" ->  | M167: Q41 | N167: ="" ->  | O167: Q46 | P167: ="" ->  | Q167: 14321415 | T167: 15138BAA | U167: ="" ->  | V167: ="" ->  | W167: ="" ->  | X167: L | Y167: 4 | Z167: ="" ->  | AA167: ="" ->  | AB167: ="" -> 
A168: 6603' | B168: 2/4 | C168: ROPS/CAB | D168: DM | E168: ="" ->  | I168: X51 | J168: ="" ->  | K168: X56 | L168: ="" ->  | M168: Q51 | N168: ="" ->  | O168: Q56 | P168: ="" ->  | Q168: 14320385 | T168: 15138BAA | U168: ="" ->  | V168: ="" ->  | W168: ="" ->  | X168: L | Y168: 4 | Z168: ="" ->  | AA168: ="" ->  | AB168: ="" -> 
A169: 6000, 6100, 6200, 6300, 6400, 6405 | B169: 2/4 | C169: ROPS/CAB | D169: DM | I169: X41 | J169: X51 | K169: X46 | L169: X56 | M169: Q41 | N169: Q51 | O169: Q46 | P169: Q56 | Q169: 14320354 | T169: 15006BAA | U169: 15006FCA | V169: ="" ->  | W169: ="" ->  | X169: L | Y169: 4 | Z169: ="" ->  | AA169: ="" ->  | AB169: ="" -> 
A170: 6010, 6110, 6210, 6310, 6410 | B170: 2/4 | C170: ROPS/CAB | D170: DM | I170: X41 | J170: X51 | K170: X46 | L170: X56 | M170: Q41 | N170: Q51 | O170: Q46 | P170: Q56 | Q170: 14320354 | T170: 15006BAA | U170: 15006FCA | V170: ="" ->  | W170: ="" ->  | X170: L | Y170: 4 | Z170: ="" ->  | AA170: ="" ->  | AB170: ="" -> 
A171: 6215, 6415, 6120, 6220, 6320, 6420 | B171: 2/4 | C171: ROPS/CAB | D171: DM | E171: 28 | F171: 29 | I171: X41 | J171: X51 | K171: X46 | L171: X56 | M171: Q41 | N171: Q51 | O171: Q46 | P171: Q56 | Q171: 14324324 | T171: 15007BAA | U171: 15007FCA | V171: 10378047D | W171: 10378277M' | X171: L | Y171: 4 | Z171: ="" ->  | AA171: ="" ->  | AB171: ="" -> 
A172: 7200, 7300, 7400 | B172: 2/4 | C172: ROPS/CAB | D172: DM | E172: ="" ->  | I172: ="" ->  | J172: ="" ->  | K172: ="" ->  | L172: ="" ->  | M172: Q51 | N172: Q61 | O172: Q56 | P172: Q66 | Q172: 14320364 | T172: 15137BAC | U172: ="" ->  | V172: 10378047D | W172: 10378277M' | X172: L | Y172: 4 | Z172: ="" ->  | AA172: ="" ->  | AB172: ="" -> 
A173: 7210, 7310, 7410, 7510, 6605, 7405 | B173: 2/4 | C173: ROPS/CAB | D173: DM | E173: ="" ->  | I173: ="" ->  | J173: ="" ->  | K173: ="" ->  | L173: ="" ->  | M173: Q51 | N173: Q61 | O173: Q56 | P173: Q66 | Q173: 14320364 | T173: 15137BAC | U173: ="" ->  | V173: 10378047D | W173: 10378277M' | X173: L | Y173: 4 | Z173: ="" ->  | AA173: ="" ->  | AB173: ="" -> 
A174: 7600, 7700, 7800, 7610, 7710, 7810 | B174: 2/4 | C174: CAB | D174: DM | E174: 34 | I174: ="" ->  | J174: ="" ->  | K174: ="" ->  | L174: ="" ->  | M174: ="" ->  | N174: ="" ->  | O174: Q76 | P174: ="" ->  | Q174: 14320084 | T174: 15137BAC | U174: 15137FCC | V174: ="" ->  | W174: ="" ->  | X174: L | Y174: 4 | Z174: ="" ->  | AA174: ="" ->  | AB174: ="" -> 
A175: 6615, 6715, 7220, 7320, 7420, 7520 | B175: 2/4 | C175: ROPS/CAB | D175: DM | E175: 29 | I175: ="" ->  | J175: ="" ->  | K175: ="" ->  | L175: ="" ->  | M175: Q61 | N175: ="" ->  | O175: Q66 | P175: ="" ->  | Q175: 14324334 | T175: 15007BAA | U175: 15007FCA | V175: 10378047D | W175: 10378277M' | X175: L | Y175: 4 | Z175: ="" ->  | AA175: ="" ->  | AB175: ="" -> 
A176: 6120L , 6220L, 6320L, 6420L, 6520L | B176: 2/4 | C176: ROPS/CAB | D176: DM | E176: 29 | I176: X51 | J176: ="" ->  | K176: X56 | L176: ="" ->  | M176: Q51 | N176: ="" ->  | O176: Q56 | P176: ="" ->  | Q176: 14320374 | T176: 15007BAA | U176: 15007FCA | V176: 10378047D | W176: 10378277M' | X176: L | Y176: 4 | Z176: ="" ->  | AA176: ="" ->  | AB176: ="" -> 
A177: 6230L, 6330L, 6430L | B177: 2/4 | C177: ROPS/CAB | D177: DM | E177: 29 | I177: X51 | J177: ="" ->  | K177: X56 | L177: ="" ->  | M177: Q51 | N177: ="" ->  | O177: Q56 | P177: ="" ->  | Q177: 14320374 | T177: 15007BAA | U177: 15007FCA | V177: 10378047D | W177: 10378277M' | X177: L | Y177: 4 | Z177: ="" ->  | AA177: ="" ->  | AB177: ="" -> 
A178: 6230, 6330, 6430 | B178: 2/4 | C178: ROPS/CAB | D178: DM | E178: 28 | F178: 29 | G178: 30 | I178: X41 | J178: X51 | K178: X46 | L178: X56 | M178: Q41 | N178: Q51 | O178: Q46 | P178: Q56 | Q178: 14324324 | T178: 15005BAA | U178: 15005FCA | V178: 10378047D | W178: 10378277M' | X178: L | Y178: 4 | Z178: ="" ->  | AA178: ="" ->  | AB178: ="" -> 
A179: 7130, 7230, 7330 | B179: 2/4 | C179: ROPS/CAB | D179: DM | E179: 30 | I179: ="" ->  | J179: ="" ->  | K179: ="" ->  | L179: ="" ->  | M179: Q61 | N179: ="" ->  | O179: Q66 | P179: ="" ->  | Q179: 14324334 | T179: 15005BAA | U179: 15005FCA | V179: 10378047D | W179: 10378277M' | X179: L | Y179: 4 | Z179: ="" ->  | AA179: ="" ->  | AB179: ="" -> 
A180: 7430, 7530 | B180: 2/4 | C180: ROPS/CAB | D180: DM | E180: 29 | F180: 30 | I180: ="" ->  | J180: ="" ->  | K180: ="" ->  | L180: ="" ->  | M180: ="" ->  | N180: ="" ->  | O180: Q76 | P180: ="" ->  | Q180: 14323414 | T180: 15005BAA | U180: 15005FCA | V180: 10378047D | W180: 10378277M' | X180: L | Y180: 4 | Z180: ="" ->  | AA180: ="" ->  | AB180: ="" -> 
A181: 7720, 7820, 7920, 7630, 7730, 7830, 7930 | B181: 2/4 | C181: CAB | D181: DL | E181: ="" ->  | I181: ="" ->  | J181: ="" ->  | K181: ="" ->  | L181: ="" ->  | M181: ="" ->  | N181: ="" ->  | O181: Q88 | P181: ="" ->  | Q181: 14330004 | T181: 15081BAA | U181: 15081FCA | V181: 10378216D | W181: ="" ->  | X181: L | Y181: 3 | Z181: ="" ->  | AA181: ="" ->  | AB181: ="" -> 
A182: 8100 - 8400, 8110 - 8410 | B182: 2/4 | C182: CAB | D182: DL | E182: ="" ->  | I182: ="" ->  | J182: ="" ->  | K182: ="" ->  | L182: ="" ->  | M182: ="" ->  | N182: ="" ->  | O182: Q88 | P182: ="" ->  | Q182: 14331034 | T182: 15201BAA | U182: 15201FCA | V182: ="" ->  | W182: ="" ->  | X182: L | Y182: 3 | Z182: ="" ->  | AA182: ="" ->  | AB182: ="" -> 
A183: 2350, 2355 - 2750, 2755 | B183: 2/4 | C183: ROPS/CAB | D183: DM | E183: 41 | F183: 10 | I183: X31 | J183: X41 | K183: X46 | L183: ="" ->  | M183: Q31 | N183: Q41 | O183: Q46 | P183: ="" ->  | Q183: 14324974 | S183: 1 | T183: 317059 | U183: ="" ->  | V183: ="" ->  | W183: ="" ->  | X183: L | Y183: 4 | Z183: 1 | AA183: ="" ->  | AB183: ="" -> 
A184: 5220, 5320 | B184: 2/4 | C184: ROPS/CAB | D184: US | E184: 11 | F184: 46 | I184: X31 | J184: ="" ->  | K184: X36 | L184: ="" ->  | M184: Q21 | N184: Q31 | O184: Q26 | P184: Q36 | Q184: 10347344 | S184: 1 | T184: 10317565 | U184: ="" ->  | V184: 10378047D | W184: ="" ->  | X184: U | Y184: 1 | Z184: 1 | AA184: ="" ->  | AB184: ="" -> 
A185: 5420, 5520 | B185: 2/4 | C185: ROPS/CAB | D185: US | E185: 11 | F185: 46 | I185: X31 | J185: ="" ->  | K185: X36 | L185: ="" ->  | M185: Q21 | N185: Q31 | O185: Q26 | P185: Q36 | Q185: 10347334 | S185: 1 | T185: 10317565 | U185: ="" ->  | V185: 10378047D | W185: ="" ->  | X185: U | Y185: 1 | Z185: 1 | AA185: ="" ->  | AB185: ="" -> 
A186: 5200-5310, 5400 | B186: 2/4 | C186: ROPS/CAB | D186: US | E186: 11 | F186: 45 | G186: 46 | H186: 47 | I186: X31 | J186: ="" ->  | K186: X36 | L186: ="" ->  | M186: Q21 | N186: Q31 | O186: Q26 | P186: Q36 | Q186: 10347344 | S186: 1 | T186: 317275 | U186: ="" ->  | V186: ="" ->  | W186: ="" ->  | X186: U | Y186: 1 | Z186: 1 | AA186: ="" ->  | AB186: ="" -> 
A187: 5410, 5500, 5510 | B187: 2/4 | C187: ROPS/CAB | D187: US | E187: 11 | F187: 45 | G187: 46 | H187: 47 | I187: X31 | J187: ="" ->  | K187: X36 | L187: ="" ->  | M187: Q21 | N187: Q31 | O187: Q26 | P187: Q36 | Q187: 10347334 | S187: 1 | T187: 317275 | U187: ="" ->  | V187: ="" ->  | W187: ="" ->  | X187: U | Y187: 1 | Z187: 1 | AA187: ="" ->  | AB187: ="" -> 
A188: 5300N, 5310N, 5400N Narrow | B188: 2/4 | C188: CAB | D188: US | E188: 11 | F188: 46 | G188: 48 | H188: 49 | I188: ="" ->  | J188: ="" ->  | K188: ="" ->  | L188: ="" ->  | M188: Q21 | N188: ="" ->  | O188: Q26 | P188: ="" ->  | Q188: 10347344 | S188: 1 | T188: 317509 | U188: ="" ->  | V188: ="" ->  | W188: ="" ->  | X188: U | Y188: 1 | Z188: 1 | AA188: ="" ->  | AB188: ="" -> 
A189: 5410N, 5500N, 5510N Narrow | B189: 2/4 | C189: CAB | D189: US | E189: 11 | F189: 46 | G189: 48 | H189: 49 | I189: ="" ->  | J189: ="" ->  | K189: ="" ->  | L189: ="" ->  | M189: Q21 | N189: ="" ->  | O189: Q26 | P189: ="" ->  | Q189: 10347334 | S189: 1 | T189: 317509 | U189: ="" ->  | V189: ="" ->  | W189: ="" ->  | X189: U | Y189: 1 | Z189: 1 | AA189: ="" ->  | AB189: ="" -> 
A190: 5320N Narrow | B190: 2/4 | C190: CAB | D190: US | E190: 11 | F190: 46 | G190: 49 | I190: ="" ->  | J190: ="" ->  | K190: ="" ->  | L190: ="" ->  | M190: Q21 | N190: ="" ->  | O190: Q26 | P190: ="" ->  | Q190: 10347344 | S190: 1 | T190: 10317565 | U190: ="" ->  | V190: ="" ->  | W190: ="" ->  | X190: U | Y190: 1 | Z190: 1 | AA190: ="" ->  | AB190: ="" -> 
A191: 5420N, 5520N | B191: 2/4 | C191: CAB | D191: US | E191: 11 | F191: 46 | G191: 49 | I191: ="" ->  | J191: ="" ->  | K191: ="" ->  | L191: ="" ->  | M191: Q21 | N191: ="" ->  | O191: Q26 | P191: ="" ->  | Q191: 10347334 | S191: 1 | T191: 10317565 | U191: ="" ->  | V191: ="" ->  | W191: ="" ->  | X191: U | Y191: 1 | Z191: 1 | AA191: ="" ->  | AB191: ="" -> 
A192: 2150, 2155 | B192: 2/4 | C192: ROPS/CAB | D192: US | E192: 11 | F192: 49 | G192: 99 | H192: 46 | I192: X31 | J192: ="" ->  | K192: X36 | L192: ="" ->  | M192: Q31 | N192: ="" ->  | O192: Q36 | P192: ="" ->  | Q192: 341384 | S192: 1 | T192: 317059 | U192: ="" ->  | V192: ="" ->  | W192: ="" ->  | X192: U | Y192: 1 | Z192: 1 | AA192: ="" ->  | AB192: ="" -> 
A193: 2950, 2955 - 3255 | B193: 2/4 | C193: ROPS/CAB | D193: US | E193: 11 | F193: 46 | G193: 49 | I193: X51 | J193: ="" ->  | K193: X56 | L193: ="" ->  | M193: Q51 | N193: ="" ->  | O193: Q56 | P193: ="" ->  | Q193: 344955 | S193: 1 | T193: 317061 | U193: ="" ->  | V193: ="" ->  | W193: ="" ->  | X193: U | Y193: 1 | Z193: 1 | AA193: ="" ->  | AB193: ="" -> 
A194: 4020' | B194: 2 | C194: ROPS/CAB | D194: US | E194: 11 | F194: 45 | G194: 46 | H194: 49 | I194: X41 | J194: ="" ->  | K194: X46 | L194: ="" ->  | M194: Q41 | N194: ="" ->  | O194: Q46 | P194: ="" ->  | Q194: 345275 | S194: 1 | T194: 317298 | U194: ="" ->  | V194: ="" ->  | W194: ="" ->  | X194: U | Y194: 1 | Z194: 1 | AA194: ="" ->  | AB194: ="" -> 
A195: 4420, 4230, 4430, 4240, 4440 | B195: 2 | C195: CAB | D195: US | E195: 11 | F195: 45 | G195: 46 | H195: 99 | I195: X51 | J195: ="" ->  | K195: X56 | L195: ="" ->  | M195: Q51 | N195: ="" ->  | O195: Q56 | P195: ="" ->  | Q195: 345285 | S195: 1 | T195: 317298 | U195: ="" ->  | V195: ="" ->  | W195: ="" ->  | X195: U | Y195: 1 | Z195: 1 | AA195: ="" ->  | AB195: ="" -> 
A196: 4050/4055 - 4450/4455 | B196: 2/4 | C196: CAB | D196: UM | E196: 12 | F196: 46 | G196: 49 | H196: 99 | I196: ="" ->  | J196: ="" ->  | K196: ="" ->  | L196: ="" ->  | M196: ="" ->  | N196: ="" ->  | O196: Q56 | P196: Q66 | Q196: 320155 | S196: 1 | T196: 317146 | U196: ="" ->  | V196: ="" ->  | W196: ="" ->  | X196: L | Y196: 2 | Z196: 1 | AA196: ="" ->  | AB196: ="" -> 
A197: M5040-M7040, M5060-7060 | B197: 2/4 | C197: ROPS/CAB | D197: DM | E197: 50 | I197: X21 | J197: ="" ->  | K197: X26 | L197: ="" ->  | M197: Q21 | N197: ="" ->  | O197: Q26 | P197: ="" ->  | Q197: 14322734 | T197: 15203BEA | U197: 15203FCA | V197: ="" ->  | W197: ="" ->  | X197: L | Y197: 4 | AA197: ="" ->  | AB197: ="" -> 
A198: M5-091, 101 | B198: 2/4 | C198: ROPS/CAB | D198: DM | I198: X31 | J198: ="" ->  | K198: X36 | L198: ="" ->  | M198: Q31 | N198: ="" ->  | O198: Q36 | P198: ="" ->  | Q198: 14328367 | R198: ="" ->  | S198: ="" ->  | T198: 15420BEA | U198: 15420FCA | V198: ="" ->  | W198: ="" ->  | X198: =IF(D198="US","U","L") -> L | Y198: =IF(D198="DS","3",IF(D198="DM","4",IF(D198="US","1",IF(D198="UM","2",IF(D198="DL","3"))))) -> 4 | AA198: ="" ->  | AB198: ="" -> 
A199: M6-101, 111 | B199: 2/4 | C199: ROPS/CAB | D199: DM | I199: X41 | J199: ="" ->  | K199: X46 | L199: ="" ->  | M199: Q41 | N199: ="" ->  | O199: Q46 | P199: ="" ->  | Q199: 14328277 | R199: ="" ->  | S199: ="" ->  | T199: 15421BAA | U199: 15421FCA | V199: ="" ->  | W199: ="" ->  | X199: L | Y199: 4 | AA199: ="" ->  | AB199: ="" -> 
A200: M6-131, 141 | B200: 2/4 | C200: ROPS/CAB | D200: DM | I200: X51 | J200: ="" ->  | K200: X56 | L200: ="" ->  | M200: Q51 | N200: ="" ->  | O200: Q56 | P200: ="" ->  | Q200: 14328287 | R200: ="" ->  | S200: ="" ->  | T200: 15421BAA | U200: 15421FCA | V200: ="" ->  | W200: ="" ->  | X200: L | Y200: 4 | AA200: ="" ->  | AB200: ="" -> 
... 262 more rows

Sheet OEM (hidden)
A1: Farmall 75C (Turkish Built) T4 | B1: MUST BE SOURCED THROUGH CNH
A2: Farmall 85C, 95C,105C,115C EP T4 | B2: MUST BE SOURCED THROUGH CNH
A3: Farmall 45A,50A,60A,70A T4 | B3: MUST BE SOURCED THROUGH CNH
A4: Farmall 65C-120C T4 | B4: MUST BE SOURCED THROUGH CNH
A5: Farmall 85U, 95U, 105U, 115U EP T4 | B5: MUST BE SOURCED THROUGH CNH
A6: Farmall 110A, 120A, 125A, 140A T4 | B6: MUST BE SOURCED THROUGH CNH
A7: Maxxum 115, 125,135,145,150 T4 | B7: MUST BE SOURCED THROUGH CNH
A8: Puma 150,165,185,200,220,240 T4 | B8: MUST BE SOURCED THROUGH CNH
A9: Optum 270,300 | B9: MUST BE SOURCED THROUGH CNH
A10: Magnum 180-240 T4 | B10: MUST BE SOURCED THROUGH CNH
A11: Magnum 250-380 T4 | B11: MUST BE SOURCED THROUGH CNH
A17: MT555D - MT575D Auto VI (Classic Cab) | B17: MUST BE SOURCED THROUGH AGCO
A18: MT555D - MT575D Auto VI (Deluxe) | B18: MUST BE SOURCED THROUGH AGCO
A19: MT555D, MT565D, MT575D CVT (Deluxe) | B19: MUST BE SOURCED THROUGH AGCO
A20: MT585D, MT595D Auto VI (Classic Cab) | B20: MUST BE SOURCED THROUGH AGCO
A21: MT585D, MT595D Auto VI (Deluxe) | B21: MUST BE SOURCED THROUGH AGCO
A22: MT585D CVT (Deluxe) | B22: MUST BE SOURCED THROUGH AGCO
A23: MT645C, 655C, 665C, 675C CVT | B23: MUST BE SOURCED THROUGH AGCO
A24: MT645D, 655D, 665D, 675D | B24: MUST BE SOURCED THROUGH AGCO
A25: 2605, 2615, 2625, 2635 | B25: MUST BE SOURCED THROUGH AGCO
A26: 4608, 4609, 4610 | B26: MUST BE SOURCED THROUGH AGCO
A28: 5609, 5610, 5611, 5612, 5613 | B28: MUST BE SOURCED THROUGH AGCO
A29: 6614, 6615, 6616 | B29: MUST BE SOURCED THROUGH AGCO
A30: 7619, 7620, 7622 DYNA IV Classic Cab | B30: MUST BE SOURCED THROUGH AGCO
A31: 7619, 7620, 7622 DYNA IV Deluxe & Premium | B31: MUST BE SOURCED THROUGH AGCO
A32: 7619, 7620, 7622 CVT Deluxe & Premium | B32: MUST BE SOURCED THROUGH AGCO
A33: 7624, 7626 DYNA IV Classic Cab | B33: MUST BE SOURCED THROUGH AGCO
A34: 7624, 7626 DYNA IV Deluxe & Premium | B34: MUST BE SOURCED THROUGH AGCO
A35: 7624 CVT Deluxe & Premium Cab | B35: MUST BE SOURCED THROUGH AGCO
A36: 8650, 8660, 8670, 8680 TIER 3 and Tier 4i | B36: MUST BE SOURCED THROUGH AGCO
A37: Workmaster 45, 50, 55, 60, 70 | B37: MUST BE SOURCED THROUGH CNH
A38: Powerstar T4.65, T4.75 T4B | B38: MUST BE SOURCED THROUGH CNH
A39: T4.85 - 120 T4 | B39: MUST BE SOURCED THROUGH CNH
A40: T5.95 - 120 T4 | B40: MUST BE SOURCED THROUGH CNH
A41: T6.120, .140, .150, .160 | B41: MUST BE SOURCED THROUGH CNH
A42: T6.155, .165, .175 | B42: MUST BE SOURCED THROUGH CNH
A43: T7.170, .185, .200, .210, .235 EP | B43: MUST BE SOURCED THROUGH CNH
A44: T7.220, .235, .250, .260, .270 EP | B44: MUST BE SOURCED THROUGH CNH
A45: T8.275, .300, .330, .360, .390, .420 | B45: MUST BE SOURCED THROUGH CNH
B46: MUST BE SOURCED THROUGH CNH
B47: MUST BE SOURCED THROUGH CNH
B48: MUST BE SOURCED THROUGH CNH

Sheet AGCO (hidden)
A1: GT45, 55 and "A"
A2: GT55 and "A"
A3: GT65, 75 and "A"
A4: GT75 and "A"
A5: LT75, 90
A6: LT "A" 75, 85, 90, 95 AUTO IV TIER II and III
A7: LT "A" 75, 90 Speed Shift
A8: RT 100, 120 Auto Quad
A9: RT 100, 120 Dyna VT
A10: RT 135, 150 Auto Quad
A11: RT 135, 150 Dyna VT
A12: RT "A" 100, 120 TIER 2 Auto IV
A13: RT "A" 100, 120 TIER 2 CVT
A14: RT "A" 140, 155 TIER 2 Auto IV
A15: RT "A" 140, 155 TIER 2 CVT
A16: RT "A" 110, 120 TIER 3 Auto VI
A17: RT "A" 110, 120 TIER 3 CVT
A18: RT "A" 140, 155 TIER 3 Auto VI
A19: RT "A" 140, 155 TIER 3 CVT
A20: RT 165A AUTO VI Tier 3 Serial # <T176049
A21: RT 165A AUTO VI Tier 3 Serial # >T189041
A22: RT 165A Tier 3 CVT
A23: RT 180A from serial # T198034
A24: RT 180A Tier 3 CVT
A25: DT "A" 180, 200, 220, 240
A26: DT "B" 205, 225, 250, 275
A27: LT70, 85 ROPS
A28: LT70, 85 CAB
A29: RT95, 115
A30: RT 130, 145
A31: ="" -> 
A32: ="" -> 
A33: ="" -> 
A34: ="" -> 
A35: ="" -> 
A36: ="" -> 
A37: ="" -> 
A38: ="" -> 
A39: ="" -> 
A40: ="" -> 
A41: ="" -> 
A42: ="" -> 
A43: ="" -> 
A44: ="" -> 
A45: ="" -> 
A46: ="" -> 
A47: ="" -> 
A48: ="" -> 
A49: ="" -> 
A50: ="" -> 
A51: ="" -> 
A52: ="" -> 
A53: ="" -> 
A54: ="" -> 
A55: ="" -> 
A56: ="" -> 
A57: ="" -> 
A58: ="" -> 
A59: ="" -> 
A60: ="" -> 
A61: ="" -> 
A62: ="" -> 
A63: ="" -> 
A64: ="" -> 
A65: ="" -> 
A66: ="" -> 
A67: ="" -> 
A68: ="" -> 
A69: ="" -> 
A70: ="" -> 
A71: ="" -> 
A72: ="" -> 
A73: ="" -> 
A74: ="" -> 
A75: ="" -> 
A76: ="" -> 
A77: ="" -> 
A78: ="" -> 
A79: ="" -> 
A80: ="" -> 
A81: ="" -> 
A82: ="" -> 
A83: ="" -> 
A84: ="" -> 
A85: ="" -> 
A86: ="" -> 
A87: ="" -> 
A88: ="" -> 
A89: ="" -> 
A90: ="" -> 
A91: ="" -> 
A92: ="" -> 
A93: ="" -> 
A94: ="" -> 
A95: ="" -> 
A96: ="" -> 
A97: ="" -> 
A98: ="" -> 
A99: ="" -> 
A100: ="" -> 
A101: ="" -> 
A102: ="" -> 
A103: ="" -> 
A104: ="" -> 
A105: ="" -> 
A106: ="" -> 
A107: ="" -> 
A108: ="" -> 
A109: ="" -> 
A110: ="" -> 
A111: ="" -> 
A112: ="" -> 
A113: ="" -> 
A114: ="" -> 
A115: ="" -> 
A116: ="" -> 
A117: ="" -> 
A118: ="" -> 
A119: ="" -> 
A120: ="" -> 
A121: ="" -> 
A122: ="" -> 
A123: ="" -> 
A124: ="" -> 
A125: ="" -> 
A126: ="" -> 
A127: ="" -> 
A128: ="" -> 
A129: ="" -> 
A130: ="" -> 
A131: ="" -> 
A132: ="" -> 
A133: ="" -> 
A134: ="" -> 
A135: ="" -> 
A136: ="" -> 
A137: ="" -> 
A138: ="" -> 
A139: ="" -> 
A140: ="" -> 
A141: ="" -> 
A142: ="" -> 
A143: ="" -> 
A144: ="" -> 
A145: ="" -> 
A146: ="" -> 
A147: ="" -> 
A148: ="" -> 
A149: ="" -> 
A150: ="" -> 
A151: ="" -> 
A152: ="" -> 
A153: ="" -> 
A154: ="" -> 
A155: ="" -> 
A156: ="" -> 
A157: ="" -> 
A158: ="" -> 
A159: ="" -> 
A160: ="" -> 
A161: ="" -> 
A162: ="" -> 
A163: ="" -> 
A164: ="" -> 
A165: ="" -> 
A166: ="" -> 
A167: ="" -> 
A168: ="" -> 
A169: ="" -> 
A170: ="" -> 
A171: ="" -> 
A172: ="" -> 
A173: ="" -> 
A174: ="" -> 
A175: ="" -> 
A176: ="" -> 
A177: ="" -> 
A178: ="" -> 
A179: ="" -> 
A180: ="" -> 
A181: ="" -> 
A182: ="" -> 
A183: ="" -> 
A184: ="" -> 
A185: ="" -> 
A186: ="" -> 
A187: ="" -> 
A188: ="" -> 
A189: ="" -> 
A190: ="" -> 
A191: ="" -> 
A192: ="" -> 
A193: ="" -> 
A194: ="" -> 
A195: ="" -> 
A196: ="" -> 
A197: ="" -> 
A198: ="" -> 
A199: ="" -> 
A200: ="" -> 
... 1 more rows

Sheet AGCO Allis (hidden)
A1: 8745, 8765 (Valtra Engine)
A2: 8745, 8765 (Cummins Engine)
A3: 8745, 8765 (Cummins Engine)
A4: 8775, 8785 (Valtra Engine)
A5: 8775, 8785 (Cummins Engine)
A6: 4650, 4660
A7: 5650, 5660
A8: 5670, 5680
A9: 8610, 8630
A10: ="" -> 
A11: ="" -> 
A12: ="" -> 
A13: ="" -> 
A14: ="" -> 
A15: ="" -> 
A16: ="" -> 
A17: ="" -> 
A18: ="" -> 
A19: ="" -> 
A20: ="" -> 
A21: ="" -> 
A22: ="" -> 
A23: ="" -> 
A24: ="" -> 
A25: ="" -> 
A26: ="" -> 
A27: ="" -> 
A28: ="" -> 
A29: ="" -> 
A30: ="" -> 
A31: ="" -> 
A32: ="" -> 
A33: ="" -> 
A34: ="" -> 
A35: ="" -> 
A36: ="" -> 
A37: ="" -> 
A38: ="" -> 
A39: ="" -> 
A40: ="" -> 
A41: ="" -> 
A42: ="" -> 
A43: ="" -> 
A44: ="" -> 
A45: ="" -> 
A46: ="" -> 
A47: ="" -> 
A48: ="" -> 
A49: ="" -> 
A50: ="" -> 
A51: ="" -> 
A52: ="" -> 
A53: ="" -> 
A54: ="" -> 
A55: ="" -> 
A56: ="" -> 
A57: ="" -> 
A58: ="" -> 
A59: ="" -> 
A60: ="" -> 
A61: ="" -> 
A62: ="" -> 
A63: ="" -> 
A64: ="" -> 
A65: ="" -> 
A66: ="" -> 
A67: ="" -> 
A68: ="" -> 
A69: ="" -> 
A70: ="" -> 
A71: ="" -> 
A72: ="" -> 
A73: ="" -> 
A74: ="" -> 
A75: ="" -> 
A76: ="" -> 
A77: ="" -> 
A78: ="" -> 
A79: ="" -> 
A80: ="" -> 
A81: ="" -> 
A82: ="" -> 
A83: ="" -> 
A84: ="" -> 
A85: ="" -> 
A86: ="" -> 
A87: ="" -> 
A88: ="" -> 
A89: ="" -> 
A90: ="" -> 
A91: ="" -> 
A92: ="" -> 
A93: ="" -> 
A94: ="" -> 
A95: ="" -> 
A96: ="" -> 
A97: ="" -> 
A98: ="" -> 
A99: ="" -> 
A100: ="" -> 
A101: ="" -> 
A102: ="" -> 
A103: ="" -> 
A104: ="" -> 
A105: ="" -> 
A106: ="" -> 
A107: ="" -> 
A108: ="" -> 
A109: ="" -> 
A110: ="" -> 
A111: ="" -> 
A112: ="" -> 
A113: ="" -> 
A114: ="" -> 
A115: ="" -> 
A116: ="" -> 
A117: ="" -> 
A118: ="" -> 
A119: ="" -> 
A120: ="" -> 
A121: ="" -> 
A122: ="" -> 
A123: ="" -> 
A124: ="" -> 
A125: ="" -> 
A126: ="" -> 
A127: ="" -> 
A128: ="" -> 
A129: ="" -> 
A130: ="" -> 
A131: ="" -> 
A132: ="" -> 
A133: ="" -> 
A134: ="" -> 
A135: ="" -> 
A136: ="" -> 
A137: ="" -> 
A138: ="" -> 
A139: ="" -> 
A140: ="" -> 
A141: ="" -> 
A142: ="" -> 
A143: ="" -> 
A144: ="" -> 
A145: ="" -> 
A146: ="" -> 
A147: ="" -> 
A148: ="" -> 
A149: ="" -> 
A150: ="" -> 
A151: ="" -> 
A152: ="" -> 
A153: ="" -> 
A154: ="" -> 
A155: ="" -> 
A156: ="" -> 
A157: ="" -> 
A158: ="" -> 
A159: ="" -> 
A160: ="" -> 
A161: ="" -> 
A162: ="" -> 
A163: ="" -> 
A164: ="" -> 
A165: ="" -> 
A166: ="" -> 
A167: ="" -> 
A168: ="" -> 
A169: ="" -> 
A170: ="" -> 
A171: ="" -> 
A172: ="" -> 

Sheet AGCO White (hidden)
A1: 6410, 6510
A2: 6410, 6510
A3: 6710, 6810'
A4: 8310, 8410
A5: 6045 ROPS
A6: 6065 ROPS
A7: 6065 CAB
A8: 6105 CAB
A9: ="" -> 
A10: ="" -> 
A11: ="" -> 
A12: ="" -> 
A13: ="" -> 
A14: ="" -> 
A15: ="" -> 
A16: ="" -> 
A17: ="" -> 
A18: ="" -> 
A19: ="" -> 
A20: ="" -> 
A21: ="" -> 
A22: ="" -> 
A23: ="" -> 
A24: ="" -> 
A25: ="" -> 
A26: ="" -> 
A27: ="" -> 
A28: ="" -> 
A29: ="" -> 
A30: ="" -> 
A31: ="" -> 
A32: ="" -> 
A33: ="" -> 
A34: ="" -> 
A35: ="" -> 
A36: ="" -> 
A37: ="" -> 
A38: ="" -> 
A39: ="" -> 
A40: ="" -> 
A41: ="" -> 
A42: ="" -> 
A43: ="" -> 
A44: ="" -> 
A45: ="" -> 
A46: ="" -> 
A47: ="" -> 
A48: ="" -> 
A49: ="" -> 
A50: ="" -> 
A51: ="" -> 
A52: ="" -> 
A53: ="" -> 
A54: ="" -> 
A55: ="" -> 
A56: ="" -> 
A57: ="" -> 
A58: ="" -> 
A59: ="" -> 
A60: ="" -> 
A61: ="" -> 
A62: ="" -> 
A63: ="" -> 
A64: ="" -> 
A65: ="" -> 
A66: ="" -> 
A67: ="" -> 
A68: ="" -> 
A69: ="" -> 
A70: ="" -> 
A71: ="" -> 
A72: ="" -> 
A73: ="" -> 
A74: ="" -> 
A75: ="" -> 
A76: ="" -> 
A77: ="" -> 
A78: ="" -> 
A79: ="" -> 
A80: ="" -> 
A81: ="" -> 
A82: ="" -> 
A83: ="" -> 
A84: ="" -> 
A85: ="" -> 
A86: ="" -> 
A87: ="" -> 
A88: ="" -> 
A89: ="" -> 
A90: ="" -> 
A91: ="" -> 
A92: ="" -> 
A93: ="" -> 
A94: ="" -> 
A95: ="" -> 
A96: ="" -> 
A97: ="" -> 
A98: ="" -> 
A99: ="" -> 
A100: ="" -> 
A101: ="" -> 
A102: ="" -> 
A103: ="" -> 
A104: ="" -> 
A105: ="" -> 
A106: ="" -> 
A107: ="" -> 
A108: ="" -> 
A109: ="" -> 
A110: ="" -> 
A111: ="" -> 
A112: ="" -> 
A113: ="" -> 
A114: ="" -> 
A115: ="" -> 
A116: ="" -> 
A117: ="" -> 
A118: ="" -> 
A119: ="" -> 
A120: ="" -> 
A121: ="" -> 
A122: ="" -> 
A123: ="" -> 
A124: ="" -> 
A125: ="" -> 
A126: ="" -> 
A127: ="" -> 
A128: ="" -> 
A129: ="" -> 
A130: ="" -> 
A131: ="" -> 
A132: ="" -> 
A133: ="" -> 
A134: ="" -> 
A135: ="" -> 
A136: ="" -> 
A137: ="" -> 
A138: ="" -> 
A139: ="" -> 
A140: ="" -> 
A141: ="" -> 
A142: ="" -> 
A143: ="" -> 
A144: ="" -> 
A145: ="" -> 
A146: ="" -> 
A147: ="" -> 
A148: ="" -> 
A149: ="" -> 
A150: ="" -> 
A151: ="" -> 
A152: ="" -> 
A153: ="" -> 
A154: ="" -> 
A155: ="" -> 
A156: ="" -> 
A157: ="" -> 
A158: ="" -> 
A159: ="" -> 
A160: ="" -> 
A161: ="" -> 
A162: ="" -> 
A163: ="" -> 
A164: ="" -> 
A165: ="" -> 
A166: ="" -> 
A167: ="" -> 
A168: ="" -> 
A169: ="" -> 
A170: ="" -> 
A171: ="" -> 

Sheet Buhler (hidden)
A1: Genesis 2145, 2160, 2180, 2210
A2: ="" -> 
A3: ="" -> 
A4: ="" -> 
A5: ="" -> 
A6: ="" -> 
A7: ="" -> 
A8: ="" -> 
A9: ="" -> 
A10: ="" -> 
A11: ="" -> 
A12: ="" -> 
A13: ="" -> 
A14: ="" -> 
A15: ="" -> 
A16: ="" -> 
A17: ="" -> 
A18: ="" -> 
A19: ="" -> 
A20: ="" -> 
A21: ="" -> 
A22: ="" -> 
A23: ="" -> 
A24: ="" -> 
A25: ="" -> 
A26: ="" -> 
A27: ="" -> 
A28: ="" -> 
A29: ="" -> 
A30: ="" -> 
A31: ="" -> 
A32: ="" -> 
A33: ="" -> 
A34: ="" -> 
A35: ="" -> 
A36: ="" -> 
A37: ="" -> 
A38: ="" -> 
A39: ="" -> 
A40: ="" -> 
A41: ="" -> 
A42: ="" -> 
A43: ="" -> 
A44: ="" -> 
A45: ="" -> 
A46: ="" -> 
A47: ="" -> 
A48: ="" -> 
A49: ="" -> 
A50: ="" -> 
A51: ="" -> 
A52: ="" -> 
A53: ="" -> 
A54: ="" -> 
A55: ="" -> 
A56: ="" -> 
A57: ="" -> 
A58: ="" -> 
A59: ="" -> 
A60: ="" -> 
A61: ="" -> 
A62: ="" -> 
A63: ="" -> 
A64: ="" -> 
A65: ="" -> 
A66: ="" -> 
A67: ="" -> 
A68: ="" -> 
A69: ="" -> 
A70: ="" -> 
A71: ="" -> 
A72: ="" -> 
A73: ="" -> 
A74: ="" -> 
A75: ="" -> 
A76: ="" -> 
A77: ="" -> 
A78: ="" -> 
A79: ="" -> 
A80: ="" -> 
A81: ="" -> 
A82: ="" -> 
A83: ="" -> 
A84: ="" -> 
A85: ="" -> 
A86: ="" -> 
A87: ="" -> 
A88: ="" -> 
A89: ="" -> 
A90: ="" -> 
A91: ="" -> 
A92: ="" -> 
A93: ="" -> 
A94: ="" -> 
A95: ="" -> 
A96: ="" -> 
A97: ="" -> 
A98: ="" -> 
A99: ="" -> 
A100: ="" -> 
A101: ="" -> 
A102: ="" -> 
A103: ="" -> 
A104: ="" -> 
A105: ="" -> 
A106: ="" -> 
A107: ="" -> 
A108: ="" -> 
A109: ="" -> 
A110: ="" -> 
A111: ="" -> 
A112: ="" -> 
A113: ="" -> 
A114: ="" -> 
A115: ="" -> 
A116: ="" -> 
A117: ="" -> 
A118: ="" -> 
A119: ="" -> 
A120: ="" -> 
A121: ="" -> 
A122: ="" -> 
A123: ="" -> 
A124: ="" -> 
A125: ="" -> 
A126: ="" -> 
A127: ="" -> 
A128: ="" -> 
A129: ="" -> 
A130: ="" -> 
A131: ="" -> 
A132: ="" -> 
A133: ="" -> 
A134: ="" -> 
A135: ="" -> 
A136: ="" -> 
A137: ="" -> 
A138: ="" -> 
A139: ="" -> 
A140: ="" -> 
A141: ="" -> 
A142: ="" -> 
A143: ="" -> 
A144: ="" -> 
A145: ="" -> 
A146: ="" -> 
A147: ="" -> 
A148: ="" -> 
A149: ="" -> 
A150: ="" -> 
A151: ="" -> 
A152: ="" -> 
A153: ="" -> 
A154: ="" -> 
A155: ="" -> 
A156: ="" -> 
A157: ="" -> 
A158: ="" -> 
A159: ="" -> 
A160: ="" -> 
A161: ="" -> 
A162: ="" -> 
A163: ="" -> 
A164: ="" -> 

Sheet Case (hidden)
A1: Farmall 75C (Turkish Built) T4
A2: Farmall 85C, 95C,105C,115C EP T4
A3: Farmall 45A,50A,60A,70A T4
A4: Farmall 65C-120C T4
A5: Farmall 85U, 95U, 105U, 115U EP T4
A6: Farmall 110A, 120A, 125A, 140A T4
A7: Maxxum 115, 125,135,145,150 T4
A8: Puma 150,165,185,200,220,240 T4
A9: Optum 270,300
A10: Magnum 180-240 T4
A11: Magnum 250-380 T4
A12: Farmall 65A, 75A
A13: Farmall 65C, 75C (Straddle Jesi)
A14: Farmall 85C, 95C (Straddle Jesi)
A15: Farmall 70, 80
A16: Farmall 90, 95, JX95
A17: FARMALL 85U, 95U, 105U (JESI)
A18: JX1080U, JX1090U, 1100U (JESI)
A19: JX55, 60, 65, 70
A20: JX75, 80, 85, 90
A21: JX1060C, 1070C, 1075C
A22: JX1085C, 1095C
A23: JX1075N, JX1095N
A24: JX70, 80, 90, 100U
A25: MXU 100, 110 Limited
A26: Maxxum 110, 120, 130 T3
A27: MXU 115, 130 Value (Open Center)
A28: MXU 115, 125, 135 Limited (Closed Center)
A29: Maxxum 115,125,140 T3
A30: MX 180 - 335
A31: Magnum 180 - 280 (Teir III)
A32: 3230-4240, C70 - C100 4WD
A33: 3230-4240, C70 - C100 2WD
A34: 685-985 AND 695-995 4WD
A35: 685-985 AND 695-995 2WD
A36: CX70, 80, 90, 100
A37: 5130 - 5250 6 Cylinder
A38: MX80C - 100C
A39: MX100-135
A40: MX150-170
A41: MXM 130, 140 Value (Open Center)
A42: MXM 120, 130, 140, 155 Pro (Closed Center)
A43: MXM 175, 190 Pro
A44: Magnum 7110 - 7150 / 7210 - 7250 / 8910 - 8950
A45: 5120'
A46: 5220 4 Cylinder
A47: C50, C60, 3210, 3220
A48: CX50, CX60
A49: ="" -> 
A50: D35-45 / DX35-45 / FARMALL40-50
A51: DX48, 55 / FARMALL 55, 60
A52: DX25, DX 29, DX33, DX35
A53: DX29, 31, 33 FARMALL
A54: DX34 FARMALL
A55: FARMALL 30B, 35B
A56: FARMALL 40B, 50B
A57: ="" -> 
A58: ="" -> 
A59: ="" -> 
A60: ="" -> 
A61: ="" -> 
A62: ="" -> 
A63: ="" -> 
A64: ="" -> 
A65: ="" -> 
A66: ="" -> 
A67: ="" -> 
A68: ="" -> 
A69: ="" -> 
A70: ="" -> 
A71: ="" -> 
A72: ="" -> 
A73: ="" -> 
A74: ="" -> 
A75: ="" -> 
A76: ="" -> 
A77: ="" -> 
A78: ="" -> 
A79: ="" -> 
A80: ="" -> 
A81: ="" -> 
A82: ="" -> 
A83: ="" -> 
A84: ="" -> 
A85: ="" -> 
A86: ="" -> 
A87: ="" -> 
A88: ="" -> 
A89: ="" -> 
A90: ="" -> 
A91: ="" -> 
A92: ="" -> 
A93: ="" -> 
A94: ="" -> 
A95: ="" -> 
A96: ="" -> 
A97: ="" -> 
A98: ="" -> 
A99: ="" -> 
A100: ="" -> 
A101: ="" -> 
A102: ="" -> 
A103: ="" -> 
A104: ="" -> 
A105: ="" -> 
A106: ="" -> 
A107: ="" -> 
A108: ="" -> 
A109: ="" -> 
A110: ="" -> 
A111: ="" -> 
A112: ="" -> 
A113: ="" -> 
A114: ="" -> 
A115: ="" -> 
A116: ="" -> 
A117: ="" -> 
A118: ="" -> 
A119: ="" -> 
A120: ="" -> 
A121: ="" -> 
A122: ="" -> 
A123: ="" -> 
A124: ="" -> 
A125: ="" -> 
A126: ="" -> 
A127: ="" -> 
A128: ="" -> 
A129: ="" -> 
A130: ="" -> 
A131: ="" -> 
A132: ="" -> 
A133: ="" -> 
A134: ="" -> 
A135: ="" -> 
A136: ="" -> 
A137: ="" -> 
A138: ="" -> 
A139: ="" -> 
A140: ="" -> 
A141: ="" -> 
A142: ="" -> 
A143: ="" -> 
A144: ="" -> 
A145: ="" -> 
A146: ="" -> 
A147: ="" -> 
A148: ="" -> 
A149: ="" -> 
A150: ="" -> 
A151: ="" -> 
A152: ="" -> 
A153: ="" -> 
A154: ="" -> 
A155: ="" -> 
A156: ="" -> 
A157: ="" -> 
A158: ="" -> 
A159: ="" -> 
A160: ="" -> 
A161: ="" -> 
A162: ="" -> 
A163: ="" -> 
A164: ="" -> 
A165: ="" -> 
A166: ="" -> 
A167: ="" -> 
A168: ="" -> 
A169: ="" -> 
A170: ="" -> 
A171: ="" -> 
A172: ="" -> 
A173: ="" -> 
A174: ="" -> 
A175: ="" -> 
A176: ="" -> 
A177: ="" -> 
A178: ="" -> 
A179: ="" -> 
A180: ="" -> 
A181: ="" -> 
A182: ="" -> 
A183: ="" -> 
A184: ="" -> 
A185: ="" -> 
A186: ="" -> 
A187: ="" -> 
A188: ="" -> 
A189: ="" -> 
A190: ="" -> 
A191: ="" -> 
A192: ="" -> 
A193: ="" -> 
A194: ="" -> 
A195: ="" -> 
A196: ="" -> 
A197: ="" -> 
A198: ="" -> 
A199: ="" -> 
A200: ="" -> 
... 18 more rows

Sheet Challenger (hidden)
A1: MT555D - MT575D Auto VI (Classic Cab)
A2: MT555D - MT575D Auto VI (Deluxe)
A3: MT555D, MT565D, MT575D CVT (Deluxe)
A4: MT585D, MT595D Auto VI (Classic Cab)
A5: MT585D, MT595D Auto VI (Deluxe)
A6: MT585D CVT (Deluxe)
A7: MT645C, 655C, 665C, 675C CVT
A8: MT645D, 655D, 665D, 675D
A9: MT 315B, 325B, 335B and 345B
A10: MT 425B Dyna-4
A11: MT 425B Speedshift
A12: MT 445B, 455B, 465B Dyna 4
A13: MT 445B, 455B, 465B Speedshift
A14: MT 525B Dyna Power VI
A15: MT 525B Dyna-VT
A16: MT 525B Dynashift
A17: MT 525B Tier3 Auto Power VI
A18: MT 525B Tier3 Tech Star CVT
A19: MT 535B & 545B Dyna Power VI
A20: MT 535B & 545B Dyna-VT
A21: MT 535B & 545B Dynashift
A22: MT 535B & 545B Tier3 Auto Power VI
A23: MT 535B & 545B Tier3 Tech Star CVT
A24: MT 555B & 565B Dyna-VT
A25: MT 555B & 565B Dynashift
A26: MT 555B, 565B, 575B Tier3 Auto Power VI
A27: MT 555B, 565B, 575B Tier3 Tech Star CVT
A28: MT 585B CVT, 595B CVT
A29: MT 635B, 645B, 655B, 665B
A30: MT425, 445, 455, 465
A31: MT565
A32: ="" -> 
A33: ="" -> 
A34: ="" -> 
A35: ="" -> 
A36: ="" -> 
A37: ="" -> 
A38: ="" -> 
A39: ="" -> 
A40: ="" -> 
A41: ="" -> 
A42: ="" -> 
A43: ="" -> 
A44: ="" -> 
A45: ="" -> 
A46: ="" -> 
A47: ="" -> 
A48: ="" -> 
A49: ="" -> 
A50: ="" -> 
A51: ="" -> 
A52: ="" -> 
A53: ="" -> 
A54: ="" -> 
A55: ="" -> 
A56: ="" -> 
A57: ="" -> 
A58: ="" -> 
A59: ="" -> 
A60: ="" -> 
A61: ="" -> 
A62: ="" -> 
A63: ="" -> 
A64: ="" -> 
A65: ="" -> 
A66: ="" -> 
A67: ="" -> 
A68: ="" -> 
A69: ="" -> 
A70: ="" -> 
A71: ="" -> 
A72: ="" -> 
A73: ="" -> 
A74: ="" -> 
A75: ="" -> 
A76: ="" -> 
A77: ="" -> 
A78: ="" -> 
A79: ="" -> 
A80: ="" -> 
A81: ="" -> 
A82: ="" -> 
A83: ="" -> 
A84: ="" -> 
A85: ="" -> 
A86: ="" -> 
A87: ="" -> 
A88: ="" -> 
A89: ="" -> 
A90: ="" -> 
A91: ="" -> 
A92: ="" -> 
A93: ="" -> 
A94: ="" -> 
A95: ="" -> 
A96: ="" -> 
A97: ="" -> 
A98: ="" -> 
A99: ="" -> 
A100: ="" -> 
A101: ="" -> 
A102: ="" -> 
A103: ="" -> 
A104: ="" -> 
A105: ="" -> 
A106: ="" -> 
A107: ="" -> 
A108: ="" -> 
A109: ="" -> 
A110: ="" -> 
A111: ="" -> 
A112: ="" -> 
A113: ="" -> 
A114: ="" -> 
A115: ="" -> 
A116: ="" -> 
A117: ="" -> 
A118: ="" -> 
A119: ="" -> 
A120: ="" -> 
A121: ="" -> 
A122: ="" -> 
A123: ="" -> 
A124: ="" -> 
A125: ="" -> 
A126: ="" -> 
A127: ="" -> 
A128: ="" -> 
A129: ="" -> 
A130: ="" -> 
A131: ="" -> 
A132: ="" -> 
A133: ="" -> 
A134: ="" -> 
A135: ="" -> 
A136: ="" -> 
A137: ="" -> 
A138: ="" -> 
A139: ="" -> 
A140: ="" -> 
A141: ="" -> 
A142: ="" -> 
A143: ="" -> 
A144: ="" -> 
A145: ="" -> 
A146: ="" -> 
A147: ="" -> 
A148: ="" -> 
A149: ="" -> 
A150: ="" -> 
A151: ="" -> 
A152: ="" -> 
A153: ="" -> 
A154: ="" -> 
A155: ="" -> 
A156: ="" -> 
A157: ="" -> 
A158: ="" -> 
A159: ="" -> 
A160: ="" -> 
A161: ="" -> 
A162: ="" -> 
A163: ="" -> 
A164: ="" -> 
A165: ="" -> 
A166: ="" -> 
A167: ="" -> 
A168: ="" -> 
A169: ="" -> 
A170: ="" -> 
A171: ="" -> 
A172: ="" -> 
A173: ="" -> 
A174: ="" -> 
A175: ="" -> 
A176: ="" -> 
A177: ="" -> 
A178: ="" -> 
A179: ="" -> 
A180: ="" -> 
A181: ="" -> 
A182: ="" -> 
A183: ="" -> 
A184: ="" -> 
A185: ="" -> 
A186: ="" -> 
A187: ="" -> 
A188: ="" -> 
A189: ="" -> 
A190: ="" -> 
A191: ="" -> 
A192: ="" -> 
A193: ="" -> 
A194: ="" -> 

Sheet Deutz (hidden)
A1: Agrolux 45-75
A2: Agroplus 310,315,320 + Ecoline
A3: Agrolplus 410,420 + Ecoline
A4: Agrofarm 85, 100, 410, 420 and 430
A5: Agrofarm TTV420 and TTV430 + Profiline
A6: Agrofarm 410T and 420T
A7: Agrofarm 410TB and 420TB
A8: Agrotron K90-120, K410,420 and 430
A9: Agrotron K90-120, K410,420, 430 (Profiline)
A10: Agrotron K-110 and K-610
A11: Agrotron K-110 & K-610 (Profiline)
A12: Agrotron M410 and M420
A13: Agrotron TTV 410, 420, 430 + Profiline
A14: Agrotron M600 - M625 + Profiline
A15: Agrotron M640
A16: Agrotron M640 Profiline
A17: Agrotron TTV 610 and TTV 620
A18: Agrotron M650
A19: Agrotron M650 Profiline
A20: Agrotron TTV 630, TTV7210, 7230, 7250
A21: 5100 , 5110, 5120, 5130
A22: 5100 , 5110, 5120, 5130 Profiline and TTV
A23: Agrotron 6150, 6160
A24: Agrotron 6150, 6160 Profiline and TTV
A25: Agrotron 6150.4, 6160.4
A26: Agrotron 6150.4, 6160.4 Profiline and TTV
A27: Agrotron 6180, 6190
A28: Agrotron 6180, 6190 Profiline and TTV
A29: ="" -> 
A30: ="" -> 
A31: ="" -> 
A32: ="" -> 
A33: ="" -> 
A34: ="" -> 
A35: ="" -> 
A36: ="" -> 
A37: ="" -> 
A38: ="" -> 
A39: ="" -> 
A40: ="" -> 
A41: ="" -> 
A42: ="" -> 
A43: ="" -> 
A44: ="" -> 
A45: ="" -> 
A46: ="" -> 
A47: ="" -> 
A48: ="" -> 
A49: ="" -> 
A50: ="" -> 
A51: ="" -> 
A52: ="" -> 
A53: ="" -> 
A54: ="" -> 
A55: ="" -> 
A56: ="" -> 
A57: ="" -> 
A58: ="" -> 
A59: ="" -> 
A60: ="" -> 
A61: ="" -> 
A62: ="" -> 
A63: ="" -> 
A64: ="" -> 
A65: ="" -> 
A66: ="" -> 
A67: ="" -> 
A68: ="" -> 
A69: ="" -> 
A70: ="" -> 
A71: ="" -> 
A72: ="" -> 
A73: ="" -> 
A74: ="" -> 
A75: ="" -> 
A76: ="" -> 
A77: ="" -> 
A78: ="" -> 
A79: ="" -> 
A80: ="" -> 
A81: ="" -> 
A82: ="" -> 
A83: ="" -> 
A84: ="" -> 
A85: ="" -> 
A86: ="" -> 
A87: ="" -> 
A88: ="" -> 
A89: ="" -> 
A90: ="" -> 
A91: ="" -> 
A92: ="" -> 
A93: ="" -> 
A94: ="" -> 
A95: ="" -> 
A96: ="" -> 
A97: ="" -> 
A98: ="" -> 
A99: ="" -> 
A100: ="" -> 
A101: ="" -> 
A102: ="" -> 
A103: ="" -> 
A104: ="" -> 
A105: ="" -> 
A106: ="" -> 
A107: ="" -> 
A108: ="" -> 
A109: ="" -> 
A110: ="" -> 
A111: ="" -> 
A112: ="" -> 
A113: ="" -> 
A114: ="" -> 
A115: ="" -> 
A116: ="" -> 
A117: ="" -> 
A118: ="" -> 
A119: ="" -> 
A120: ="" -> 
A121: ="" -> 
A122: ="" -> 
A123: ="" -> 
A124: ="" -> 
A125: ="" -> 
A126: ="" -> 
A127: ="" -> 
A128: ="" -> 
A129: ="" -> 
A130: ="" -> 
A131: ="" -> 
A132: ="" -> 
A133: ="" -> 
A134: ="" -> 
A135: ="" -> 
A136: ="" -> 
A137: ="" -> 
A138: ="" -> 
A139: ="" -> 
A140: ="" -> 
A141: ="" -> 
A142: ="" -> 
A143: ="" -> 
A144: ="" -> 
A145: ="" -> 
A146: ="" -> 
A147: ="" -> 
A148: ="" -> 
A149: ="" -> 
A150: ="" -> 
A151: ="" -> 
A152: ="" -> 
A153: ="" -> 
A154: ="" -> 
A155: ="" -> 
A156: ="" -> 
A157: ="" -> 
A158: ="" -> 
A159: ="" -> 
A160: ="" -> 
A161: ="" -> 
A162: ="" -> 
A163: ="" -> 
A164: ="" -> 
A165: ="" -> 
A166: ="" -> 
A167: ="" -> 
A168: ="" -> 
A169: ="" -> 
A170: ="" -> 
A171: ="" -> 
A172: ="" -> 
A173: ="" -> 
A174: ="" -> 
A175: ="" -> 
A176: ="" -> 
A177: ="" -> 
A178: ="" -> 
A179: ="" -> 
A180: ="" -> 
A181: ="" -> 
A182: ="" -> 
A183: ="" -> 
A184: ="" -> 
A185: ="" -> 
A186: ="" -> 
A187: ="" -> 
A188: ="" -> 
A189: ="" -> 
A190: ="" -> 
A191: ="" -> 

Sheet John Deere (hidden)
A1: 5045E, 5055E, 5065E, 5075E (Teir 3)
A2: 5045E, 5055E, 5065E, 5075E (Teir 4)
A3: 5085E, 5100E (Teir 3)
A4: 5085E, 5100E (Teir4)
A5: 5083E, 5093E, 5101E, 5425, 5525, 5625, 5603
A6: 5065M, 5075M, 5085M (Teir 3&4)
A7: 5095M, 5105M, 5100M, 5115M (Teir 3&4)
A8: 6100D, 6115D, 6130D, 6140D
A9: 61105D, 6115D, 6130D, 60140D T4
A10: 6105E, 6120E, 6135E T4F
A11: 6105M, 6115M, 6125M
A12: 6105R, 6110R, 6115R,6120R, 6125R
A13: 6130M, 6140M, 6150M
A14: 6135M, 6145M, 6155M
A15: 6130R, 6140R, 6150R
A16: 6135R, 6145R
A17: 6170M, 6190M, 6210M
A18: 6175M, 6195M, 6215M
A19: 6170R, 6190R, 6210R
A20: 6175R, 6195R, 6215R
A21: 7200R, 7210R, 7215R, 7230R
A22: 7250R, 7260R, 7270R, 7280R, 7290R
A23: 8245R, 8270R, 8295R, 8320R, 8335R, 8345R
A24: 5105, 5205
A25: 5103, 5203, 5303, 5403
A26: 5225, 5325
A27: 6403'
A28: 6603'
A29: 6000, 6100, 6200, 6300, 6400, 6405
A30: 6010, 6110, 6210, 6310, 6410
A31: 6215, 6415, 6120, 6220, 6320, 6420
A32: 7200, 7300, 7400
A33: 7210, 7310, 7410, 7510, 6605, 7405
A34: 7600, 7700, 7800, 7610, 7710, 7810
A35: 6615, 6715, 7220, 7320, 7420, 7520
A36: 6120L , 6220L, 6320L, 6420L, 6520L
A37: 6230L, 6330L, 6430L
A38: 6230, 6330, 6430
A39: 7130, 7230, 7330
A40: 7430, 7530
A41: 7720, 7820, 7920, 7630, 7730, 7830, 7930
A42: 8100 - 8400, 8110 - 8410
A43: 2350, 2355 - 2750, 2755
A44: 5220, 5320
A45: 5420, 5520
A46: 5200-5310, 5400
A47: 5410, 5500, 5510
A48: 5300N, 5310N, 5400N Narrow
A49: 5410N, 5500N, 5510N Narrow
A50: 5320N Narrow
A51: 5420N, 5520N
A52: 2150, 2155
A53: 2950, 2955 - 3255
A54: 4020'
A55: 4420, 4230, 4430, 4240, 4440
A56: 4050/4055 - 4450/4455
A57: ="" -> 
A58: 5045D,5055D
A59: ="" -> 
A60: ="" -> 
A61: ="" -> 
A62: ="" -> 
A63: ="" -> 
A64: ="" -> 
A65: ="" -> 
A66: ="" -> 
A67: ="" -> 
A68: ="" -> 
A69: ="" -> 
A70: ="" -> 
A71: ="" -> 
A72: ="" -> 
A73: ="" -> 
A74: ="" -> 
A75: ="" -> 
A76: ="" -> 
A77: ="" -> 
A78: ="" -> 
A79: ="" -> 
A80: ="" -> 
A81: ="" -> 
A82: ="" -> 
A83: ="" -> 
A84: ="" -> 
A85: ="" -> 
A86: ="" -> 
A87: ="" -> 
A88: ="" -> 
A89: ="" -> 
A90: ="" -> 
A91: ="" -> 
A92: ="" -> 
A93: ="" -> 
A94: ="" -> 
A95: ="" -> 
A96: ="" -> 
A97: ="" -> 
A98: ="" -> 
A99: ="" -> 
A100: ="" -> 
A101: ="" -> 
A102: ="" -> 
A103: ="" -> 
A104: ="" -> 
A105: ="" -> 
A106: ="" -> 
A107: ="" -> 
A108: ="" -> 
A109: ="" -> 
A110: ="" -> 
A111: ="" -> 
A112: ="" -> 
A113: ="" -> 
A114: ="" -> 
A115: ="" -> 
A116: ="" -> 
A117: ="" -> 
A118: ="" -> 
A119: ="" -> 
A120: ="" -> 
A121: ="" -> 
A122: ="" -> 
A123: ="" -> 
A124: ="" -> 
A125: ="" -> 
A126: ="" -> 
A127: ="" -> 
A128: ="" -> 
A129: ="" -> 
A130: ="" -> 
A131: ="" -> 
A132: ="" -> 
A133: ="" -> 
A134: ="" -> 
A135: ="" -> 
A136: ="" -> 
A137: ="" -> 
A138: ="" -> 
A139: ="" -> 
A140: ="" -> 
A141: ="" -> 
A142: ="" -> 
A143: ="" -> 
A144: ="" -> 
A145: ="" -> 
A146: ="" -> 
A147: ="" -> 
A148: ="" -> 
A149: ="" -> 
A150: ="" -> 
A151: ="" -> 
A152: ="" -> 
A153: ="" -> 
A154: ="" -> 
A155: ="" -> 
A156: ="" -> 
A157: ="" -> 
A158: ="" -> 
A159: ="" -> 
A160: ="" -> 
A161: ="" -> 
A162: ="" -> 
A163: ="" -> 
A164: ="" -> 
A165: ="" -> 
A166: ="" -> 
A167: ="" -> 
A168: ="" -> 
A169: ="" -> 
A170: ="" -> 
A171: ="" -> 
A172: ="" -> 
A173: ="" -> 
A174: ="" -> 
A175: ="" -> 
A176: ="" -> 
A177: ="" -> 
A178: ="" -> 
A179: ="" -> 
A180: ="" -> 
A181: ="" -> 
A182: ="" -> 
A183: ="" -> 
A184: ="" -> 
A185: ="" -> 
A186: ="" -> 
A187: ="" -> 
A188: ="" -> 
A189: ="" -> 
A190: ="" -> 
A191: ="" -> 
A192: ="" -> 
A193: ="" -> 
A194: ="" -> 
A195: ="" -> 
A196: ="" -> 
A197: ="" -> 
A198: ="" -> 
A199: ="" -> 
A200: ="" -> 
... 20 more rows

Sheet Kubota (hidden)
A1: M5040-M7040, M5060-7060
A2: M5-091, 101
A3: M6-101, 111
A4: M6-131, 141
A5: M6S-111
A6: M7-131, 151, 171
A7: M8540, 9540
A8: M8560, M9960 TIER 4I
A9: M95S, M105S
A10: M96S, M108S
A11: M95X, M105X, M108X
A12: M100X, M110X
A13: M110, M120
A14: M125X
A15: M126X, M135X
A16: M100GXDTCC, M110GXDTCC
A17: M126GXDTCC, M135GXDTCC
A18: M47/49/54/57/6800 ROPS
A19: M47/49/54/57/6800 CAB
A20: M8200, M9000 ROPS
A21: M8200, M9000 CAB
A22: M8200 Narrow SDNBC
A23: M100 DTC
A24: ="" -> 
A25: B3200, B3300
A26: L2800, L3400,L3200,L3800,3301,L3901
A27: L3240 2/4WD, L3540, L3940
A28: L5240, L5740
A29: MX4700, MX5100
A30: ="" -> 
A31: ="" -> 
A32: ="" -> 
A33: ="" -> 
A34: ="" -> 
A35: ="" -> 
A36: ="" -> 
A37: ="" -> 
A38: ="" -> 
A39: ="" -> 
A40: ="" -> 
A41: ="" -> 
A42: ="" -> 
A43: ="" -> 
A44: ="" -> 
A45: ="" -> 
A46: ="" -> 
A47: ="" -> 
A48: ="" -> 
A49: ="" -> 
A50: ="" -> 
A51: ="" -> 
A52: ="" -> 
A53: ="" -> 
A54: ="" -> 
A55: ="" -> 
A56: ="" -> 
A57: ="" -> 
A58: ="" -> 
A59: ="" -> 
A60: ="" -> 
A61: ="" -> 
A62: ="" -> 
A63: ="" -> 
A64: ="" -> 
A65: ="" -> 
A66: ="" -> 
A67: ="" -> 
A68: ="" -> 
A69: ="" -> 
A70: ="" -> 
A71: ="" -> 
A72: ="" -> 
A73: ="" -> 
A74: ="" -> 
A75: ="" -> 
A76: ="" -> 
A77: ="" -> 
A78: ="" -> 
A79: ="" -> 
A80: ="" -> 
A81: ="" -> 
A82: ="" -> 
A83: ="" -> 
A84: ="" -> 
A85: ="" -> 
A86: ="" -> 
A87: ="" -> 
A88: ="" -> 
A89: ="" -> 
A90: ="" -> 
A91: ="" -> 
A92: ="" -> 
A93: ="" -> 
A94: ="" -> 
A95: ="" -> 
A96: ="" -> 
A97: ="" -> 
A98: ="" -> 
A99: ="" -> 
A100: ="" -> 
A101: ="" -> 
A102: ="" -> 
A103: ="" -> 
A104: ="" -> 
A105: ="" -> 
A106: ="" -> 
A107: ="" -> 
A108: ="" -> 
A109: ="" -> 
A110: ="" -> 
A111: ="" -> 
A112: ="" -> 
A113: ="" -> 
A114: ="" -> 
A115: ="" -> 
A116: ="" -> 
A117: ="" -> 
A118: ="" -> 
A119: ="" -> 
A120: ="" -> 
A121: ="" -> 
A122: ="" -> 
A123: ="" -> 
A124: ="" -> 
A125: ="" -> 
A126: ="" -> 
A127: ="" -> 
A128: ="" -> 
A129: ="" -> 
A130: ="" -> 
A131: ="" -> 
A132: ="" -> 
A133: ="" -> 
A134: ="" -> 
A135: ="" -> 
A136: ="" -> 
A137: ="" -> 
A138: ="" -> 
A139: ="" -> 
A140: ="" -> 
A141: ="" -> 
A142: ="" -> 
A143: ="" -> 
A144: ="" -> 
A145: ="" -> 
A146: ="" -> 
A147: ="" -> 
A148: ="" -> 
A149: ="" -> 
A150: ="" -> 
A151: ="" -> 
A152: ="" -> 
A153: ="" -> 
A154: ="" -> 
A155: ="" -> 
A156: ="" -> 
A157: ="" -> 
A158: ="" -> 
A159: ="" -> 
A160: ="" -> 
A161: ="" -> 
A162: ="" -> 
A163: ="" -> 
A164: ="" -> 
A165: ="" -> 
A166: ="" -> 
A167: ="" -> 
A168: ="" -> 
A169: ="" -> 
A170: ="" -> 
A171: ="" -> 
A172: ="" -> 
A173: ="" -> 
A174: ="" -> 
A175: ="" -> 
A176: ="" -> 
A177: ="" -> 
A178: ="" -> 
A179: ="" -> 
A180: ="" -> 
A181: ="" -> 
A182: ="" -> 
A183: ="" -> 

Sheet Landini (hidden)
A1: Alpine 70,80,85 Tier 3 STD / GT
A2: Powerfarm 60 TIER 2
A3: Powerfarm 75-105 TIER 2 & 90-110 TIER 3
A4: 5-090H, 5-100H, 5-110H
A5: Vision 80, 85, 90 TIER 2
A6: Vision 95 - 105 TIER 2 & 3
A7: Powermondial 100, 105, 115
A8: Landpower 125, 135 TIER 2
A9: Landpower 145 TIER 2
A10: Landpower 165, 185 TIER 2
A11: Landpower 125, 135 TIER 3
A12: Landpower 145 TIER 3
A13: Landpower 165, 185 TIER 3
A14: Rex 75, 85, 95, 105 F/GE Tier 2
A15: Rex 80, 90, 100, 110 F/GE Tier 3
A16: 5865 ROPS
A17: 6865, 8865
A18: Mythos 90, 100, 105
A19: Mythos 115
A20: Legend 115-135 NG
A21: Legend 140 - 185 NG
A22: 6860 Evolution, 65 Blizzard
A23: 8860 Evolution, 85 Blizzard
A24: Ghibli 80, 90, 100
A25: 6880, 7880, 8880, 9880
A26: Rex 70, 80, 90, 100 F, L, GT (Not Tier 3)
A27: Advantage 65, 75, 85 F & S
A28: Advantage 65, 75, 85 F & S
A29: ="" -> 
A30: 1-25H
A31: 1-40M/HC , 1-50M/HC
A32: 1-55M/C
A33: ="" -> 
A34: ="" -> 
A35: ="" -> 
A36: ="" -> 
A37: ="" -> 
A38: ="" -> 
A39: ="" -> 
A40: ="" -> 
A41: ="" -> 
A42: ="" -> 
A43: ="" -> 
A44: ="" -> 
A45: ="" -> 
A46: ="" -> 
A47: ="" -> 
A48: ="" -> 
A49: ="" -> 
A50: ="" -> 
A51: ="" -> 
A52: ="" -> 
A53: ="" -> 
A54: ="" -> 
A55: ="" -> 
A56: ="" -> 
A57: ="" -> 
A58: ="" -> 
A59: ="" -> 
A60: ="" -> 
A61: ="" -> 
A62: ="" -> 
A63: ="" -> 
A64: ="" -> 
A65: ="" -> 
A66: ="" -> 
A67: ="" -> 
A68: ="" -> 
A69: ="" -> 
A70: ="" -> 
A71: ="" -> 
A72: ="" -> 
A73: ="" -> 
A74: ="" -> 
A75: ="" -> 
A76: ="" -> 
A77: ="" -> 
A78: ="" -> 
A79: ="" -> 
A80: ="" -> 
A81: ="" -> 
A82: ="" -> 
A83: ="" -> 
A84: ="" -> 
A85: ="" -> 
A86: ="" -> 
A87: ="" -> 
A88: ="" -> 
A89: ="" -> 
A90: ="" -> 
A91: ="" -> 
A92: ="" -> 
A93: ="" -> 
A94: ="" -> 
A95: ="" -> 
A96: ="" -> 
A97: ="" -> 
A98: ="" -> 
A99: ="" -> 
A100: ="" -> 
A101: ="" -> 
A102: ="" -> 
A103: ="" -> 
A104: ="" -> 
A105: ="" -> 
A106: ="" -> 
A107: ="" -> 
A108: ="" -> 
A109: ="" -> 
A110: ="" -> 
A111: ="" -> 
A112: ="" -> 
A113: ="" -> 
A114: ="" -> 
A115: ="" -> 
A116: ="" -> 
A117: ="" -> 
A118: ="" -> 
A119: ="" -> 
A120: ="" -> 
A121: ="" -> 
A122: ="" -> 
A123: ="" -> 
A124: ="" -> 
A125: ="" -> 
A126: ="" -> 
A127: ="" -> 
A128: ="" -> 
A129: ="" -> 
A130: ="" -> 
A131: ="" -> 
A132: ="" -> 
A133: ="" -> 
A134: ="" -> 
A135: ="" -> 
A136: ="" -> 
A137: ="" -> 
A138: ="" -> 
A139: ="" -> 
A140: ="" -> 
A141: ="" -> 
A142: ="" -> 
A143: ="" -> 
A144: ="" -> 
A145: ="" -> 
A146: ="" -> 
A147: ="" -> 
A148: ="" -> 
A149: ="" -> 
A150: ="" -> 
A151: ="" -> 
A152: ="" -> 
A153: ="" -> 
A154: ="" -> 
A155: ="" -> 
A156: ="" -> 
A157: ="" -> 
A158: ="" -> 
A159: ="" -> 
A160: ="" -> 
A161: ="" -> 
A162: ="" -> 
A163: ="" -> 
A164: ="" -> 
A165: ="" -> 
A166: ="" -> 
A167: ="" -> 
A168: ="" -> 
A169: ="" -> 
A170: ="" -> 
A171: ="" -> 
A172: ="" -> 
A173: ="" -> 
A174: ="" -> 
A175: ="" -> 
A176: ="" -> 
A177: ="" -> 
A178: ="" -> 
A179: ="" -> 
A180: ="" -> 
A181: ="" -> 
A182: ="" -> 
A183: ="" -> 
A184: ="" -> 
A185: ="" -> 
A186: ="" -> 
A187: ="" -> 
A188: ="" -> 
A189: ="" -> 
A190: ="" -> 
A191: ="" -> 

Sheet MF (hidden)
A1: 2605, 2615, 2625, 2635
A2: 4608, 4609, 4610
A3: 5609, 5610, 5611, 5612, 5613
A4: 6614, 6615, 6616
A5: 7619, 7620, 7622 DYNA IV Classic Cab
A6: 7619, 7620, 7622 DYNA IV Deluxe & Premium
A7: 7619, 7620, 7622 CVT Deluxe & Premium
A8: 7624, 7626 DYNA IV Classic Cab
A9: 7624, 7626 DYNA IV Deluxe & Premium
A10: 7624 CVT Deluxe & Premium Cab
A11: 8650, 8660, 8670, 8680 TIER 3 and Tier 4i
A12: 5425,35 Tier 2 & 3 Dyna IV (Perkins)
A13: 5445,55,60 Tier 2 & 3 Dyna IV (Perkins)
A14: 5425, 35, 45, 55, 60 with Speed Shift
A15: 5460 Teir 3 DynaIV (SISU)
A16: 5465 with Speed Shift TIER 2
A17: 5465 with DYNA IV TIER 2
A18: 5465,75 Teir 3 Dyna IV (Perkins)
A19: 5465,75 Teir 3 Dyna IV (SISU)
A20: 6465, 75, 80 with DYNA Shift TIER 2
A21: 6465, 75, 80 with DYNA VI TIER 2
A22: 6465, 75, 80 with DYNA VI TIER 3 (PERKINS)
A23: 6465, 75, 80 with DYNA VI TIER 3 (SISU)
A24: 6485, 90, 95 with DYNA Shift TIER 2
A25: 6485, 90, 95 with DYNA VI TIER 3
A26: 6497, 6499 with DYNA VI TIER 2 (SISU)
A27: 6497, 6499 with DYNA VI TIER 3 <176049
A28: 6497, 6499 with DYNA VI TIER 3 >T189041
A29: 7465, 75, 80 with DYNA VT TIER 2
A30: 7485, 90, 95 with DYNA VT TIER 2
A31: 7465, 75, 80 with DYNA VT TIER 3 (PERKINS)
A32: 7465, 75, 80 with DYNA VT TIER 3 (SISU)
A33: 8450, 60, 70, 80
A34: 2650, 2660, 2670, 2680 HD
A35: 3625, 3635, 3645
A36: 431, 461
A37: 471, 481 ROPS
A38: 471, 481 CAB
A39: 491, 492 ROPS
A40: 491, 492 CAB
A41: 533, 543, 563
A42: 3435, 3445, 3455 F & S Narrow
A43: 251XE, 451
A44: 573, 583
A45: 593, 596 ROPS
A46: 593, 596 CAB
A47: 265, 271, 281, 283
A48: 271 X/XE, 281 X/XE
A49: 4225 - 4355, 4365 (4 Cyl) Cab
A50: 4260, 4263, 4270, 4360, 4370 (6 Cyl) Cab
A51: 6260 - 6280
A52: 6290`
A53: 6110 - 6140, 3050 - 3065
A54: 6160 - 6180
A55: 240, 243, 253, 263
A56: 261'
A57: 362'
A58: 362'
A59: 375 - 398
A60: 375 - 398
A61: 399'
A62: 399'
A63: 6150'
A64: 4225 - 4355, 4365 (4 Cyl) Rops
A65: 4260, 4263, 4270, 4360, 4370 (6 Cyl) Rops
A66: ="" -> 
A67: GC2400, 2600
A68: 1529, 1532
A69: 1533,1540, 1635
A70: 1547, 1552, 1648, 1652, 1655
A71: 1560, 1660
A72: 1560, 1660
A73: ="" -> 
A74: ="" -> 
A75: ="" -> 
A76: ="" -> 
A77: ="" -> 
A78: ="" -> 
A79: ="" -> 
A80: ="" -> 
A81: ="" -> 
A82: ="" -> 
A83: ="" -> 
A84: ="" -> 
A85: ="" -> 
A86: ="" -> 
A87: ="" -> 
A88: ="" -> 
A89: ="" -> 
A90: ="" -> 
A91: ="" -> 
A92: ="" -> 
A93: ="" -> 
A94: ="" -> 
A95: ="" -> 
A96: ="" -> 
A97: ="" -> 
A98: ="" -> 
A99: ="" -> 
A100: ="" -> 
A101: ="" -> 
A102: ="" -> 
A103: ="" -> 
A104: ="" -> 
A105: ="" -> 
A106: ="" -> 
A107: ="" -> 
A108: ="" -> 
A109: ="" -> 
A110: ="" -> 
A111: ="" -> 
A112: ="" -> 
A113: ="" -> 
A114: ="" -> 
A115: ="" -> 
A116: ="" -> 
A117: ="" -> 
A118: ="" -> 
A119: ="" -> 
A120: ="" -> 
A121: ="" -> 
A122: ="" -> 
A123: ="" -> 
A124: ="" -> 
A125: ="" -> 
A126: ="" -> 
A127: ="" -> 
A128: ="" -> 
A129: ="" -> 
A130: ="" -> 
A131: ="" -> 
A132: ="" -> 
A133: ="" -> 
A134: ="" -> 
A135: ="" -> 
A136: ="" -> 
A137: ="" -> 
A138: ="" -> 
A139: ="" -> 
A140: ="" -> 
A141: ="" -> 
A142: ="" -> 
A143: ="" -> 
A144: ="" -> 
A145: ="" -> 
A146: ="" -> 
A147: ="" -> 
A148: ="" -> 
A149: ="" -> 
A150: ="" -> 
A151: ="" -> 
A152: ="" -> 
A153: ="" -> 
A154: ="" -> 
A155: ="" -> 
A156: ="" -> 
A157: ="" -> 
A158: ="" -> 
A159: ="" -> 
A160: ="" -> 
A161: ="" -> 
A162: ="" -> 
A163: ="" -> 
A164: ="" -> 
A165: ="" -> 
A166: ="" -> 
A167: ="" -> 
A168: ="" -> 
A169: ="" -> 
A170: ="" -> 
A171: ="" -> 
A172: ="" -> 
A173: ="" -> 
A174: ="" -> 
A175: ="" -> 
A176: ="" -> 
A177: ="" -> 
A178: ="" -> 
A179: ="" -> 
A180: ="" -> 
A181: ="" -> 
A182: ="" -> 
A183: ="" -> 
A184: ="" -> 
A185: ="" -> 
A186: ="" -> 
A187: ="" -> 
A188: ="" -> 
A189: ="" -> 
A190: ="" -> 
A191: ="" -> 
A192: ="" -> 
A193: ="" -> 
A194: ="" -> 
A195: ="" -> 
A196: ="" -> 
A197: ="" -> 
A198: ="" -> 
A199: ="" -> 
A200: ="" -> 
... 27 more rows

Sheet McCormick (hidden)
A1: C-Max 60
A2: C-Max 75 - 105 TIER 2 and 3
A3: T90Max, T100Max, T110Max
A4: C70 - C100
A5: C70 - C100
A6: C60/70/80L
A7: CX70, 75, 80, 85, 90, 95, 100, 105 (Doncaster)
A8: CX90, 100, 110 TIER 3 (Italy)
A9: X50.20, X50.30, X50.40, X50.50
A10: X60.20, X60.30, X60.40, X60.50
A11: MB55
A12: MB65, 85
A13: MC80, 90, 100 and MC95, 105 TIER 2
A14: MC105,115,130 TIER 3 and MC110 TIER 2
A15: MC120,135 Power VI TIER 2
A16: MC120,135 Power VI TIER 3
A17: MTX 110, 125, 140, 155
A18: MTX 175, 200
A19: MTX "B" 120, 135, 145, 150
A20: MTX "B" 165, 185
A21: XTX 145, 165 TIER 2 and 3
A22: XTX 185, 200, 215
A23: TTX 190, 210, 230
A24: F75, 85, 95, 105 F/GE Tier 2
A25: F80, 90, 100, 110 Tier 3
A26: ="" -> 
A27: X10.25H
A28: X10.40M/HC , X10.50M/HC
A29: X10.55M/C
A30: ="" -> 
A31: ="" -> 
A32: ="" -> 
A33: ="" -> 
A34: ="" -> 
A35: ="" -> 
A36: ="" -> 
A37: ="" -> 
A38: ="" -> 
A39: ="" -> 
A40: ="" -> 
A41: ="" -> 
A42: ="" -> 
A43: ="" -> 
A44: ="" -> 
A45: ="" -> 
A46: ="" -> 
A47: ="" -> 
A48: ="" -> 
A49: ="" -> 
A50: ="" -> 
A51: ="" -> 
A52: ="" -> 
A53: ="" -> 
A54: ="" -> 
A55: ="" -> 
A56: ="" -> 
A57: ="" -> 
A58: ="" -> 
A59: ="" -> 
A60: ="" -> 
A61: ="" -> 
A62: ="" -> 
A63: ="" -> 
A64: ="" -> 
A65: ="" -> 
A66: ="" -> 
A67: ="" -> 
A68: ="" -> 
A69: ="" -> 
A70: ="" -> 
A71: ="" -> 
A72: ="" -> 
A73: ="" -> 
A74: ="" -> 
A75: ="" -> 
A76: ="" -> 
A77: ="" -> 
A78: ="" -> 
A79: ="" -> 
A80: ="" -> 
A81: ="" -> 
A82: ="" -> 
A83: ="" -> 
A84: ="" -> 
A85: ="" -> 
A86: ="" -> 
A87: ="" -> 
A88: ="" -> 
A89: ="" -> 
A90: ="" -> 
A91: ="" -> 
A92: ="" -> 
A93: ="" -> 
A94: ="" -> 
A95: ="" -> 
A96: ="" -> 
A97: ="" -> 
A98: ="" -> 
A99: ="" -> 
A100: ="" -> 
A101: ="" -> 
A102: ="" -> 
A103: ="" -> 
A104: ="" -> 
A105: ="" -> 
A106: ="" -> 
A107: ="" -> 
A108: ="" -> 
A109: ="" -> 
A110: ="" -> 
A111: ="" -> 
A112: ="" -> 
A113: ="" -> 
A114: ="" -> 
A115: ="" -> 
A116: ="" -> 
A117: ="" -> 
A118: ="" -> 
A119: ="" -> 
A120: ="" -> 
A121: ="" -> 
A122: ="" -> 
A123: ="" -> 
A124: ="" -> 
A125: ="" -> 
A126: ="" -> 
A127: ="" -> 
A128: ="" -> 
A129: ="" -> 
A130: ="" -> 
A131: ="" -> 
A132: ="" -> 
A133: ="" -> 
A134: ="" -> 
A135: ="" -> 
A136: ="" -> 
A137: ="" -> 
A138: ="" -> 
A139: ="" -> 
A140: ="" -> 
A141: ="" -> 
A142: ="" -> 
A143: ="" -> 
A144: ="" -> 
A145: ="" -> 
A146: ="" -> 
A147: ="" -> 
A148: ="" -> 
A149: ="" -> 
A150: ="" -> 
A151: ="" -> 
A152: ="" -> 
A153: ="" -> 
A154: ="" -> 
A155: ="" -> 
A156: ="" -> 
A157: ="" -> 
A158: ="" -> 
A159: ="" -> 
A160: ="" -> 
A161: ="" -> 
A162: ="" -> 
A163: ="" -> 
A164: ="" -> 
A165: ="" -> 
A166: ="" -> 
A167: ="" -> 
A168: ="" -> 
A169: ="" -> 
A170: ="" -> 
A171: ="" -> 
A172: ="" -> 
A173: ="" -> 
A174: ="" -> 
A175: ="" -> 
A176: ="" -> 
A177: ="" -> 
A178: ="" -> 
A179: ="" -> 
A180: ="" -> 
A181: ="" -> 
A182: ="" -> 
A183: ="" -> 
A184: ="" -> 
A185: ="" -> 
A186: ="" -> 
A187: ="" -> 
A188: ="" -> 

Sheet NH (hidden)
A1: Workmaster 45, 50, 55, 60, 70
A2: Powerstar T4.65, T4.75 T4B
A3: T4.85 - 120 T4
A4: T5.95 - 120 T4
A5: T6.120, .140, .150, .160
A6: T6.155, .165, .175
A7: T7.170, .185, .200, .210, .235 EP
A8: T7.220, .235, .250, .260, .270 EP
A9: T8.275, .300, .330, .360, .390, .420
A10: TT60A, TT65A,TT75A
A11: Workmaster 65, 75
A12: T4020, T4030
A13: T4020, T4030 Super Steer
A14: T4040, T4050
A15: T4040, T4050 Super Steer
A16: T4030F, T4040F, T4050F
A17: T5030,40,50,60,70
A18: TN55, 65, 75, TN60A, 70A, 75A
A19: TN55D, 65D, 75D, TN60DA, 70DA, 75DA
A20: TN55S, 65S, 70S, 75S, TN60SA, 70SA, 75SA
A21: TN85A, 95A, 85DA, 95DA
A22: TN65F, 75F, 90F, TN75FA, 85FA, 95FA
A23: TD75D, 80D
A24: TD95D
A25: TL 70, 80, 90, 100
A26: TL70A, 80A, 90A, 100A
A27: TS90, 100, 110
A28: TS100A Plus / Deluxe
A29: TS100A, 110A Super Steer
A30: TS110A Standard
A31: TS115A, 125A, 135A Plus / Deluxe
A32: TS115A, 125A, 135A Super Steer
A33: TS115A, 130A Standard
A34: TM120-165
A35: TM120 - 165 Super Steer
A36: TM 175, 190
A37: TM 175, 190 Super Steer
A38: TG 210 - 305 Super Steer
A39: TB100, 110
A40: TB120
A41: 4835, 5635, 6635, 7635
A42: 5640, 6640, 7740
A43: 7840 - 8340
A44: 8160, 8260, 8360, 8560
A45: 8670, 8770, 8870, 8970
A46: TD 5020, 5030
A47: TD 5040, 5050
A48: TS 6020, 6030
A49: T 6010, 6020 Delta
A50: T 6010 Plus, T 6020 Plus/Elite
A51: T 6020, 6040 & T6060 Elite
A52: T 6010, T6020 Plus/Elite Supersteer
A53: T 6020, 6040 & T6060 Elite Supersteer
A54: T 6030 & T6050 Delta
A55: T 6030, 6050, 6070 Plus/Elite
A56: T 6030, 6050, 6070 Plus/Elite Supersteer
A57: T 7030 + Supersteer
A58: T 7030 CVT + Supersteer
A59: T 7040, 7050, 7060 + CVT
A60: T 7040, 7050, 7060 CVT + Supersteer
A61: T 8020, 8030, 8040, 8050
A62: T 8020, 8030, 8040, 8050 + Supersteer
A63: 3930, 4630
A64: 5030'
A65: 5610 - 7610
A66: 6710 - 7710
A67: 7810'
A68: 8210'
A69: T1110/Boomer1030
A70: T1530
A71: Boomer 3040,45,50/T2310,2320,2330/TC35-45
A72: Boomer 4055,60/T2410,2420/TC48,55DA
A73: Boomer 30,35
A74: Boomer 40, 50
A75: TC25, TC 29, TC33 +DA
A76: BOOMER 2030,2035,T2210,T2220
A77: TC30, T1510,T1520
A78: ="" -> 
A80: ="" -> 
A81: ="" -> 
A82: ="" -> 
A83: ="" -> 
A84: ="" -> 
A85: ="" -> 
A86: ="" -> 
A87: ="" -> 

Sheet Valtra (hidden)
A1: 800, 900
A2: A72, A75, A82, A85, A92, A95
A3: C90, 100, 110, 120, 130, 150
A4: N82, N92
A5: N91, 101,111, 111e, 121, 141
A6: N121ADV, N141ADV
A7: N122, N142 Direct / Versu
A8: T121, 131, 151, 161, 171, 191 Classic
A9: T151, 161, 171, 191 ADV
A10: T120, 130, 140, 160, 170 Classic
A11: T120, 130, 140, 160, 170, 180, 190
A12: 6100 - 6850
A13: M120, 130, 150
A14: 8000 - 8450
A15: 8550 - 8950
A16: 600, 700
A17: A65, A75
A18: ="" -> 
A19: ="" -> 
A20: ="" -> 
A21: ="" -> 
A22: ="" -> 
A23: ="" -> 
A24: ="" -> 
A25: ="" -> 
A26: ="" -> 
A27: ="" -> 
A28: ="" -> 
A29: ="" -> 
A30: ="" -> 
A31: ="" -> 
A32: ="" -> 
A33: ="" -> 
A34: ="" -> 
A35: ="" -> 
A36: ="" -> 
A37: ="" -> 
A38: ="" -> 
A39: ="" -> 
A40: ="" -> 
A41: ="" -> 
A42: ="" -> 
A43: ="" -> 
A44: ="" -> 
A45: ="" -> 
A46: ="" -> 
A47: ="" -> 
A48: ="" -> 
A49: ="" -> 
A50: ="" -> 
A51: ="" -> 
A52: ="" -> 
A53: ="" -> 
A54: ="" -> 
A55: ="" -> 
A56: ="" -> 
A57: ="" -> 
A58: ="" -> 
A59: ="" -> 
A60: ="" -> 
A61: ="" -> 
A62: ="" -> 
A63: ="" -> 
A64: ="" -> 
A65: ="" -> 
A66: ="" -> 
A67: ="" -> 
A68: ="" -> 
A69: ="" -> 
A70: ="" -> 
A71: ="" -> 
A72: ="" -> 
A73: ="" -> 
A74: ="" -> 
A75: ="" -> 
A76: ="" -> 
A77: ="" -> 
A78: ="" -> 
A79: ="" -> 
A80: ="" -> 
A81: ="" -> 
A82: ="" -> 
A83: ="" -> 
A84: ="" -> 
A85: ="" -> 
A86: ="" -> 
A87: ="" -> 
A88: ="" -> 
A89: ="" -> 
A90: ="" -> 
A91: ="" -> 
A92: ="" -> 
A93: ="" -> 
A94: ="" -> 
A95: ="" -> 
A96: ="" -> 
A97: ="" -> 
A98: ="" -> 
A99: ="" -> 
A100: ="" -> 
A101: ="" -> 
A102: ="" -> 
A103: ="" -> 
A104: ="" -> 
A105: ="" -> 
A106: ="" -> 
A107: ="" -> 
A108: ="" -> 
A109: ="" -> 
A110: ="" -> 
A111: ="" -> 
A112: ="" -> 
A113: ="" -> 
A114: ="" -> 
A115: ="" -> 
A116: ="" -> 
A117: ="" -> 
A118: ="" -> 
A119: ="" -> 
A120: ="" -> 
A121: ="" -> 
A122: ="" -> 
A123: ="" -> 
A124: ="" -> 
A125: ="" -> 
A126: ="" -> 
A127: ="" -> 
A128: ="" -> 
A129: ="" -> 
A130: ="" -> 
A131: ="" -> 
A132: ="" -> 
A133: ="" -> 
A134: ="" -> 
A135: ="" -> 
A136: ="" -> 
A137: ="" -> 
A138: ="" -> 
A139: ="" -> 
A140: ="" -> 
A141: ="" -> 
A142: ="" -> 
A143: ="" -> 
A144: ="" -> 
A145: ="" -> 
A146: ="" -> 
A147: ="" -> 
A148: ="" -> 
A149: ="" -> 
A150: ="" -> 
A151: ="" -> 
A152: ="" -> 
A153: ="" -> 
A154: ="" -> 
A155: ="" -> 
A156: ="" -> 
A157: ="" -> 
A158: ="" -> 
A159: ="" -> 
A160: ="" -> 
A161: ="" -> 
A162: ="" -> 
A163: ="" -> 
A164: ="" -> 
A165: ="" -> 
A166: ="" -> 
A167: ="" -> 
A168: ="" -> 
A169: ="" -> 
A170: ="" -> 
A171: ="" -> 
A172: ="" -> 
A173: ="" -> 
A174: ="" -> 
A175: ="" -> 
A176: ="" -> 
A177: ="" -> 
A178: ="" -> 
A179: ="" -> 
A180: ="" -> 

Sheet KIOTI (hidden)
A1: CK20S, CK20SHST
A2: DK40SE, DK45SE , DK50SE + HST
A3: DK55, DK55C
A4: ="" -> 
A5: ="" -> 
A6: ="" -> 
A7: ="" -> 
A8: ="" -> 
A9: ="" -> 
A10: ="" -> 
A11: ="" -> 
A12: ="" -> 
A13: ="" -> 
A14: ="" -> 
A15: ="" -> 
A16: ="" -> 
A17: ="" -> 
A18: ="" -> 
A19: ="" -> 
A20: ="" -> 
A21: ="" -> 
A22: ="" -> 
A23: ="" -> 
A24: ="" -> 
A25: ="" -> 
A26: ="" -> 
A27: ="" -> 
A28: ="" -> 
A29: ="" -> 
A30: ="" -> 
A31: ="" -> 
A32: ="" -> 
A33: ="" -> 
A34: ="" -> 
A35: ="" -> 
A36: ="" -> 
A37: ="" -> 
A38: ="" -> 
A39: ="" -> 
A40: ="" -> 
A41: ="" -> 
A42: ="" -> 
A43: ="" -> 
A44: ="" -> 
A45: ="" -> 
A46: ="" -> 
A47: ="" -> 
A48: ="" -> 
A49: ="" -> 
A50: ="" -> 
A51: ="" -> 
A52: ="" -> 
A53: ="" -> 
A54: ="" -> 
A55: ="" -> 
A56: ="" -> 
A57: ="" -> 
A58: ="" -> 
A59: ="" -> 
A60: ="" -> 
A61: ="" -> 
A62: ="" -> 
A63: ="" -> 
A64: ="" -> 
A65: ="" -> 
A66: ="" -> 
A67: ="" -> 
A68: ="" -> 
A69: ="" -> 
A70: ="" -> 
A71: ="" -> 
A72: ="" -> 
A73: ="" -> 
A74: ="" -> 
A75: ="" -> 
A76: ="" -> 
A77: ="" -> 
A78: ="" -> 
A79: ="" -> 
A80: ="" -> 
A81: ="" -> 
A82: ="" -> 
A83: ="" -> 
A84: ="" -> 
A85: ="" -> 
A86: ="" -> 
A87: ="" -> 
A88: ="" -> 
A89: ="" -> 
A90: ="" -> 
A91: ="" -> 
A92: ="" -> 
A93: ="" -> 
A94: ="" -> 
A95: ="" -> 
A96: ="" -> 
A97: ="" -> 
A98: ="" -> 
A99: ="" -> 
A100: ="" -> 
A101: ="" -> 
A102: ="" -> 
A103: ="" -> 
A104: ="" -> 
A105: ="" -> 
A106: ="" -> 
A107: ="" -> 
A108: ="" -> 
A109: ="" -> 
A110: ="" -> 
A111: ="" -> 
A112: ="" -> 
A113: ="" -> 
A114: ="" -> 
A115: ="" -> 
A116: ="" -> 
A117: ="" -> 
A118: ="" -> 
A119: ="" -> 
A120: ="" -> 
A121: ="" -> 
A122: ="" -> 
A123: ="" -> 
A124: ="" -> 
A125: ="" -> 
A126: ="" -> 
A127: ="" -> 
A128: ="" -> 
A129: ="" -> 
A130: ="" -> 
A131: ="" -> 
A132: ="" -> 
A133: ="" -> 
A134: ="" -> 
A135: ="" -> 
A136: ="" -> 
A137: ="" -> 
A138: ="" -> 
A139: ="" -> 
A140: ="" -> 
A141: ="" -> 
A142: ="" -> 
A143: ="" -> 
A144: ="" -> 
A145: ="" -> 
A146: ="" -> 
A147: ="" -> 
A148: ="" -> 
A149: ="" -> 
A150: ="" -> 
A151: ="" -> 
A152: ="" -> 
A153: ="" -> 
A154: ="" -> 
A155: ="" -> 
A156: ="" -> 
A157: ="" -> 
A158: ="" -> 
A159: ="" -> 
A160: ="" -> 
A161: ="" -> 
A162: ="" -> 
A163: ="" -> 
A164: ="" -> 
A165: ="" -> 
A166: ="" -> 
A167: ="" -> 
A168: ="" -> 
A169: ="" -> 
A170: ="" -> 
A171: ="" -> 
A172: ="" -> 
A173: ="" -> 
A174: ="" -> 
A175: ="" -> 
A176: ="" -> 
A177: ="" -> 
A178: ="" -> 
A179: ="" -> 
A180: ="" -> 
A181: ="" -> 
A182: ="" -> 
A183: ="" -> 
A184: ="" -> 
A185: ="" -> 
A186: ="" -> 
A187: ="" -> 
A188: ="" -> 
A189: ="" -> 
A190: ="" -> 
A191: ="" -> 
A192: ="" -> 
A193: ="" -> 
A194: ="" -> 
A195: ="" -> 
A196: ="" -> 
A197: ="" -> 
A198: ="" -> 
A199: ="" -> 
A200: ="" -> 
... 280 more rows

Sheet MAHINDRA (hidden)
A1: 5010'
A2: 5035'
A3: ="" -> 
A4: ="" -> 
A5: ="" -> 
A6: ="" -> 
A7: ="" -> 
A8: ="" -> 
A9: ="" -> 
A10: ="" -> 
A11: ="" -> 
A12: ="" -> 
A13: ="" -> 
A14: ="" -> 
A15: ="" -> 
A16: ="" -> 
A17: ="" -> 
A18: ="" -> 
A19: ="" -> 
A20: ="" -> 
A21: ="" -> 
A22: ="" -> 
A23: ="" -> 
A24: ="" -> 
A25: ="" -> 
A26: ="" -> 
A27: ="" -> 
A28: ="" -> 
A29: ="" -> 
A30: ="" -> 
A31: ="" -> 
A32: ="" -> 
A33: ="" -> 
A34: ="" -> 
A35: ="" -> 
A36: ="" -> 
A37: ="" -> 
A38: ="" -> 
A39: ="" -> 
A40: ="" -> 
A41: ="" -> 
A42: ="" -> 
A43: ="" -> 
A44: ="" -> 
A45: ="" -> 
A46: ="" -> 
A47: ="" -> 
A48: ="" -> 
A49: ="" -> 
A50: ="" -> 
A51: ="" -> 
A52: ="" -> 
A53: ="" -> 
A54: ="" -> 
A55: ="" -> 
A56: ="" -> 
A57: ="" -> 
A58: ="" -> 
A59: ="" -> 
A60: ="" -> 
A61: ="" -> 
A62: ="" -> 
A63: ="" -> 
A64: ="" -> 
A65: ="" -> 
A66: ="" -> 
A67: ="" -> 
A68: ="" -> 
A69: ="" -> 
A70: ="" -> 
A71: ="" -> 
A72: ="" -> 
A73: ="" -> 
A74: ="" -> 
A75: ="" -> 
A76: ="" -> 
A77: ="" -> 
A78: ="" -> 
A79: ="" -> 
A80: ="" -> 
A81: ="" -> 
A82: ="" -> 
A83: ="" -> 
A84: ="" -> 
A85: ="" -> 
A86: ="" -> 
A87: ="" -> 
A88: ="" -> 
A89: ="" -> 
A90: ="" -> 
A91: ="" -> 
A92: ="" -> 
A93: ="" -> 
A94: ="" -> 
A95: ="" -> 
A96: ="" -> 
A97: ="" -> 
A98: ="" -> 
A99: ="" -> 
A100: ="" -> 
A101: ="" -> 
A102: ="" -> 
A103: ="" -> 
A104: ="" -> 
A105: ="" -> 
A106: ="" -> 
A107: ="" -> 
A108: ="" -> 
A109: ="" -> 
A110: ="" -> 
A111: ="" -> 
A112: ="" -> 
A113: ="" -> 
A114: ="" -> 
A115: ="" -> 
A116: ="" -> 
A117: ="" -> 
A118: ="" -> 
A119: ="" -> 
A120: ="" -> 
A121: ="" -> 
A122: ="" -> 
A123: ="" -> 
A124: ="" -> 
A125: ="" -> 
A126: ="" -> 
